Service Delivery Area(T),Service Delivery Team(T),CostC,ExpenditureGroup(T),Account(T),Supplier Name(T),Trans Date,Amount
Adult Social Services,Access & Enablement,HCAJ,Supplies & Services,Other Grants (Expenses),PARKWOOD HEALTHCARE LTD,20/01/2015,"40,162.50"
Adult Social Services,Access & Enablement,HHAC,Premises-Related Expenditure,Hire Of Rooms,MEETING POINT TRUST LTD,22/01/2015,101.25
Adult Social Services,Access & Enablement,HHAC,Supplies & Services,Consultants Fees,My Support Broker,09/01/2015,"16,500.00"
Adult Social Services,Access & Enablement,HJAE,Supplies & Services,Other Grants (Expenses),ICare (GB) Limited,26/01/2015,"2,162.93"
Adult Social Services,Access & Enablement,HJAE,Supplies & Services,Other Grants (Expenses),ROYAL VOLUNTARY SERVICES,20/01/2015,"6,329.75"
Adult Social Services,Access & Enablement,HJAE,Supplies & Services,Other Grants (Expenses),ROYAL VOLUNTARY SERVICES,20/01/2015,"4,999.00"
Adult Social Services,Access & Enablement,HJAE,Supplies & Services,Other Grants (Expenses),ROYAL VOLUNTARY SERVICES,20/01/2015,"-2,499.50"
Adult Social Services,Access & Enablement,HJAE,Supplies & Services,Other Grants (Expenses),ROYAL VOLUNTARY SERVICES,20/01/2015,"2,499.50"
Adult Social Services,Access & Enablement,HJAE,Supplies & Services,Other Grants (Expenses),ROYAL VOLUNTARY SERVICES,20/01/2015,"-6,329.75"
Adult Social Services,Access & Enablement,HJAE,Supplies & Services,Other Grants (Expenses),SHROPSHIRE COMMUNITY HEALTH NHS TRUST,05/01/2015,"40,000.00"
Adult Social Services,Access & Enablement,HMAA,Supplies & Services,Service Contracts,SRCL LTD,15/01/2015,760.57
Adult Social Services,Access & Enablement,HMAC,Premises-Related Expenditure,Hire Of Rooms,THE SALVATION ARMY,19/01/2015,120.00
Adult Social Services,Access & Enablement,HMBJ,Third Party Payments,Residential Expenditure,Firs Riverside B & B,29/01/2015,588.00
Adult Social Services,Access & Enablement,HMBJ,Third Party Payments,Residential Expenditure,Firs Riverside B & B,19/01/2015,613.00
Adult Social Services,Access & Enablement,HOAG,Supplies & Services,Aids & Appliances,HEARING PRODUCTS INTERNATIONAL LIMITED,22/01/2015,265.00
Adult Social Services,Access & Enablement,HOAP,Supplies & Services,Aids & Appliances,AA Moving Solutions Ltd,05/01/2015,296.63
Adult Social Services,Access & Enablement,HOAP,Supplies & Services,Aids & Appliances,Alert-it Care Alarms,22/01/2015,110.00
Adult Social Services,Access & Enablement,HOAP,Supplies & Services,Aids & Appliances,Alert-it Care Alarms,22/01/2015,122.00
Adult Social Services,Access & Enablement,HOAP,Supplies & Services,Aids & Appliances,Easylink,19/01/2015,"1,900.00"
Adult Social Services,Access & Enablement,HOAP,Supplies & Services,Aids & Appliances,Easylink,27/01/2015,249.92
Adult Social Services,Access & Enablement,HOAP,Supplies & Services,Equipment - Repair,HANDICARE ACCESSIBILITY LIMITED,20/01/2015,"4,423.56"
Adult Social Services,Access & Enablement,HOAP,Supplies & Services,Equipment - Repair,HANDICARE ACCESSIBILITY LIMITED,20/01/2015,522.58
Adult Social Services,Access & Enablement,HOAP,Supplies & Services,Equipment - Repair,HANDICARE ACCESSIBILITY LIMITED,20/01/2015,"4,461.89"
Adult Social Services,Access & Enablement,HOAP,Supplies & Services,Equipment - Repair,HANDICARE ACCESSIBILITY LIMITED,20/01/2015,522.58
Adult Social Services,Access & Enablement,HOAP,Supplies & Services,Aids & Appliances,Just Checking,19/01/2015,"2,075.00"
Adult Social Services,Access & Enablement,HOAP,Supplies & Services,Aids & Appliances,POWERGUARDS INC RAMPING SYSTEMS,28/01/2015,224.00
Adult Social Services,Access & Enablement,HOAP,Supplies & Services,Aids & Appliances,PRISM MEDICAL (14083954) WESTHOLME DIVISION,20/01/2015,"1,308.38"
Adult Social Services,Access & Enablement,HOAP,Supplies & Services,Aids & Appliances,RNIB SERVICES LIMITED,22/01/2015,259.50
Adult Social Services,Access & Enablement,HOAP,Supplies & Services,Aids & Appliances,SILVALEA LIMITED,28/01/2015,333.50
Adult Social Services,Access & Enablement,HOAP,Supplies & Services,Aids & Appliances,THE WREKIN HOUSING TRUST (INVOICES ONLY),07/01/2015,125.00
Adult Social Services,Access & Enablement,HOAP,Supplies & Services,Aids & Appliances,THE WREKIN HOUSING TRUST (INVOICES ONLY),07/01/2015,125.00
Adult Social Services,Access & Enablement,HOAP,Supplies & Services,Aids & Appliances,THE WREKIN HOUSING TRUST (INVOICES ONLY),07/01/2015,245.00
Adult Social Services,Access & Enablement,HOAP,Supplies & Services,Adaptations,TRAVIS PERKINS TRADING CO LIMITED,19/01/2015,127.55
Adult Social Services,Access & Enablement,HOAP,Supplies & Services,Adaptations,TRAVIS PERKINS TRADING CO LIMITED,22/01/2015,950.00
Adult Social Services,Access & Enablement,HOAP,Supplies & Services,Adaptations,TRAVIS PERKINS TRADING CO LIMITED,22/01/2015,114.10
Adult Social Services,Access & Enablement,HOAP,Supplies & Services,Adaptations,TRAVIS PERKINS TRADING CO LIMITED,22/01/2015,108.16
Adult Social Services,Access & Enablement,HOAP,Supplies & Services,Adaptations,TRAVIS PERKINS TRADING CO LIMITED,07/01/2015,"1,080.00"
Adult Social Services,Access & Enablement,HOAP,Supplies & Services,Aids & Appliances,Welland Medical,21/01/2015,540.00
Adult Social Services,Access & Enablement,HOAP,Supplies & Services,Equipment - Repair,WESSEX LIFT CO. LTD,20/01/2015,202.48
Adult Social Services,Access & Enablement,HOAP,Supplies & Services,Equipment - Repair,WESSEX LIFT CO. LTD,28/01/2015,125.50
Adult Social Services,Access & Enablement,HOAP,Supplies & Services,Equipment - Repair,WESSEX LIFT CO. LTD,28/01/2015,113.90
Adult Social Services,Access & Enablement,HOBK,Third Party Payments,Nursing Expenditure,COVERAGE CARE SERVICES LTD (SY3),09/01/2015,"90,735.34"
Adult Social Services,Access & Enablement,HOBK,Supplies & Services,Respite Care,COVERAGE CARE SERVICES LTD (SY3),09/01/2015,"4,333.71"
Adult Social Services,Access & Enablement,HOBK,Third Party Payments,Nursing Expenditure,COVERAGE CARE SERVICES LTD (SY3),09/01/2015,"83,059.48"
Adult Social Services,Access & Enablement,HOBK,Supplies & Services,Respite Care,COVERAGE CARE SERVICES LTD (SY3),09/01/2015,"4,193.91"
Adult Social Services,Access & Enablement,HOBK,Third Party Payments,Nursing Expenditure,COVERAGE CARE SERVICES LTD (SY3),22/01/2015,"91,036.32"
Adult Social Services,Access & Enablement,HOBK,Supplies & Services,Respite Care,COVERAGE CARE SERVICES LTD (SY3),22/01/2015,"4,333.71"
Adult Social Services,Access & Enablement,HOBK,Third Party Payments,Nursing Expenditure,COVERAGE CARE SERVICES LTD (SY3),05/01/2015,459.40
Adult Social Services,Access & Enablement,HOBL,Third Party Payments,Residential Expenditure,COVERAGE CARE SERVICES LTD (SY3),09/01/2015,"59,781.01"
Adult Social Services,Access & Enablement,HOBL,Third Party Payments,Residential Expenditure,COVERAGE CARE SERVICES LTD (SY3),22/01/2015,"36,397.54"
Adult Social Services,Access & Enablement,HOBL,Third Party Payments,Residential Expenditure,COVERAGE CARE SERVICES LTD (SY3),22/01/2015,"8,746.43"
Adult Social Services,Access & Enablement,HOBL,Third Party Payments,Residential Expenditure,COVERAGE CARE SERVICES LTD (SY3),22/01/2015,"16,629.73"
Adult Social Services,Access & Enablement,HOBP,Third Party Payments,Daycare Expenditure,COVERAGE CARE SERVICES LTD (SY3),09/01/2015,"11,845.24"
Adult Social Services,Access & Enablement,HOBP,Third Party Payments,Residential Expenditure,COVERAGE CARE SERVICES LTD (SY3),22/01/2015,"12,240.08"
Adult Social Services,Access & Enablement,HOBQ,Supplies & Services,Protective Clothing,REDACTED PERSONAL INFORMATION,20/01/2015,954.03
Adult Social Services,Access & Enablement,HOBR,Third Party Payments,Homecare Expenditure,COVERAGE CARE SERVICES LTD (SY3),09/01/2015,"51,339.84"
Adult Social Services,Access & Enablement,HOBR,Third Party Payments,Homecare Expenditure,COVERAGE CARE SERVICES LTD (SY3),09/01/2015,"50,185.17"
Adult Social Services,Access & Enablement,HOBR,Third Party Payments,Homecare Expenditure,COVERAGE CARE SERVICES LTD (SY3),22/01/2015,"51,182.55"
Adult Social Services,Access & Enablement,HOBR,Third Party Payments,Homecare Expenditure,SUPREME HOME CARE,20/01/2015,"7,159.04"
Adult Social Services,Access & Enablement,HOBS,Supplies & Services,Aids & Appliances,SHROPSHIRE COMMUNITY HEALTH NHS TRUST,20/01/2015,"6,301.66"
Adult Social Services,Access & Enablement,HOBY,Third Party Payments,Residential Expenditure,ACCORD HOUSING ASSOCIATION LIMITED,26/01/2015,"15,214.36"
Adult Social Services,Access & Enablement,HOBZ,Third Party Payments,Residential Expenditure,DIMENSIONS (UK) LTD,09/01/2015,"28,615.44"
Adult Social Services,Access & Enablement,HOBZ,Third Party Payments,Residential Expenditure,DIMENSIONS (UK) LTD,09/01/2015,"38,412.54"
Adult Social Services,Access & Enablement,HOBZ,Third Party Payments,Residential Expenditure,DIMENSIONS (UK) LTD,09/01/2015,"46,095.05"
Adult Social Services,Access & Enablement,HOBZ,Third Party Payments,Residential Expenditure,DIMENSIONS (UK) LTD,26/01/2015,"46,095.50"
Adult Social Services,Access & Enablement,HOBZ,Third Party Payments,Residential Expenditure,DIMENSIONS (UK) LTD,20/01/2015,"32,437.29"
Adult Social Services,Access & Enablement,HOBZ,Third Party Payments,Residential Expenditure,DIMENSIONS (UK) LTD,26/01/2015,"32,437.65"
Adult Social Services,Access & Enablement,HOBZ,Third Party Payments,Residential Expenditure,DIMENSIONS (UK) LTD,26/01/2015,"38,412.56"
Adult Social Services,Access & Enablement,HOBZ,Third Party Payments,Residential Expenditure,DIMENSIONS (UK) LTD,26/01/2015,"28,615.40"
Adult Social Services,Access & Enablement,HOCH,Third Party Payments,Residential Expenditure,COVERAGE CARE SERVICES LTD (SY3),20/01/2015,"5,310.90"
Adult Social Services,Access & Enablement,HOCN,Supplies & Services,Other Expenses,Medical Services Limited,20/01/2015,124.17
Adult Social Services,Assessment & Case Management,HLAB,Third Party Payments,Nursing Expenditure,CREATIVE SUPPORT LTD,30/01/2015,"1,092.00"
Adult Social Services,Assessment & Case Management,HLAB,Third Party Payments,Nursing Expenditure,CREATIVE SUPPORT LTD,30/01/2015,"1,092.00"
Adult Social Services,Assessment & Case Management,HLAF,Supplies & Services,Other Grants (Expenses),CREATIVE SUPPORT LTD,21/01/2015,449.56
Adult Social Services,Assessment & Case Management,HLAF,Supplies & Services,Other Grants (Expenses),CREATIVE SUPPORT LTD,30/01/2015,449.56
Adult Social Services,Assessment & Case Management,HOAC,Supplies & Services,Purchased Meals,ACCORD HOUSING ASSOCIATION LIMITED,19/01/2015,194.35
Adult Social Services,Assessment & Case Management,HOAC,Supplies & Services,Purchased Meals,ACCORD HOUSING ASSOCIATION LIMITED,19/01/2015,167.44
Adult Social Services,Assessment & Case Management,HOAC,Supplies & Services,Purchased Meals,ACCORD HOUSING ASSOCIATION LIMITED,15/01/2015,230.23
Adult Social Services,Assessment & Case Management,HOAC,Supplies & Services,Purchased Meals,ACCORD HOUSING ASSOCIATION LIMITED,15/01/2015,113.62
Adult Social Services,Assessment & Case Management,HOAC,Supplies & Services,Purchased Meals,ACCORD HOUSING ASSOCIATION LIMITED,27/01/2015,131.56
Adult Social Services,Assessment & Case Management,HOAC,Supplies & Services,Purchased Meals,ACCORD HOUSING ASSOCIATION LIMITED,27/01/2015,101.66
Adult Social Services,Assessment & Case Management,HOAC,Supplies & Services,Purchased Meals,COVERAGE CARE SERVICES LTD (SY3),19/01/2015,207.94
Adult Social Services,Assessment & Case Management,HOAC,Supplies & Services,Purchased Meals,ICare (GB) Limited,19/01/2015,"-1,749.00"
Adult Social Services,Assessment & Case Management,HOAJ,Supplies & Services,Purchased Meals,ICare (GB) Limited,19/01/2015,"-3,095.20"
Adult Social Services,Assessment & Case Management,HOAW,Supplies & Services,Equipment - Purchase,Boots The Chemist,20/01/2015,180.00
Adult Social Services,Assessment & Case Management,HOAW,Supplies & Services,Equipment - Purchase,Boots The Chemist,20/01/2015,-120.00
Adult Social Services,Assessment & Case Management,HOAW,Supplies & Services,Equipment - Purchase,Muxton Pharmacy,20/01/2015,120.00
Adult Social Services,Assessment & Case Management,HOAZ,Supplies & Services,Equipment - Purchase,Ideal Fitness Ltd,20/01/2015,140.00
Adult Social Services,Assessment & Case Management,HOCF,Supplies & Services,Other Grants (Expenses),SOCIAL CARE ONE OFF SUNDRIES,23/01/2015,-300.00
Adult Social Services,Assessment & Case Management,HOCF,Supplies & Services,Other Grants (Expenses),SOCIAL CARE ONE OFF SUNDRIES,30/01/2015,250.00
Adult Social Services,Assessment & Case Management,HOCJ,Third Party Payments,Residential Expenditure,COVERAGE CARE SERVICES LTD (SY3),20/01/2015,"5,310.90"
Adult Social Services,Assessment & Case Management,HOCM,Third Party Payments,Nursing Expenditure,MORRIS CARE,22/01/2015,"77,142.86"
Adult Social Services,Assessment & Case Management,HPAB,Supplies & Services,Computer Software (Maint),OLM SYSTEMS LTD,29/01/2015,"5,625.00"
Care & Support,Assessment & Case Management,HPAB,Supplies & Services,Computer Software (Maint),CM 2000 CARE MONITORING,19/01/2015, 677.51 
Children's Safeguarding & Specialist Services,Child Protection & Assessment,JHAB,Supplies & Services,Legal Expenses,BERRYMANS LACE MAWER,09/01/2015,"1,690.50"
Children's Safeguarding & Specialist Services,Child Protection & Assessment,JHAB,Employees,Agency Supply Costs,Hamptons Resourcing,09/01/2015,"2,400.00"
Children's Safeguarding & Specialist Services,Child Protection & Assessment,JHAB,Employees,Agency Supply Costs,Hamptons Resourcing,09/01/2015,"3,020.25"
Children's Safeguarding & Specialist Services,Child Protection & Assessment,JHAB,Employees,Agency Supply Costs,Hamptons Resourcing,09/01/2015,"3,020.70"
Children's Safeguarding & Specialist Services,Child Protection & Assessment,JHAB,Employees,Training Expenses,Kirwin Maclean Associates Ltd,09/01/2015,650.00
Children's Safeguarding & Specialist Services,Child Protection & Assessment,JHAB,Employees,Staff Training,MEETING POINT TRUST LTD,09/01/2015,262.60
Children's Safeguarding & Specialist Services,Child Protection & Assessment,JHAB,Employees,Training Expenses,NFU,09/01/2015,110.00
Children's Safeguarding & Specialist Services,Child Protection & Assessment,JHAK,Supplies & Services,Other Services,Adoption Matters Northwest,09/01/2015,"1,194.42"
Children's Safeguarding & Specialist Services,Child Protection & Assessment,JHAK,Supplies & Services,Other Services,Adoption Matters Northwest,09/01/2015,"1,194.42"
Children's Safeguarding & Specialist Services,Child Protection & Assessment,JMAB,Third Party Payments,Interpreters Fees,PEARL LINGUISTICS LTD,13/01/2015,"1,308.57"
Children's Safeguarding & Specialist Services,Child Protection & Assessment,JMAB,Supplies & Services,Translation Services,UK Language Solutions Ltd,21/01/2015,294.75
Children's Safeguarding & Specialist Services,Child Protection & Assessment,JMAD,Third Party Payments,Interpreters Fees,PEARL LINGUISTICS LTD,13/01/2015,142.00
Children's Safeguarding & Specialist Services,Child Protection & Assessment,JMAD,Supplies & Services,Translation Services,UK Language Solutions Ltd,21/01/2015,253.50
Children's Safeguarding & Specialist Services,Child Protection & Assessment,JMAE,Supplies & Services,Other Services,Dudley Lodge,15/01/2015,"10,125.00"
Children's Safeguarding & Specialist Services,Child Protection & Assessment,JMAE,Supplies & Services,Other Services,ELMHURST PSYCHOLOGY LTD,21/01/2015,"3,003.60"
Children's Safeguarding & Specialist Services,Child Protection & Assessment,JMAE,Supplies & Services,Other Services,Gateway Psychology,06/01/2015,150.00
Children's Safeguarding & Specialist Services,Child Protection & Assessment,JMAE,Supplies & Services,Other Services,Inspirative Arts,07/01/2015,"1,530.00"
Children's Safeguarding & Specialist Services,Child Protection & Assessment,JMAE,Supplies & Services,Other Services,J.A. FOULKES LTD,26/01/2015,492.55
Children's Safeguarding & Specialist Services,Child Protection & Assessment,JMAE,Supplies & Services,Other Services,J.A. FOULKES LTD,19/01/2015,547.85
Children's Safeguarding & Specialist Services,Child Protection & Assessment,JMAE,Supplies & Services,Other Services,J.A. FOULKES LTD,19/01/2015,764.35
Children's Safeguarding & Specialist Services,Child Protection & Assessment,JMAE,Supplies & Services,Other Services,NEWSTART NETWORKS CIC,14/01/2015,600.00
Children's Safeguarding & Specialist Services,Child Protection & Assessment,JMAE,Supplies & Services,Other Services,Reach Psychology,19/01/2015,126.00
Children's Safeguarding & Specialist Services,Child Protection & Assessment,JMAE,Supplies & Services,Other Services,Reach Psychology,07/01/2015,126.00
Children's Safeguarding & Specialist Services,Child Protection & Assessment,JMAE,Supplies & Services,Other Services,RGT TRAINING & CONSULTANCY,07/01/2015,900.00
Children's Safeguarding & Specialist Services,Child Protection & Assessment,JMAL,Transport-Related Expenditure,Travelling Expenses General,CENTRAL TAXIS LTD T/A GO CARZ (01732196,27/01/2015,143.50
Children's Safeguarding & Specialist Services,Child Protection & Assessment,JMAL,Supplies & Services,Form F Assessments,NESTOR PRIMECARE SERVICES LTD T/A ALLIED HEALTHCARE,21/01/2015,291.15
Children's Safeguarding & Specialist Services,Child Protection & Assessment,JMAL,Supplies & Services,Section 17 Childrens Act,NESTOR PRIMECARE SERVICES LTD T/A ALLIED HEALTHCARE,26/01/2015,577.74
Children's Safeguarding & Specialist Services,Child Protection & Assessment,JMAL,Supplies & Services,Section 17 Childrens Act,NESTOR PRIMECARE SERVICES LTD T/A ALLIED HEALTHCARE,07/01/2015,291.15
Children's Safeguarding & Specialist Services,Child Protection & Assessment,JMAL,Supplies & Services,Section 17 Childrens Act,NESTOR PRIMECARE SERVICES LTD T/A ALLIED HEALTHCARE,07/01/2015,334.13
Children's Safeguarding & Specialist Services,Child Protection & Assessment,JMAL,Supplies & Services,Section 17 Childrens Act,NESTOR PRIMECARE SERVICES LTD T/A ALLIED HEALTHCARE,07/01/2015,295.55
Children's Safeguarding & Specialist Services,Child Protection & Assessment,JSAB,Transport-Related Expenditure,Taxi Costs,CENTRAL TAXIS LTD T/A GO CARZ (01732196,07/01/2015,403.00
Children's Safeguarding & Specialist Services,Child Protection & Assessment,JSAB,Transport-Related Expenditure,Travelling Expenses General,CENTRAL TAXIS LTD T/A GO CARZ (01732196,27/01/2015,188.40
Children's Safeguarding & Specialist Services,Child Protection & Assessment,JSAB,Supplies & Services,CL - External Accommodation,Firs Riverside B & B,19/01/2015,468.60
Children's Safeguarding & Specialist Services,Child Protection & Assessment,JSAB,Supplies & Services,CL - External Accommodation,Firs Riverside B & B,27/01/2015,"2,544.00"
Children's Safeguarding & Specialist Services,Child Protection & Assessment,JSAB,Supplies & Services,CL - External Accommodation,Mark Jones Property Lettings,09/01/2015,"1,300.00"
Children's Safeguarding & Specialist Services,Child Protection & Assessment,JSAB,Supplies & Services,Section 17 Childrens Act,Maybach Lettings,19/01/2015,530.00
Children's Safeguarding & Specialist Services,Child Protection & Assessment,JSAB,Supplies & Services,Legal,WACE MORGAN SOLICITORS,07/01/2015,"1,492.30"
Children's Safeguarding & Specialist Services,Children in Care & Fostering,JCAB,Supplies & Services,Supportive Lodgings,Above N beyond Limited,23/01/2015,"1,464.33"
Children's Safeguarding & Specialist Services,Children in Care & Fostering,JCAB,Transfer Payments,Leaving Care Grant,ARGOS BUSINESS SOLUTIONS,29/01/2015,291.66
Children's Safeguarding & Specialist Services,Children in Care & Fostering,JCAB,Supplies & Services,Printing - Print Room,BADGER PRINT,05/01/2015,199.00
Children's Safeguarding & Specialist Services,Children in Care & Fostering,JCAB,Supplies & Services,Supportive Lodgings,Carefirst Services Limited,05/01/2015,270.00
Children's Safeguarding & Specialist Services,Children in Care & Fostering,JCAB,Supplies & Services,Supportive Lodgings,Carefirst Services Limited,05/01/2015,773.60
Children's Safeguarding & Specialist Services,Children in Care & Fostering,JCAB,Supplies & Services,Supportive Lodgings,Carefirst Services Limited,28/01/2015,622.18
Children's Safeguarding & Specialist Services,Children in Care & Fostering,JCAB,Supplies & Services,Supportive Lodgings,Carefirst Services Limited,29/01/2015,"1,435.80"
Children's Safeguarding & Specialist Services,Children in Care & Fostering,JCAB,Supplies & Services,Supportive Lodgings,Carefirst Services Limited,29/01/2015,"1,483.66"
Children's Safeguarding & Specialist Services,Children in Care & Fostering,JCAB,Supplies & Services,CL - Basic Allowance,Carefirst Services Limited,23/01/2015,286.75
Children's Safeguarding & Specialist Services,Children in Care & Fostering,JCAB,Supplies & Services,CL - Travel Costs,IMPACTING LIVES LIMITED,05/01/2015,252.00
Children's Safeguarding & Specialist Services,Children in Care & Fostering,JCAB,Supplies & Services,CL - Basic Allowance,IMPACTING LIVES LIMITED,05/01/2015,229.40
Children's Safeguarding & Specialist Services,Children in Care & Fostering,JCAB,Supplies & Services,CL - Basic Allowance,IMPACTING LIVES LIMITED,05/01/2015,229.40
Children's Safeguarding & Specialist Services,Children in Care & Fostering,JCAB,Transfer Payments,Leaving Care Grant,IPS Estates,09/01/2015,470.00
Children's Safeguarding & Specialist Services,Children in Care & Fostering,JCAB,Supplies & Services,Supportive Lodgings,Keys 16 Plus ILS Ltd,20/01/2015,"1,599.92"
Children's Safeguarding & Specialist Services,Children in Care & Fostering,JCAB,Supplies & Services,Supportive Lodgings,Keys 16 Plus ILS Ltd,26/01/2015,"1,086.41"
Children's Safeguarding & Specialist Services,Children in Care & Fostering,JCAB,Supplies & Services,Supportive Lodgings,LEAVING CARE COMPANY,23/01/2015,"1,107.14"
Children's Safeguarding & Specialist Services,Children in Care & Fostering,JCAB,Supplies & Services,Supportive Lodgings,LEAVING CARE COMPANY,05/01/2015,"1,107.14"
Children's Safeguarding & Specialist Services,Children in Care & Fostering,JCAB,Supplies & Services,Supportive Lodgings,LEAVING CARE COMPANY,20/01/2015,"1,372.86"
Children's Safeguarding & Specialist Services,Children in Care & Fostering,JCAB,Supplies & Services,CL - Basic Allowance,LEAVING CARE COMPANY,05/01/2015,253.98
Children's Safeguarding & Specialist Services,Children in Care & Fostering,JCAB,Supplies & Services,Supportive Lodgings,NEXT STEP CARE MANAGEMENT LTD,05/01/2015,"1,328.66"
Children's Safeguarding & Specialist Services,Children in Care & Fostering,JCAB,Supplies & Services,Supportive Lodgings,NEXT STEP CARE MANAGEMENT LTD,26/01/2015,"1,328.66"
Children's Safeguarding & Specialist Services,Children in Care & Fostering,JCAB,Supplies & Services,Supportive Lodgings,NEXT STEP CARE MANAGEMENT LTD,27/01/2015,532.14
Children's Safeguarding & Specialist Services,Children in Care & Fostering,JCAB,Supplies & Services,CL - Basic Allowance,NEXT STEP CARE MANAGEMENT LTD,05/01/2015,229.20
Children's Safeguarding & Specialist Services,Children in Care & Fostering,JCAB,Supplies & Services,Supportive Lodgings,REDACTED PERSONAL INFORMATION,09/01/2015,200.00
Children's Safeguarding & Specialist Services,Children in Care & Fostering,JCAB,Supplies & Services,Supportive Lodgings,REDACTED PERSONAL INFORMATION,16/01/2015,257.13
Children's Safeguarding & Specialist Services,Children in Care & Fostering,JCAB,Supplies & Services,Staying put Payments,SAAIL,15/01/2015,734.08
Children's Safeguarding & Specialist Services,Children in Care & Fostering,JCAB,Supplies & Services,Staying put Payments,SAAIL,15/01/2015,710.40
Children's Safeguarding & Specialist Services,Children in Care & Fostering,JCAB,Supplies & Services,Staying put Payments,SAAIL,15/01/2015,165.76
Children's Safeguarding & Specialist Services,Children in Care & Fostering,JCAB,Supplies & Services,CL - Basic Allowance,SAAIL,05/01/2015,229.40
Children's Safeguarding & Specialist Services,Children in Care & Fostering,JCAB,Supplies & Services,Supportive Lodgings,Salop Lets,23/01/2015,606.00
Children's Safeguarding & Specialist Services,Children in Care & Fostering,JCAB,Supplies & Services,Supportive Lodgings,Salop Lets,05/01/2015,"1,400.00"
Children's Safeguarding & Specialist Services,Children in Care & Fostering,JCAB,Supplies & Services,Supportive Lodgings,STAY TELFORD XC SUPPORTED HOUSE,19/01/2015,914.90
Children's Safeguarding & Specialist Services,Children in Care & Fostering,JCAB,Supplies & Services,Supportive Lodgings,STAY TELFORD XC SUPPORTED HOUSE,19/01/2015,914.90
Children's Safeguarding & Specialist Services,Children in Care & Fostering,JCAB,Supplies & Services,Supportive Lodgings,STAY TELFORD XC SUPPORTED HOUSE,20/01/2015,839.00
Children's Safeguarding & Specialist Services,Children in Care & Fostering,JCAB,Supplies & Services,Supportive Lodgings,STAY TELFORD XC SUPPORTED HOUSE,05/01/2015,"4,195.00"
Children's Safeguarding & Specialist Services,Children in Care & Fostering,JCAB,Supplies & Services,Supportive Lodgings,STAY TELFORD XC SUPPORTED HOUSE,27/01/2015,914.76
Children's Safeguarding & Specialist Services,Children in Care & Fostering,JCAB,Supplies & Services,Supportive Lodgings,STAY TELFORD XC SUPPORTED HOUSE,27/01/2015,541.80
Children's Safeguarding & Specialist Services,Children in Care & Fostering,JCAB,Supplies & Services,Supportive Lodgings,STAY TELFORD XC SUPPORTED HOUSE,27/01/2015,677.25
Children's Safeguarding & Specialist Services,Children in Care & Fostering,JCAB,Supplies & Services,Supportive Lodgings,STAY TELFORD XC SUPPORTED HOUSE,27/01/2015,809.10
Children's Safeguarding & Specialist Services,Children in Care & Fostering,JMAF,Third Party Payments,Interpreters Fees,PEARL LINGUISTICS LTD,13/01/2015,126.40
Children's Safeguarding & Specialist Services,Children in Care & Fostering,JMAF,Third Party Payments,Childminders,SMILEY FACES DAY NURSERIES LTD,23/01/2015,432.00
Children's Safeguarding & Specialist Services,Children in Care & Fostering,JMAF,Supplies & Services,Complaints,TELFORD & WREKIN CVS,23/01/2015,951.57
Children's Safeguarding & Specialist Services,Children in Care & Fostering,JPAD,Third Party Payments,External Foster Care Payments,ABC FOSTERING SERVICES LTD,22/01/2015,"6,000.00"
Children's Safeguarding & Specialist Services,Children in Care & Fostering,JPAD,Third Party Payments,External Foster Care Payments,ABC FOSTERING SERVICES LTD,22/01/2015,"6,200.00"
Children's Safeguarding & Specialist Services,Children in Care & Fostering,JPAD,Third Party Payments,External Foster Care Payments,ABC FOSTERING SERVICES LTD,29/01/2015,118.00
Children's Safeguarding & Specialist Services,Children in Care & Fostering,JPAD,Third Party Payments,External Foster Care Payments,ACTION FOR CHILDREN LIMITED,20/01/2015,"3,516.33"
Children's Safeguarding & Specialist Services,Children in Care & Fostering,JPAD,Third Party Payments,External Foster Care Payments,ACTION FOR CHILDREN LIMITED,20/01/2015,"3,516.33"
Children's Safeguarding & Specialist Services,Children in Care & Fostering,JPAD,Third Party Payments,External Foster Care Payments,By The Bridge,21/01/2015,"4,738.57"
Children's Safeguarding & Specialist Services,Children in Care & Fostering,JPAD,Third Party Payments,External Foster Care Payments,Childcare Bureau,20/01/2015,"4,130.75"
Children's Safeguarding & Specialist Services,Children in Care & Fostering,JPAD,Third Party Payments,External Foster Care Payments,Childcare Bureau,21/01/2015,"4,217.55"
Children's Safeguarding & Specialist Services,Children in Care & Fostering,JPAD,Third Party Payments,External Foster Care Payments,CLIFFORD HOUSE FOSTERING LTD,07/01/2015,"3,412.00"
Children's Safeguarding & Specialist Services,Children in Care & Fostering,JPAD,Third Party Payments,External Foster Care Payments,FAMILIES@FAMILYCARE,03/01/2015,"4,583.35"
Children's Safeguarding & Specialist Services,Children in Care & Fostering,JPAD,Third Party Payments,External Foster Care Payments,FAMILIES@FAMILYCARE,21/01/2015,"2,611.44"
Children's Safeguarding & Specialist Services,Children in Care & Fostering,JPAD,Third Party Payments,External Foster Care Payments,FAMILIES@FAMILYCARE,21/01/2015,"4,017.60"
Children's Safeguarding & Specialist Services,Children in Care & Fostering,JPAD,Third Party Payments,External Foster Care Payments,FAMILIES@FAMILYCARE,21/01/2015,"4,583.35"
Children's Safeguarding & Specialist Services,Children in Care & Fostering,JPAD,Third Party Payments,External Foster Care Payments,FOSTER CARE ASSOCIATES LTD,21/01/2015,"3,265.60"
Children's Safeguarding & Specialist Services,Children in Care & Fostering,JPAD,Third Party Payments,External Foster Care Payments,FOSTER CARE ASSOCIATES LTD,21/01/2015,"5,247.21"
Children's Safeguarding & Specialist Services,Children in Care & Fostering,JPAD,Third Party Payments,External Foster Care Payments,FOSTER CARE ASSOCIATES LTD,22/01/2015,"3,430.99"
Children's Safeguarding & Specialist Services,Children in Care & Fostering,JPAD,Third Party Payments,External Foster Care Payments,FOSTERING SOLUTIONS LTD,21/01/2015,"3,376.74"
Children's Safeguarding & Specialist Services,Children in Care & Fostering,JPAD,Third Party Payments,External Foster Care Payments,Foundation Fostering,20/01/2015,"3,596.00"
Children's Safeguarding & Specialist Services,Children in Care & Fostering,JPAD,Third Party Payments,External Foster Care Payments,HILLCREST CARE LTD,15/01/2015,874.00
Children's Safeguarding & Specialist Services,Children in Care & Fostering,JPAD,Third Party Payments,External Foster Care Payments,HILLCREST CARE LTD,21/01/2015,"3,210.71"
Children's Safeguarding & Specialist Services,Children in Care & Fostering,JPAD,Third Party Payments,External Foster Care Payments,HILLCREST CARE LTD,21/01/2015,"3,244.33"
Children's Safeguarding & Specialist Services,Children in Care & Fostering,JPAD,Third Party Payments,External Foster Care Payments,HILLCREST CARE LTD,20/01/2015,"2,635.00"
Children's Safeguarding & Specialist Services,Children in Care & Fostering,JPAD,Third Party Payments,External Foster Care Payments,HILLCREST CARE LTD,21/01/2015,"3,050.18"
Children's Safeguarding & Specialist Services,Children in Care & Fostering,JPAD,Third Party Payments,External Foster Care Payments,HILLCREST CARE LTD,21/01/2015,"3,050.18"
Children's Safeguarding & Specialist Services,Children in Care & Fostering,JPAD,Third Party Payments,External Foster Care Payments,HILLCREST CARE LTD,20/01/2015,"2,958.64"
Children's Safeguarding & Specialist Services,Children in Care & Fostering,JPAD,Third Party Payments,External Foster Care Payments,HILLCREST CARE LTD,09/01/2015,"3,050.09"
Children's Safeguarding & Specialist Services,Children in Care & Fostering,JPAD,Third Party Payments,External Foster Care Payments,HILLCREST CARE LTD,09/01/2015,"2,951.70"
Children's Safeguarding & Specialist Services,Children in Care & Fostering,JPAD,Third Party Payments,External Foster Care Payments,HILLCREST CARE LTD,21/01/2015,"5,247.86"
Children's Safeguarding & Specialist Services,Children in Care & Fostering,JPAD,Third Party Payments,External Foster Care Payments,HILLCREST CARE LTD,21/01/2015,"3,344.68"
Children's Safeguarding & Specialist Services,Children in Care & Fostering,JPAD,Third Party Payments,External Foster Care Payments,HILLCREST CARE LTD,21/01/2015,"3,077.86"
Children's Safeguarding & Specialist Services,Children in Care & Fostering,JPAD,Third Party Payments,External Foster Care Payments,HILLCREST CARE LTD,21/01/2015,"3,077.86"
Children's Safeguarding & Specialist Services,Children in Care & Fostering,JPAD,Third Party Payments,External Foster Care Payments,HILLCREST CARE LTD,21/01/2015,"3,244.33"
Children's Safeguarding & Specialist Services,Children in Care & Fostering,JPAD,Third Party Payments,External Foster Care Payments,HILLCREST CARE LTD,21/01/2015,"3,277.76"
Children's Safeguarding & Specialist Services,Children in Care & Fostering,JPAD,Third Party Payments,External Foster Care Payments,HILLCREST CARE LTD,21/01/2015,"3,344.68"
Children's Safeguarding & Specialist Services,Children in Care & Fostering,JPAD,Third Party Payments,External Foster Care Payments,HILLCREST CARE LTD,21/01/2015,"3,344.68"
Children's Safeguarding & Specialist Services,Children in Care & Fostering,JPAD,Third Party Payments,External Foster Care Payments,HILLCREST CARE LTD,21/01/2015,"3,277.81"
Children's Safeguarding & Specialist Services,Children in Care & Fostering,JPAD,Third Party Payments,External Foster Care Payments,HILLCREST CARE LTD,21/01/2015,"3,344.68"
Children's Safeguarding & Specialist Services,Children in Care & Fostering,JPAD,Third Party Payments,External Foster Care Payments,HILLCREST CARE LTD,21/01/2015,"3,244.33"
Children's Safeguarding & Specialist Services,Children in Care & Fostering,JPAD,Third Party Payments,External Foster Care Payments,HILLCREST CARE LTD,21/01/2015,"5,247.86"
Children's Safeguarding & Specialist Services,Children in Care & Fostering,JPAD,Third Party Payments,External Foster Care Payments,NATIONAL FOSTERING AGENCY,15/01/2015,"3,233.30"
Children's Safeguarding & Specialist Services,Children in Care & Fostering,JPAD,Third Party Payments,External Foster Care Payments,NATIONAL FOSTERING AGENCY,15/01/2015,"3,449.99"
Children's Safeguarding & Specialist Services,Children in Care & Fostering,JPAD,Third Party Payments,External Foster Care Payments,NATIONAL FOSTERING AGENCY,15/01/2015,"3,380.86"
Children's Safeguarding & Specialist Services,Children in Care & Fostering,JPAD,Third Party Payments,External Foster Care Payments,NATIONAL FOSTERING AGENCY,15/01/2015,"3,299.33"
Children's Safeguarding & Specialist Services,Children in Care & Fostering,JPAD,Third Party Payments,External Foster Care Payments,NATIONAL FOSTERING AGENCY,15/01/2015,"3,311.73"
Children's Safeguarding & Specialist Services,Children in Care & Fostering,JPAD,Third Party Payments,External Foster Care Payments,NATIONAL FOSTERING AGENCY,15/01/2015,"3,077.99"
Children's Safeguarding & Specialist Services,Children in Care & Fostering,JPAD,Third Party Payments,External Foster Care Payments,NATIONAL FOSTERING AGENCY,15/01/2015,"3,233.30"
Children's Safeguarding & Specialist Services,Children in Care & Fostering,JPAD,Third Party Payments,External Foster Care Payments,NATIONAL FOSTERING AGENCY,15/01/2015,"3,065.10"
Children's Safeguarding & Specialist Services,Children in Care & Fostering,JPAD,Third Party Payments,External Foster Care Payments,NATIONAL FOSTERING AGENCY,15/01/2015,102.17
Children's Safeguarding & Specialist Services,Children in Care & Fostering,JPAD,Third Party Payments,External Foster Care Payments,NATIONAL FOSTERING AGENCY,03/01/2015,938.70
Children's Safeguarding & Specialist Services,Children in Care & Fostering,JPAD,Third Party Payments,External Foster Care Payments,NATIONAL FOSTERING AGENCY,03/01/2015,957.87
Children's Safeguarding & Specialist Services,Children in Care & Fostering,JPAD,Third Party Payments,External Foster Care Payments,NATIONAL FOSTERING AGENCY,20/01/2015,104.30
Children's Safeguarding & Specialist Services,Children in Care & Fostering,JPAD,Third Party Payments,External Foster Care Payments,NATIONAL FOSTERING AGENCY,20/01/2015,109.06
Children's Safeguarding & Specialist Services,Children in Care & Fostering,JPAD,Third Party Payments,External Foster Care Payments,NATIONAL FOSTERING AGENCY,20/01/2015,106.43
Children's Safeguarding & Specialist Services,Children in Care & Fostering,JPAD,Third Party Payments,External Foster Care Payments,NATIONAL FOSTERING AGENCY,14/01/2015,"3,233.30"
Children's Safeguarding & Specialist Services,Children in Care & Fostering,JPAD,Third Party Payments,External Foster Care Payments,NATIONAL FOSTERING AGENCY,28/01/2015,"2,835.56"
Children's Safeguarding & Specialist Services,Children in Care & Fostering,JPAD,Third Party Payments,External Foster Care Payments,NATIONAL FOSTERING AGENCY,27/01/2015,"2,711.80"
Children's Safeguarding & Specialist Services,Children in Care & Fostering,JPAD,Third Party Payments,External Foster Care Payments,PARK FOSTER CARE,05/01/2015,"6,200.00"
Children's Safeguarding & Specialist Services,Children in Care & Fostering,JPAD,Third Party Payments,External Foster Care Payments,PARK FOSTER CARE,05/01/2015,"3,720.00"
Children's Safeguarding & Specialist Services,Children in Care & Fostering,JPAD,Third Party Payments,External Foster Care Payments,PARK FOSTER CARE,05/01/2015,"3,419.92"
Children's Safeguarding & Specialist Services,Children in Care & Fostering,JPAD,Third Party Payments,External Foster Care Payments,PARK FOSTER CARE,05/01/2015,"3,720.00"
Children's Safeguarding & Specialist Services,Children in Care & Fostering,JPAD,Third Party Payments,External Foster Care Payments,PARK FOSTER CARE,05/01/2015,"3,348.00"
Children's Safeguarding & Specialist Services,Children in Care & Fostering,JPAD,Third Party Payments,External Foster Care Payments,PHOENIX FOSTERING,20/01/2015,"6,532.01"
Children's Safeguarding & Specialist Services,Children in Care & Fostering,JPAD,Third Party Payments,External Foster Care Payments,PHOENIX FOSTERING,21/01/2015,"6,532.01"
Children's Safeguarding & Specialist Services,Children in Care & Fostering,JPAD,Third Party Payments,External Foster Care Payments,PHOENIX FOSTERING,20/01/2015,"5,878.84"
Children's Safeguarding & Specialist Services,Children in Care & Fostering,JPAD,Third Party Payments,External Foster Care Payments,PHOENIX FOSTERING,20/01/2015,"5,878.84"
Children's Safeguarding & Specialist Services,Children in Care & Fostering,JPAD,Third Party Payments,External Foster Care Payments,Prospects for Young People Ltd,20/01/2015,"3,609.33"
Children's Safeguarding & Specialist Services,Children in Care & Fostering,JPAD,Third Party Payments,External Foster Care Payments,Prospects for Young People Ltd,20/01/2015,"3,366.60"
Children's Safeguarding & Specialist Services,Children in Care & Fostering,JPAD,Third Party Payments,External Foster Care Payments,Prospects for Young People Ltd,21/01/2015,"3,604.99"
Children's Safeguarding & Specialist Services,Children in Care & Fostering,JPAD,Third Party Payments,External Foster Care Payments,RED KITE FOSTERING,15/01/2015,"5,380.71"
Children's Safeguarding & Specialist Services,Children in Care & Fostering,JPAD,Third Party Payments,External Foster Care Payments,SWIIS FOSTER CARE LTD,19/01/2015,872.63
Children's Safeguarding & Specialist Services,Children in Care & Fostering,JPAD,Third Party Payments,External Foster Care Payments,SWIIS FOSTER CARE LTD,19/01/2015,872.63
Children's Safeguarding & Specialist Services,Children in Care & Fostering,JPAD,Third Party Payments,External Foster Care Payments,SWIIS FOSTER CARE LTD,19/01/2015,872.63
Children's Safeguarding & Specialist Services,Children in Care & Fostering,JPAD,Third Party Payments,External Foster Care Payments,SWIIS FOSTER CARE LTD,19/01/2015,872.63
Children's Safeguarding & Specialist Services,Children in Care & Fostering,JPAD,Third Party Payments,External Foster Care Payments,SWIIS FOSTER CARE LTD,19/01/2015,872.63
Children's Safeguarding & Specialist Services,Children in Care & Fostering,JPAD,Third Party Payments,External Foster Care Payments,SWIIS FOSTER CARE LTD,20/01/2015,872.63
Children's Safeguarding & Specialist Services,Children in Care & Fostering,JPAD,Third Party Payments,External Foster Care Payments,SWIIS FOSTER CARE LTD,20/01/2015,872.63
Children's Safeguarding & Specialist Services,Children in Care & Fostering,JPAD,Third Party Payments,External Foster Care Payments,SWIIS FOSTER CARE LTD,20/01/2015,872.62
Children's Safeguarding & Specialist Services,Children in Care & Fostering,JPAD,Third Party Payments,External Foster Care Payments,SWIIS FOSTER CARE LTD,20/01/2015,872.63
Children's Safeguarding & Specialist Services,Children in Care & Fostering,JPAD,Third Party Payments,External Foster Care Payments,SWIIS FOSTER CARE LTD,05/01/2015,872.63
Children's Safeguarding & Specialist Services,Children in Care & Fostering,JPAD,Third Party Payments,External Foster Care Payments,SWIIS FOSTER CARE LTD,26/01/2015,872.63
Children's Safeguarding & Specialist Services,Children in Care & Fostering,JPAD,Third Party Payments,External Foster Care Payments,THE ADOLESCENT & CHILDRENS TRUST,19/01/2015,"3,003.90"
Children's Safeguarding & Specialist Services,Children in Care & Fostering,JPAN,Third Party Payments,Residential Expenditure,ABC CARE LTD,06/01/2015,"11,071.34"
Children's Safeguarding & Specialist Services,Children in Care & Fostering,JPAN,Third Party Payments,Residential Expenditure,BETTERCARE KEYS LTD,08/01/2015,"8,414.33"
Children's Safeguarding & Specialist Services,Children in Care & Fostering,JPAN,Third Party Payments,Residential Expenditure,BETTERCARE KEYS LTD,08/01/2015,"8,414.33"
Children's Safeguarding & Specialist Services,Children in Care & Fostering,JPAN,Third Party Payments,Residential Expenditure,BETTERCARE KEYS LTD,08/01/2015,"8,414.33"
Children's Safeguarding & Specialist Services,Children in Care & Fostering,JPAN,Third Party Payments,Residential Expenditure,BETTERCARE KEYS LTD,08/01/2015,"8,414.33"
Children's Safeguarding & Specialist Services,Children in Care & Fostering,JPAN,Third Party Payments,Residential Expenditure,CARE TODAY CHILDRENS SERVICES,15/01/2015,"12,407.10"
Children's Safeguarding & Specialist Services,Children in Care & Fostering,JPAN,Third Party Payments,Residential Expenditure,HENLLAN BREAD (UK) LIMITED,29/01/2015,"17,105.36"
Children's Safeguarding & Specialist Services,Children in Care & Fostering,JPAN,Third Party Payments,Residential Expenditure,HORIZON CARE & EDUCATION GROUP LTD,20/01/2015,"13,064.33"
Children's Safeguarding & Specialist Services,Children in Care & Fostering,JPAN,Third Party Payments,Residential Expenditure,KEYS CHILDCARE LTD,19/01/2015,750.00
Children's Safeguarding & Specialist Services,Children in Care & Fostering,JPAN,Third Party Payments,Residential Expenditure,KEYS CHILDCARE LTD,20/01/2015,"11,071.34"
Children's Safeguarding & Specialist Services,Children in Care & Fostering,JPAN,Third Party Payments,Residential Expenditure,KEYS CHILDCARE LTD,20/01/2015,"11,691.34"
Children's Safeguarding & Specialist Services,Children in Care & Fostering,JPAN,Third Party Payments,Residential Expenditure,MGM CARE SERVICES LTD,29/01/2015,"11,957.01"
Children's Safeguarding & Specialist Services,Children in Care & Fostering,JPAN,Third Party Payments,External Foster Care Payments,NATIONAL FOSTERING AGENCY,03/01/2015,981.54
Children's Safeguarding & Specialist Services,Children in Care & Fostering,JPAN,Third Party Payments,Residential Expenditure,NEW HORIZONS CHILD CARE LTD,29/01/2015,"-5,357.10"
Children's Safeguarding & Specialist Services,Children in Care & Fostering,JPAN,Third Party Payments,Residential Expenditure,PRESTIGE ADOLESCENT CARE & EDUCATION,23/01/2015,"11,071.34"
Children's Safeguarding & Specialist Services,Children in Care & Fostering,JPAN,Third Party Payments,Residential Expenditure,SUNFIELD CHILDRENS HOMES LTD,20/01/2015,"15,691.17"
Children's Safeguarding & Specialist Services,Children in Care & Fostering,JPAN,Third Party Payments,Residential Expenditure,Unity Residential Care Services Ltd,21/01/2015,"10,520.00"
Children's Safeguarding & Specialist Services,Children in Care & Fostering,JPAN,Third Party Payments,Residential Expenditure,Unity Residential Care Services Ltd,20/01/2015,"10,520.00"
Children's Safeguarding & Specialist Services,Children in Care & Fostering,JPAN,Third Party Payments,Residential Expenditure,Unity Residential Care Services Ltd,20/01/2015,"10,520.00"
Children's Safeguarding & Specialist Services,Children in Care & Fostering,JPAN,Third Party Payments,Residential Expenditure,Unity Residential Care Services Ltd,20/01/2015,"6,720.00"
Children's Safeguarding & Specialist Services,Children in Care & Fostering,JPAN,Third Party Payments,Residential Expenditure,Unity Residential Care Services Ltd,05/01/2015,"6,720.00"
Children's Safeguarding & Specialist Services,Children in Care & Fostering,JPAN,Third Party Payments,Residential Expenditure,Unity Residential Care Services Ltd,05/01/2015,"10,520.00"
Children's Safeguarding & Specialist Services,Children in Care & Fostering,JPAN,Third Party Payments,Residential Expenditure,YOUNG OPTIONS COLLEGE LTD,21/01/2015,"17,085.43"
Children's Safeguarding & Specialist Services,Children in Care & Fostering,JPAN,Third Party Payments,Residential Expenditure,Young Options Pathways Stoke,20/01/2015,"17,085.43"
Children's Safeguarding & Specialist Services,Children Specialist Services,GEAR,Supplies & Services,Other Grants (Expenses),CHILDCARE SOS,06/01/2015,206.11
Children's Safeguarding & Specialist Services,Children Specialist Services,GEAR,Supplies & Services,Other Grants (Expenses),EDGMOND OWLS ,06/01/2015,618.33
Children's Safeguarding & Specialist Services,Children Specialist Services,GEAR,Supplies & Services,Other Grants (Expenses),HADLEY UNDER 5'S,06/01/2015,206.11
Children's Safeguarding & Specialist Services,Children Specialist Services,GPAA,Employees,Course Fees,FAMILY FUTURES,29/01/2015,"2,090.00"
Children's Safeguarding & Specialist Services,Children Specialist Services,GPAA,Supplies & Services,Other Services,GL Education Group,06/01/2015,465.00
Children's Safeguarding & Specialist Services,Children Specialist Services,GPAA,Supplies & Services,Other Services,PEARSON EDUCATIONAL,06/01/2015,228.50
Children's Safeguarding & Specialist Services,Children Specialist Services,GPAA,Supplies & Services,Other Services,PEARSON EDUCATIONAL ,30/01/2015,411.00
Children's Safeguarding & Specialist Services,Children Specialist Services,HDAB,Transport-Related Expenditure,Travelling Expenses General,ARRIVA MIDLANDS NORTH LIMITED,13/01/2015,610.00
Children's Safeguarding & Specialist Services,Children Specialist Services,HDAF,Third Party Payments,Private Contractors,ACTION FOR CHILDREN LIMITED,13/01/2015,"5,130.00"
Children's Safeguarding & Specialist Services,Children Specialist Services,HDAG,Supplies & Services,Aids & Appliances,Easylink,27/01/2015,124.96
Children's Safeguarding & Specialist Services,Children Specialist Services,HDAG,Supplies & Services,Aids & Appliances,G & S SMIRTHWAITE LTD,29/01/2015,470.00
Children's Safeguarding & Specialist Services,Children Specialist Services,HDAG,Supplies & Services,Aids & Appliances,G & S SMIRTHWAITE LTD,23/01/2015,108.00
Children's Safeguarding & Specialist Services,Children Specialist Services,HDAG,Supplies & Services,Aids & Appliances,HILL-ROM LTD,06/01/2015,193.08
Children's Safeguarding & Specialist Services,Children Specialist Services,HDAG,Supplies & Services,Aids & Appliances,JENX LIMITED,21/01/2015,"1,783.00"
Children's Safeguarding & Specialist Services,Children Specialist Services,HDAJ,Supplies & Services,Other Services,Direct Health Homecare Limited,26/01/2015,255.52
Children's Safeguarding & Specialist Services,Children Specialist Services,HDAJ,Supplies & Services,Other Services,Direct Health Homecare Limited,26/01/2015,118.24
Children's Safeguarding & Specialist Services,Children Specialist Services,HDAJ,Third Party Payments,Agency Services,Direct Health Homecare Limited,26/01/2015,118.24
Children's Safeguarding & Specialist Services,Children Specialist Services,HDAJ,Third Party Payments,Agency Services,Direct Health Homecare Limited,13/01/2015,123.20
Children's Safeguarding & Specialist Services,Children Specialist Services,HDAJ,Third Party Payments,Agency Services,Direct Health Homecare Limited,26/01/2015,225.27
Children's Safeguarding & Specialist Services,Children Specialist Services,HDAJ,Third Party Payments,Agency Services,Direct Health Homecare Limited,26/01/2015,177.36
Children's Safeguarding & Specialist Services,Children Specialist Services,HDAJ,Third Party Payments,Agency Services,Direct Health Homecare Limited,26/01/2015,147.80
Children's Safeguarding & Specialist Services,Children Specialist Services,HDAJ,Supplies & Services,Other Services,NESTOR PRIMECARE SERVICES LTD T/A ALLIED HEALTHCARE,21/01/2015,121.40
Children's Safeguarding & Specialist Services,Children Specialist Services,HDAJ,Supplies & Services,Other Services,NESTOR PRIMECARE SERVICES LTD T/A ALLIED HEALTHCARE,21/01/2015,193.92
Children's Safeguarding & Specialist Services,Children Specialist Services,HDAJ,Supplies & Services,Other Services,NESTOR PRIMECARE SERVICES LTD T/A ALLIED HEALTHCARE,26/01/2015,137.89
Children's Safeguarding & Specialist Services,Children Specialist Services,HDAJ,Supplies & Services,Other Services,NESTOR PRIMECARE SERVICES LTD T/A ALLIED HEALTHCARE,26/01/2015,131.93
Children's Safeguarding & Specialist Services,Children Specialist Services,HDAJ,Supplies & Services,Other Services,NESTOR PRIMECARE SERVICES LTD T/A ALLIED HEALTHCARE,26/01/2015,125.52
Children's Safeguarding & Specialist Services,Children Specialist Services,HDAJ,Third Party Payments,Agency Services,NESTOR PRIMECARE SERVICES LTD T/A ALLIED HEALTHCARE,26/01/2015,109.40
Children's Safeguarding & Specialist Services,Children Specialist Services,HDAJ,Third Party Payments,Agency Services,NESTOR PRIMECARE SERVICES LTD T/A ALLIED HEALTHCARE,26/01/2015,109.86
Children's Safeguarding & Specialist Services,Children Specialist Services,HDAJ,Third Party Payments,Agency Services,NESTOR PRIMECARE SERVICES LTD T/A ALLIED HEALTHCARE,13/01/2015,466.54
Children's Safeguarding & Specialist Services,Children Specialist Services,HDAJ,Third Party Payments,Agency Services,NESTOR PRIMECARE SERVICES LTD T/A ALLIED HEALTHCARE,13/01/2015,191.84
Children's Safeguarding & Specialist Services,Children Specialist Services,HDAJ,Third Party Payments,Agency Services,NESTOR PRIMECARE SERVICES LTD T/A ALLIED HEALTHCARE,13/01/2015,491.94
Children's Safeguarding & Specialist Services,Children Specialist Services,HDAJ,Third Party Payments,Agency Services,NESTOR PRIMECARE SERVICES LTD T/A ALLIED HEALTHCARE,13/01/2015,247.99
Children's Safeguarding & Specialist Services,Children Specialist Services,HDAJ,Third Party Payments,Agency Services,NESTOR PRIMECARE SERVICES LTD T/A ALLIED HEALTHCARE,13/01/2015,116.13
Children's Safeguarding & Specialist Services,Children Specialist Services,HDAJ,Third Party Payments,Agency Services,NESTOR PRIMECARE SERVICES LTD T/A ALLIED HEALTHCARE,13/01/2015,409.66
Children's Safeguarding & Specialist Services,Children Specialist Services,HDAJ,Third Party Payments,Agency Services,NESTOR PRIMECARE SERVICES LTD T/A ALLIED HEALTHCARE,13/01/2015,262.53
Children's Safeguarding & Specialist Services,Children Specialist Services,HDAJ,Third Party Payments,Agency Services,NESTOR PRIMECARE SERVICES LTD T/A ALLIED HEALTHCARE,13/01/2015,526.10
Children's Safeguarding & Specialist Services,Children Specialist Services,HDAJ,Third Party Payments,Agency Services,NESTOR PRIMECARE SERVICES LTD T/A ALLIED HEALTHCARE,26/01/2015,546.03
Children's Safeguarding & Specialist Services,Children Specialist Services,HDAJ,Third Party Payments,Agency Services,NESTOR PRIMECARE SERVICES LTD T/A ALLIED HEALTHCARE,21/01/2015,104.92
Children's Safeguarding & Specialist Services,Children Specialist Services,HDAJ,Third Party Payments,Agency Services,NESTOR PRIMECARE SERVICES LTD T/A ALLIED HEALTHCARE,26/01/2015,179.16
Children's Safeguarding & Specialist Services,Children Specialist Services,HDAJ,Third Party Payments,Agency Services,NESTOR PRIMECARE SERVICES LTD T/A ALLIED HEALTHCARE,26/01/2015,112.57
Children's Safeguarding & Specialist Services,Children Specialist Services,HDAJ,Third Party Payments,Agency Services,WE ARE THE CARE COMPANY LTD,13/01/2015,184.00
Children's Safeguarding & Specialist Services,Children Specialist Services,HDAK,Transport-Related Expenditure,Mileage,CENTRAL TAXIS LTD T/A GO CARZ (01732196,07/01/2015,149.50
Children's Safeguarding & Specialist Services,Children Specialist Services,HDAK,Transport-Related Expenditure,Mileage,CENTRAL TAXIS LTD T/A GO CARZ (01732196,29/01/2015,158.50
Children's Safeguarding & Specialist Services,Children Specialist Services,HDAK,Income,Fees & Charges General,DASH,29/01/2015,"9,950.00"
Children's Safeguarding & Specialist Services,Children Specialist Services,HDAK,Third Party Payments,Agency Services,Direct Health Homecare Limited,07/01/2015,133.02
Children's Safeguarding & Specialist Services,Children Specialist Services,HDAK,Third Party Payments,Agency Services,Direct Health Homecare Limited,07/01/2015,191.64
Children's Safeguarding & Specialist Services,Children Specialist Services,HDAK,Third Party Payments,Agency Services,Direct Health Homecare Limited,07/01/2015,255.52
Children's Safeguarding & Specialist Services,Children Specialist Services,HDAK,Third Party Payments,Agency Services,Direct Health Homecare Limited,07/01/2015,177.36
Children's Safeguarding & Specialist Services,Children Specialist Services,HDAK,Third Party Payments,Agency Services,Direct Health Homecare Limited,29/01/2015,191.64
Children's Safeguarding & Specialist Services,Children Specialist Services,HDAK,Third Party Payments,Agency Services,Direct Health Homecare Limited,29/01/2015,177.36
Children's Safeguarding & Specialist Services,Children Specialist Services,HDAK,Third Party Payments,Agency Services,NESTOR PRIMECARE SERVICES LTD T/A ALLIED HEALTHCARE,07/01/2015,271.47
Children's Safeguarding & Specialist Services,Children Specialist Services,HDAK,Third Party Payments,Agency Services,NESTOR PRIMECARE SERVICES LTD T/A ALLIED HEALTHCARE,07/01/2015,277.16
Children's Safeguarding & Specialist Services,Children Specialist Services,HDAK,Third Party Payments,Agency Services,NESTOR PRIMECARE SERVICES LTD T/A ALLIED HEALTHCARE,07/01/2015,134.93
Children's Safeguarding & Specialist Services,Children Specialist Services,HDAK,Third Party Payments,Agency Services,NESTOR PRIMECARE SERVICES LTD T/A ALLIED HEALTHCARE,29/01/2015,215.75
Children's Safeguarding & Specialist Services,Children Specialist Services,HDAK,Third Party Payments,Agency Services,NESTOR PRIMECARE SERVICES LTD T/A ALLIED HEALTHCARE,29/01/2015,175.01
Children's Safeguarding & Specialist Services,Children Specialist Services,HDAK,Third Party Payments,Agency Services,NESTOR PRIMECARE SERVICES LTD T/A ALLIED HEALTHCARE,29/01/2015,113.18
Children's Safeguarding & Specialist Services,Children Specialist Services,JSAA,Third Party Payments,Interpreters Fees,PEARL LINGUISTICS LTD,13/01/2015,282.38
Children's Safeguarding & Specialist Services,Children Specialist Services,KNAA,Third Party Payments,Agency Services,LIVABILITY,22/01/2015,"6,459.00"
Children's Safeguarding & Specialist Services,Children Specialist Services,KNAA,Third Party Payments,Residential Expenditure,The National Teaching & Advisory Service,22/01/2015,"1,334.00"
Children's Safeguarding & Specialist Services,Children Specialist Services,KNAA,Third Party Payments,Residential Expenditure,The National Teaching & Advisory Service,22/01/2015,822.00
Children's Safeguarding & Specialist Services,Children Specialist Services,KNAA,Third Party Payments,Residential Expenditure,The National Teaching & Advisory Service,22/01/2015,"2,142.00"
Children's Safeguarding & Specialist Services,Children Specialist Services,KNAA,Third Party Payments,Residential Expenditure,The National Teaching & Advisory Service,22/01/2015,132.00
Children's Safeguarding & Specialist Services,Children Specialist Services,KNAC,Third Party Payments,Residential Expenditure,DUDLEY METROPOLITAN BOROUGH COUNCIL,22/01/2015,"12,041.25"
Children's Safeguarding & Specialist Services,Children Specialist Services,KNAC,Third Party Payments,Pre School Playgroups,WOLVERHAMPTON CITY COUNCIL,22/01/2015,"12,705.61"
Children's Safeguarding & Specialist Services,Children Specialist Services,KNAC,Third Party Payments,Pre School Playgroups,WORCESTERSHIRE COUNTY COUNCIL,05/01/2015,"2,147.66"
Children's Safeguarding & Specialist Services,Children Specialist Services,KNAJ,Supplies & Services,Equipment - Purchase,CONNEVANS LIMITED,30/01/2015,264.50
Children's Safeguarding & Specialist Services,Children Specialist Services,KNAJ,Supplies & Services,Equipment - Purchase,SOUNDBYTE SOLUTIONS (UK) LTD,20/01/2015,130.00
Co-Operative Council,Community Engagement & Voluntary Sector,MCAE,Supplies & Services,Grants To Voluntary Organis,WELLINGTON MUSLIM FC,26/01/2015,350.00
Co-Operative Council,Community Engagement & Voluntary Sector,MCAE,Supplies & Services,Grants To Voluntary Organis,WROCKWARDINE PARISH COUNCIL 20327446,12/01/2015,"1,268.00"
Co-Operative Council,Community Engagement & Voluntary Sector,WECF,Capital Expenditure,Other Capital Expenditure,Bowring Bowls and Social Club,29/01/2015,"5,650.00"
Co-Operative Council,Community Engagement & Voluntary Sector,WECF,Capital Expenditure,Other Capital Expenditure,HOLLINSWOOD & RANDLAY PARISH COUNCIL,09/01/2015,"17,500.00"
Co-Operative Council,Community Engagement & Voluntary Sector,WECF,Capital Expenditure,Other Capital Expenditure,Longdon upon Tern Village Hall,22/01/2015,"12,450.00"
Co-Operative Council,Community Engagement & Voluntary Sector,WECF,Capital Expenditure,Other Capital Expenditure,NEWPORT COTTAGE CARE CENTRE,09/01/2015,"5,000.00"
Co-Operative Council,Community Engagement & Voluntary Sector,WECF,Capital Expenditure,Other Capital Expenditure,Newport Men's Shed,14/01/2015,"8,464.00"
Co-Operative Council,Community Engagement & Voluntary Sector,WECF,Capital Expenditure,Other Capital Expenditure,Shropshire Deaf and Hard of Hearing Forum,14/01/2015,"2,600.00"
Co-Operative Council,Community Engagement & Voluntary Sector,WECF,Capital Expenditure,Other Capital Expenditure,Sutton Hill Village Green,20/01/2015,"8,856.00"
Co-Operative Council,Community Engagement & Voluntary Sector,WECF,Capital Expenditure,Other Capital Expenditure,TELFORD & WREKIN CITIZENS ADVICE BUREAU,29/01/2015,"11,660.00"
Co-Operative Council,Community Engagement & Voluntary Sector,WECF,Capital Expenditure,Other Capital Expenditure,The Hub,14/01/2015,"2,445.11"
Co-Operative Council,Corporate Communications,MMAD,Employees,Recruitment Advertising,TES GLOBAL LTD ,09/01/2015,787.50
Co-Operative Council,Corporate Communications,MMAD,Employees,Recruitment Advertising,TES GLOBAL LTD ,16/01/2015,787.50
Co-Operative Council,Corporate Communications,MMAD,Employees,Recruitment Advertising,THE MIDLAND NEWS ASSOCIATION LTD,19/01/2015,624.37
Co-Operative Council,Corporate Communications,MMAD,Employees,Recruitment Advertising,THE MIDLAND NEWS ASSOCIATION LTD,19/01/2015,624.37
Co-Operative Council,Corporate Core,MHAA,Supplies & Services,Conference Expenses,EMAP LIMITED,13/01/2015,"2,100.00"
Co-Operative Council,Policy & Strategy,WCCH,Capital Expenditure,Payments to Contractor,IZEN Energy Systems,23/01/2015,"568,512.30"
Co-Operative Council,Policy & Strategy,WCCH,Capital Expenditure,Payments to Contractor,IZEN Energy Systems,06/01/2015,"443,545.20"
Co-Operative Council,Policy & Strategy,WCCH,Capital Expenditure,Payments to Contractor,IZEN Energy Systems,07/01/2015,"1,034,938.80"
Customer Services,ALD Services,HLBB,Supplies & Services,Provisions,G N BADLEY & SONS,30/01/2015,220.28
Customer Services,ALD Services,HLBB,Supplies & Services,Laundry & Towel Hire,PHS GROUP LTD,22/01/2015,305.60
Customer Services,ALD Services,HLBC,Premises-Related Expenditure,Hire Of Rooms,1ST PRIORSLEE & ST GEORGES SCOUT GROUP,22/01/2015,120.00
Customer Services,ALD Services,HLBC,Supplies & Services,Provisions,BIKOLD,22/01/2015,115.73
Customer Services,ALD Services,HLBC,Supplies & Services,Provisions,BIKOLD,05/01/2015,236.47
Customer Services,ALD Services,HLBC,Supplies & Services,Equipment - Purchase,CARE & MOBILITY (MIDLANDS) LTD,30/01/2015,323.62
Customer Services,ALD Services,HLBC,Supplies & Services,Equipment - Repair,CUSTOM GROUP LTD,06/01/2015,127.88
Customer Services,ALD Services,HLBC,Supplies & Services,Laundry & Towel Hire,PHS GROUP LTD,19/01/2015,114.24
Customer Services,ALD Services,HLBC,Supplies & Services,Laundry & Towel Hire,PHS GROUP LTD,06/01/2015,439.68
Customer Services,ALD Services,HLBC,Supplies & Services,Equipment - Hire,SWIFT SKIP HIRE,22/01/2015,300.00
Customer Services,ALD Services,HLDB,Supplies & Services,Furniture - Purchase,(Scun) Complete Office Solutions,19/01/2015,"1,800.00"
Customer Services,ALD Services,HLDB,Supplies & Services,Equipment - Hire,SWIFT SKIP HIRE,06/01/2015,150.00
Customer Services,ALD Services,HLDB,Supplies & Services,Items For Resale,TELFORD TIMBER SUPPLIES,05/01/2015,200.00
Customer Services,ALD Services,HLDB,Supplies & Services,Items For Resale,TELFORD TIMBER SUPPLIES,26/01/2015,534.00
Customer Services,ALD Services,HLDC,Supplies & Services,Postages,ROYAL MAIL GROUP LTD,19/01/2015,120.00
Customer Services,ALD Services,HLEB,Employees,Agency Supply Costs,AMG NURSING & CARE SERVICES,22/01/2015,272.22
Customer Services,ALD Services,HLEB,Supplies & Services,Equipment - Purchase,CARESHOP,29/01/2015,226.80
Customer Services,ALD Services,HLEB,Employees,Training Expenses,FORUM BUSINESS MEDIA,20/01/2015,119.99
Customer Services,ALD Services,HLEB,Supplies & Services,Equipment - Purchase,THE CONSORTIUM FOR PURCHASING & DISTRIBUTION LTD T/A WEST MERCIA SUPPLIES,29/01/2015,314.09
Customer Services,ALD Services,HLEC,Supplies & Services,Equipment - Purchase,CARESHOP,30/01/2015,166.20
Customer Services,ALD Services,HLEC,Capital Financing Costs,Leased Equipment,LEX AUTOLEASE LTD,22/01/2015,500.14
Customer Services,ALD Services,HLEC,Capital Financing Costs,Leased Equipment,LEX AUTOLEASE LTD,30/01/2015,500.14
Customer Services,ALD Services,HLEC,Capital Financing Costs,Leased Equipment,RICOH UK LIMITED,30/01/2015,347.32
Customer Services,ALD Services,HLED,Premises-Related Expenditure,Gas,NPOWER  GAS,13/01/2015,170.32
Customer Services,ALD Services,HLED,Premises-Related Expenditure,Electricity,SCOTTISH POWER PLC,05/01/2015,263.15
Customer Services,ALD Services,HLEG,Supplies & Services,Respite Care,REDACTED PERSONAL INFORMATION,19/01/2015,148.12
Customer Services,ALD Services,HLEG,Supplies & Services,Respite Care,REDACTED PERSONAL INFORMATION,16/01/2015,493.70
Customer Services,ALD Services,HLEG,Supplies & Services,Respite Care,REDACTED PERSONAL INFORMATION,16/01/2015,493.70
Customer Services,Benefits,LRSF,Payments,Crisis Assistance Awards,A W HOLDINGS,12/01/2015,175.00
Customer Services,Benefits,LRSF,Payments,Crisis Assistance Awards,A W HOLDINGS,30/01/2015,330.00
Customer Services,Benefits,LRSF,Payments,Crisis Assistance Awards,DAWLEY BARGAIN CENTRE,12/01/2015,475.00
Customer Services,Benefits,LRSF,Payments,Crisis Assistance Awards,DAWLEY BARGAIN CENTRE,12/01/2015,110.00
Customer Services,Benefits,LRSF,Payments,Crisis Assistance Awards,DAWLEY BARGAIN CENTRE,05/01/2015,145.00
Customer Services,Benefits,LRSF,Payments,Crisis Assistance Awards,DAWLEY BARGAIN CENTRE,14/01/2015,185.00
Customer Services,Benefits,LRSF,Payments,Crisis Assistance Awards,DAWLEY BARGAIN CENTRE,21/01/2015,280.00
Customer Services,Benefits,LRSF,Payments,Crisis Assistance Awards,DAWLEY BARGAIN CENTRE,21/01/2015,250.00
Customer Services,Benefits,LRSF,Payments,Crisis Assistance Awards,DAWLEY BARGAIN CENTRE,21/01/2015,225.00
Customer Services,Benefits,LRSF,Payments,Crisis Assistance Awards,DAWLEY BARGAIN CENTRE,21/01/2015,285.00
Customer Services,Benefits,LRSF,Payments,Crisis Assistance Awards,DAWLEY BARGAIN CENTRE,21/01/2015,115.00
Customer Services,Benefits,LRSF,Payments,Crisis Assistance Awards,DAWLEY BARGAIN CENTRE,21/01/2015,180.00
Customer Services,Benefits,LRSF,Payments,Crisis Assistance Awards,DAWLEY BARGAIN CENTRE,23/01/2015,240.00
Customer Services,Benefits,LRSF,Payments,Crisis Assistance Awards,DAWLEY BARGAIN CENTRE,23/01/2015,375.00
Customer Services,Benefits,LRSF,Payments,Crisis Assistance Awards,DAWLEY BARGAIN CENTRE,23/01/2015,185.00
Customer Services,Benefits,LRSF,Payments,Crisis Assistance Awards,DAWLEY BARGAIN CENTRE,21/01/2015,135.00
Customer Services,Benefits,LRSF,Payments,Crisis Assistance Awards,DAWLEY BARGAIN CENTRE,21/01/2015,210.00
Customer Services,Benefits,LRSF,Payments,Crisis Assistance Awards,DAWLEY BARGAIN CENTRE,30/01/2015,230.00
Customer Services,Benefits,LRSF,Payments,Crisis Assistance Awards,DAWLEY BARGAIN CENTRE,30/01/2015,325.00
Customer Services,Benefits,LRSF,Payments,Crisis Assistance Awards,DAWLEY BARGAIN CENTRE,30/01/2015,335.00
Customer Services,Benefits,LRSF,Payments,Crisis Assistance Awards,DAWLEY BARGAIN CENTRE,30/01/2015,255.00
Customer Services,Benefits,LRSF,Payments,Crisis Assistance Awards,DAWLEY BARGAIN CENTRE,30/01/2015,255.00
Customer Services,Benefits,LRSF,Payments,Crisis Assistance Awards,PayPoint Network Limited,08/01/2015,345.00
Customer Services,Benefits,LRSF,Payments,Crisis Assistance Awards,PayPoint Network Limited,19/01/2015,602.00
Customer Services,Benefits,LRSF,Payments,Crisis Assistance Awards,PayPoint Network Limited,21/01/2015,665.00
Customer Services,Benefits,LRSF,Payments,Crisis Assistance Awards,PayPoint Network Limited,28/01/2015,"1,105.00"
Customer Services,Benefits,LRTC,Supplies & Services,Fees,ESP Systex,19/01/2015,451.98
Customer Services,Benefits,LRTC,Employees,Professional Subs,IRRV,05/01/2015,525.00
Customer Services,Benefits,LRTC,Employees,Professional Subs,IRRV,29/01/2015,154.00
Customer Services,Benefits,LRTC,Supplies & Services,Stationery,NORTHGATE INFORMATION SOLUTIONS UK LTD,23/01/2015,738.61
Customer Services,Benefits,LRTC,Supplies & Services,Comp Software (Purch / Hire),SYNETRIX LTD,19/01/2015,224.00
Customer Services,Benefits,LRTC,Supplies & Services,Comp Software (Purch / Hire),SYNETRIX LTD,19/01/2015,185.00
Customer Services,Benefits,LRTD,Employees,Professional Subs,IRRV,19/01/2015,154.00
Customer Services,Catering,CAHH,Supplies & Services,Provisions,BIKOLD,09/01/2015,124.27
Customer Services,Catering,CAHH,Supplies & Services,Provisions,BIKOLD,09/01/2015,279.54
Customer Services,Catering,CAHH,Supplies & Services,Provisions,BIKOLD,16/01/2015,111.71
Customer Services,Catering,CAHH,Supplies & Services,Provisions,BIKOLD,16/01/2015,121.80
Customer Services,Catering,CAHH,Supplies & Services,Provisions,BIKOLD,16/01/2015,-110.10
Customer Services,Catering,CAHH,Supplies & Services,Provisions,BIKOLD,28/01/2015,106.88
Customer Services,Catering,CAHH,Supplies & Services,Other Services,ERIC NEVILLE CATERING SUPPLIES LTD,23/01/2015,"3,296.39"
Customer Services,Catering,CAHH,Income,Income From Resale Items,Forestry Commission,15/01/2015,640.00
Customer Services,Catering,CAMA,Supplies & Services,Computer Hardware (Maint),NATIONWIDE RETAIL SYSTEMS LTD,09/01/2015,790.00
Customer Services,Catering,CAOC,Supplies & Services,Provisions,BIKOLD,09/01/2015,109.95
Customer Services,Catering,CASM,Supplies & Services,EEC Whole Milk,JOHAL DAIRIES,09/01/2015,732.37
Customer Services,Catering,CASM,Supplies & Services,EEC Whole Milk,JOHAL DAIRIES,09/01/2015,"1,750.78"
Customer Services,Catering,CASN,Supplies & Services,Provisions,BIKOLD,09/01/2015,213.34
Customer Services,Catering,CASN,Supplies & Services,Provisions,BIKOLD,16/01/2015,282.66
Customer Services,Catering,CASN,Supplies & Services,Provisions,BIKOLD,16/01/2015,178.34
Customer Services,Catering,CASN,Supplies & Services,Provisions,BIKOLD,16/01/2015,223.87
Customer Services,Catering,CASN,Supplies & Services,Provisions,BIKOLD,05/01/2015,164.04
Customer Services,Catering,CASN,Supplies & Services,Provisions,BIKOLD,05/01/2015,178.38
Customer Services,Catering,CASN,Supplies & Services,Provisions,BIKOLD,28/01/2015,236.57
Customer Services,Catering,CASN,Supplies & Services,Provisions,BIKOLD,28/01/2015,212.80
Customer Services,Catering,CASN,Supplies & Services,Provisions,BIKOLD,28/01/2015,215.43
Customer Services,Catering,CASN,Supplies & Services,Provisions,BIKOLD,30/01/2015,125.34
Customer Services,Catering,CASN,Supplies & Services,Provisions,BIKOLD,30/01/2015,124.97
Customer Services,Catering,CASN,Supplies & Services,Provisions,BIKOLD,30/01/2015,103.80
Customer Services,Catering,CASN,Supplies & Services,Provisions,John Sheppard Catering Butchers,19/01/2015,100.15
Customer Services,Catering,CASP,Supplies & Services,Provisions,BIKOLD,09/01/2015,330.84
Customer Services,Catering,CASP,Supplies & Services,Provisions,BIKOLD,09/01/2015,185.67
Customer Services,Catering,CASP,Supplies & Services,Provisions,BIKOLD,09/01/2015,155.98
Customer Services,Catering,CASP,Supplies & Services,Provisions,BIKOLD,09/01/2015,108.27
Customer Services,Catering,CASP,Supplies & Services,Provisions,BIKOLD,09/01/2015,228.73
Customer Services,Catering,CASP,Supplies & Services,Provisions,BIKOLD,09/01/2015,263.86
Customer Services,Catering,CASP,Supplies & Services,Provisions,BIKOLD,09/01/2015,263.76
Customer Services,Catering,CASP,Supplies & Services,Provisions,BIKOLD,09/01/2015,463.01
Customer Services,Catering,CASP,Supplies & Services,Provisions,BIKOLD,09/01/2015,128.32
Customer Services,Catering,CASP,Supplies & Services,Provisions,BIKOLD,09/01/2015,239.48
Customer Services,Catering,CASP,Supplies & Services,Provisions,BIKOLD,09/01/2015,173.87
Customer Services,Catering,CASP,Supplies & Services,Provisions,BIKOLD,09/01/2015,205.35
Customer Services,Catering,CASP,Supplies & Services,Provisions,BIKOLD,09/01/2015,290.98
Customer Services,Catering,CASP,Supplies & Services,Provisions,BIKOLD,09/01/2015,127.15
Customer Services,Catering,CASP,Supplies & Services,Provisions,BIKOLD,09/01/2015,183.04
Customer Services,Catering,CASP,Supplies & Services,Provisions,BIKOLD,09/01/2015,113.46
Customer Services,Catering,CASP,Supplies & Services,Provisions,BIKOLD,09/01/2015,171.60
Customer Services,Catering,CASP,Supplies & Services,Provisions,BIKOLD,09/01/2015,164.45
Customer Services,Catering,CASP,Supplies & Services,Provisions,BIKOLD,09/01/2015,164.60
Customer Services,Catering,CASP,Supplies & Services,Provisions,BIKOLD,09/01/2015,140.17
Customer Services,Catering,CASP,Supplies & Services,Provisions,BIKOLD,09/01/2015,130.07
Customer Services,Catering,CASP,Supplies & Services,Provisions,BIKOLD,09/01/2015,136.00
Customer Services,Catering,CASP,Supplies & Services,Provisions,BIKOLD,09/01/2015,192.13
Customer Services,Catering,CASP,Supplies & Services,Provisions,BIKOLD,09/01/2015,242.56
Customer Services,Catering,CASP,Supplies & Services,Provisions,BIKOLD,09/01/2015,164.71
Customer Services,Catering,CASP,Supplies & Services,Provisions,BIKOLD,09/01/2015,243.25
Customer Services,Catering,CASP,Supplies & Services,Provisions,BIKOLD,09/01/2015,205.76
Customer Services,Catering,CASP,Supplies & Services,Provisions,BIKOLD,09/01/2015,295.79
Customer Services,Catering,CASP,Supplies & Services,Provisions,BIKOLD,09/01/2015,117.53
Customer Services,Catering,CASP,Supplies & Services,Provisions,BIKOLD,09/01/2015,146.41
Customer Services,Catering,CASP,Supplies & Services,Provisions,BIKOLD,09/01/2015,136.29
Customer Services,Catering,CASP,Supplies & Services,Provisions,BIKOLD,09/01/2015,130.44
Customer Services,Catering,CASP,Supplies & Services,Provisions,BIKOLD,09/01/2015,111.75
Customer Services,Catering,CASP,Supplies & Services,Provisions,BIKOLD,09/01/2015,141.33
Customer Services,Catering,CASP,Supplies & Services,Provisions,BIKOLD,09/01/2015,264.01
Customer Services,Catering,CASP,Supplies & Services,Provisions,BIKOLD,09/01/2015,174.20
Customer Services,Catering,CASP,Supplies & Services,Provisions,BIKOLD,09/01/2015,112.00
Customer Services,Catering,CASP,Supplies & Services,Provisions,BIKOLD,09/01/2015,150.66
Customer Services,Catering,CASP,Supplies & Services,Provisions,BIKOLD,09/01/2015,132.97
Customer Services,Catering,CASP,Supplies & Services,Provisions,BIKOLD,09/01/2015,108.22
Customer Services,Catering,CASP,Supplies & Services,Provisions,BIKOLD,09/01/2015,133.87
Customer Services,Catering,CASP,Supplies & Services,Provisions,BIKOLD,09/01/2015,124.29
Customer Services,Catering,CASP,Supplies & Services,Provisions,BIKOLD,09/01/2015,126.72
Customer Services,Catering,CASP,Supplies & Services,Provisions,BIKOLD,09/01/2015,332.94
Customer Services,Catering,CASP,Supplies & Services,Provisions,BIKOLD,09/01/2015,237.78
Customer Services,Catering,CASP,Supplies & Services,Provisions,BIKOLD,09/01/2015,277.27
Customer Services,Catering,CASP,Supplies & Services,Provisions,BIKOLD,09/01/2015,130.34
Customer Services,Catering,CASP,Supplies & Services,Provisions,BIKOLD,09/01/2015,194.90
Customer Services,Catering,CASP,Supplies & Services,Provisions,BIKOLD,09/01/2015,126.15
Customer Services,Catering,CASP,Supplies & Services,Provisions,BIKOLD,09/01/2015,106.27
Customer Services,Catering,CASP,Supplies & Services,Provisions,BIKOLD,09/01/2015,191.59
Customer Services,Catering,CASP,Supplies & Services,Provisions,BIKOLD,09/01/2015,230.85
Customer Services,Catering,CASP,Supplies & Services,Provisions,BIKOLD,09/01/2015,129.42
Customer Services,Catering,CASP,Supplies & Services,Provisions,BIKOLD,09/01/2015,121.57
Customer Services,Catering,CASP,Supplies & Services,Provisions,BIKOLD,09/01/2015,413.20
Customer Services,Catering,CASP,Supplies & Services,Provisions,BIKOLD,09/01/2015,164.37
Customer Services,Catering,CASP,Supplies & Services,Provisions,BIKOLD,09/01/2015,157.91
Customer Services,Catering,CASP,Supplies & Services,Provisions,BIKOLD,09/01/2015,112.49
Customer Services,Catering,CASP,Supplies & Services,Provisions,BIKOLD,09/01/2015,102.10
Customer Services,Catering,CASP,Supplies & Services,Provisions,BIKOLD,09/01/2015,134.54
Customer Services,Catering,CASP,Supplies & Services,Provisions,BIKOLD,09/01/2015,135.39
Customer Services,Catering,CASP,Supplies & Services,Provisions,BIKOLD,09/01/2015,117.65
Customer Services,Catering,CASP,Supplies & Services,Provisions,BIKOLD,09/01/2015,167.33
Customer Services,Catering,CASP,Supplies & Services,Provisions,BIKOLD,09/01/2015,137.37
Customer Services,Catering,CASP,Supplies & Services,Provisions,BIKOLD,09/01/2015,203.57
Customer Services,Catering,CASP,Supplies & Services,Provisions,BIKOLD,09/01/2015,133.03
Customer Services,Catering,CASP,Supplies & Services,Provisions,BIKOLD,09/01/2015,236.62
Customer Services,Catering,CASP,Supplies & Services,Provisions,BIKOLD,09/01/2015,364.12
Customer Services,Catering,CASP,Supplies & Services,Provisions,BIKOLD,09/01/2015,213.29
Customer Services,Catering,CASP,Supplies & Services,Provisions,BIKOLD,09/01/2015,134.77
Customer Services,Catering,CASP,Supplies & Services,Provisions,BIKOLD,09/01/2015,104.69
Customer Services,Catering,CASP,Supplies & Services,Provisions,BIKOLD,09/01/2015,119.24
Customer Services,Catering,CASP,Supplies & Services,Provisions,BIKOLD,09/01/2015,279.62
Customer Services,Catering,CASP,Supplies & Services,Provisions,BIKOLD,09/01/2015,156.99
Customer Services,Catering,CASP,Supplies & Services,Provisions,BIKOLD,09/01/2015,110.12
Customer Services,Catering,CASP,Supplies & Services,Provisions,BIKOLD,09/01/2015,140.58
Customer Services,Catering,CASP,Supplies & Services,Provisions,BIKOLD,09/01/2015,332.31
Customer Services,Catering,CASP,Supplies & Services,Provisions,BIKOLD,09/01/2015,148.34
Customer Services,Catering,CASP,Supplies & Services,Provisions,BIKOLD,09/01/2015,206.70
Customer Services,Catering,CASP,Supplies & Services,Provisions,BIKOLD,09/01/2015,115.87
Customer Services,Catering,CASP,Supplies & Services,Provisions,BIKOLD,09/01/2015,194.88
Customer Services,Catering,CASP,Supplies & Services,Provisions,BIKOLD,09/01/2015,451.61
Customer Services,Catering,CASP,Supplies & Services,Provisions,BIKOLD,09/01/2015,278.80
Customer Services,Catering,CASP,Supplies & Services,Provisions,BIKOLD,09/01/2015,296.48
Customer Services,Catering,CASP,Supplies & Services,Provisions,BIKOLD,09/01/2015,151.71
Customer Services,Catering,CASP,Supplies & Services,Provisions,BIKOLD,09/01/2015,140.24
Customer Services,Catering,CASP,Supplies & Services,Provisions,BIKOLD,09/01/2015,226.53
Customer Services,Catering,CASP,Supplies & Services,Provisions,BIKOLD,09/01/2015,181.21
Customer Services,Catering,CASP,Supplies & Services,Provisions,BIKOLD,09/01/2015,338.12
Customer Services,Catering,CASP,Supplies & Services,Provisions,BIKOLD,09/01/2015,124.82
Customer Services,Catering,CASP,Supplies & Services,Provisions,BIKOLD,09/01/2015,108.74
Customer Services,Catering,CASP,Supplies & Services,Provisions,BIKOLD,09/01/2015,441.49
Customer Services,Catering,CASP,Supplies & Services,Provisions,BIKOLD,09/01/2015,115.80
Customer Services,Catering,CASP,Supplies & Services,Provisions,BIKOLD,09/01/2015,125.05
Customer Services,Catering,CASP,Supplies & Services,Provisions,BIKOLD,09/01/2015,199.89
Customer Services,Catering,CASP,Supplies & Services,Provisions,BIKOLD,09/01/2015,200.66
Customer Services,Catering,CASP,Supplies & Services,Provisions,BIKOLD,09/01/2015,171.16
Customer Services,Catering,CASP,Supplies & Services,Provisions,BIKOLD,09/01/2015,311.58
Customer Services,Catering,CASP,Supplies & Services,Provisions,BIKOLD,16/01/2015,132.82
Customer Services,Catering,CASP,Supplies & Services,Provisions,BIKOLD,16/01/2015,104.33
Customer Services,Catering,CASP,Supplies & Services,Provisions,BIKOLD,16/01/2015,182.16
Customer Services,Catering,CASP,Supplies & Services,Provisions,BIKOLD,16/01/2015,186.27
Customer Services,Catering,CASP,Supplies & Services,Provisions,BIKOLD,16/01/2015,125.29
Customer Services,Catering,CASP,Supplies & Services,Provisions,BIKOLD,16/01/2015,188.35
Customer Services,Catering,CASP,Supplies & Services,Provisions,BIKOLD,16/01/2015,100.99
Customer Services,Catering,CASP,Supplies & Services,Provisions,BIKOLD,16/01/2015,139.69
Customer Services,Catering,CASP,Supplies & Services,Provisions,BIKOLD,16/01/2015,214.83
Customer Services,Catering,CASP,Supplies & Services,Provisions,BIKOLD,16/01/2015,218.93
Customer Services,Catering,CASP,Supplies & Services,Provisions,BIKOLD,16/01/2015,100.53
Customer Services,Catering,CASP,Supplies & Services,Provisions,BIKOLD,16/01/2015,140.93
Customer Services,Catering,CASP,Supplies & Services,Provisions,BIKOLD,16/01/2015,149.39
Customer Services,Catering,CASP,Supplies & Services,Provisions,BIKOLD,16/01/2015,195.23
Customer Services,Catering,CASP,Supplies & Services,Provisions,BIKOLD,16/01/2015,128.25
Customer Services,Catering,CASP,Supplies & Services,Provisions,BIKOLD,16/01/2015,135.64
Customer Services,Catering,CASP,Supplies & Services,Provisions,BIKOLD,16/01/2015,102.10
Customer Services,Catering,CASP,Supplies & Services,Provisions,BIKOLD,16/01/2015,188.10
Customer Services,Catering,CASP,Supplies & Services,Provisions,BIKOLD,16/01/2015,344.55
Customer Services,Catering,CASP,Supplies & Services,Provisions,BIKOLD,16/01/2015,275.53
Customer Services,Catering,CASP,Supplies & Services,Provisions,BIKOLD,16/01/2015,136.21
Customer Services,Catering,CASP,Supplies & Services,Provisions,BIKOLD,16/01/2015,440.57
Customer Services,Catering,CASP,Supplies & Services,Provisions,BIKOLD,16/01/2015,146.42
Customer Services,Catering,CASP,Supplies & Services,Provisions,BIKOLD,16/01/2015,181.35
Customer Services,Catering,CASP,Supplies & Services,Provisions,BIKOLD,16/01/2015,251.68
Customer Services,Catering,CASP,Supplies & Services,Provisions,BIKOLD,16/01/2015,138.34
Customer Services,Catering,CASP,Supplies & Services,Provisions,BIKOLD,16/01/2015,176.91
Customer Services,Catering,CASP,Supplies & Services,Provisions,BIKOLD,16/01/2015,236.50
Customer Services,Catering,CASP,Supplies & Services,Provisions,BIKOLD,16/01/2015,171.42
Customer Services,Catering,CASP,Supplies & Services,Provisions,BIKOLD,16/01/2015,174.50
Customer Services,Catering,CASP,Supplies & Services,Provisions,BIKOLD,16/01/2015,270.96
Customer Services,Catering,CASP,Supplies & Services,Provisions,BIKOLD,16/01/2015,111.63
Customer Services,Catering,CASP,Supplies & Services,Provisions,BIKOLD,16/01/2015,127.81
Customer Services,Catering,CASP,Supplies & Services,Provisions,BIKOLD,16/01/2015,336.23
Customer Services,Catering,CASP,Supplies & Services,Provisions,BIKOLD,16/01/2015,113.43
Customer Services,Catering,CASP,Supplies & Services,Provisions,BIKOLD,16/01/2015,104.93
Customer Services,Catering,CASP,Supplies & Services,Provisions,BIKOLD,16/01/2015,332.27
Customer Services,Catering,CASP,Supplies & Services,Provisions,BIKOLD,16/01/2015,213.58
Customer Services,Catering,CASP,Supplies & Services,Provisions,BIKOLD,16/01/2015,142.34
Customer Services,Catering,CASP,Supplies & Services,Provisions,BIKOLD,16/01/2015,129.14
Customer Services,Catering,CASP,Supplies & Services,Provisions,BIKOLD,16/01/2015,182.56
Customer Services,Catering,CASP,Supplies & Services,Provisions,BIKOLD,16/01/2015,107.34
Customer Services,Catering,CASP,Supplies & Services,Provisions,BIKOLD,16/01/2015,117.73
Customer Services,Catering,CASP,Supplies & Services,Provisions,BIKOLD,16/01/2015,147.03
Customer Services,Catering,CASP,Supplies & Services,Provisions,BIKOLD,16/01/2015,142.66
Customer Services,Catering,CASP,Supplies & Services,Provisions,BIKOLD,16/01/2015,197.23
Customer Services,Catering,CASP,Supplies & Services,Provisions,BIKOLD,16/01/2015,263.20
Customer Services,Catering,CASP,Supplies & Services,Provisions,BIKOLD,16/01/2015,104.79
Customer Services,Catering,CASP,Supplies & Services,Provisions,BIKOLD,16/01/2015,135.24
Customer Services,Catering,CASP,Supplies & Services,Provisions,BIKOLD,16/01/2015,166.56
Customer Services,Catering,CASP,Supplies & Services,Provisions,BIKOLD,16/01/2015,177.52
Customer Services,Catering,CASP,Supplies & Services,Provisions,BIKOLD,16/01/2015,104.03
Customer Services,Catering,CASP,Supplies & Services,Provisions,BIKOLD,16/01/2015,110.77
Customer Services,Catering,CASP,Supplies & Services,Provisions,BIKOLD,16/01/2015,185.02
Customer Services,Catering,CASP,Supplies & Services,Provisions,BIKOLD,16/01/2015,122.15
Customer Services,Catering,CASP,Supplies & Services,Provisions,BIKOLD,16/01/2015,149.38
Customer Services,Catering,CASP,Supplies & Services,Provisions,BIKOLD,16/01/2015,206.71
Customer Services,Catering,CASP,Supplies & Services,Provisions,BIKOLD,16/01/2015,209.42
Customer Services,Catering,CASP,Supplies & Services,Provisions,BIKOLD,16/01/2015,263.80
Customer Services,Catering,CASP,Supplies & Services,Provisions,BIKOLD,16/01/2015,267.17
Customer Services,Catering,CASP,Supplies & Services,Provisions,BIKOLD,16/01/2015,320.02
Customer Services,Catering,CASP,Supplies & Services,Provisions,BIKOLD,16/01/2015,168.64
Customer Services,Catering,CASP,Supplies & Services,Provisions,BIKOLD,16/01/2015,152.93
Customer Services,Catering,CASP,Supplies & Services,Provisions,BIKOLD,16/01/2015,164.31
Customer Services,Catering,CASP,Supplies & Services,Provisions,BIKOLD,16/01/2015,149.15
Customer Services,Catering,CASP,Supplies & Services,Provisions,BIKOLD,16/01/2015,220.84
Customer Services,Catering,CASP,Supplies & Services,Provisions,BIKOLD,16/01/2015,130.84
Customer Services,Catering,CASP,Supplies & Services,Provisions,BIKOLD,16/01/2015,137.77
Customer Services,Catering,CASP,Supplies & Services,Provisions,BIKOLD,16/01/2015,169.81
Customer Services,Catering,CASP,Supplies & Services,Provisions,BIKOLD,16/01/2015,354.54
Customer Services,Catering,CASP,Supplies & Services,Provisions,BIKOLD,16/01/2015,119.75
Customer Services,Catering,CASP,Supplies & Services,Provisions,BIKOLD,16/01/2015,170.98
Customer Services,Catering,CASP,Supplies & Services,Provisions,BIKOLD,16/01/2015,328.53
Customer Services,Catering,CASP,Supplies & Services,Provisions,BIKOLD,16/01/2015,120.70
Customer Services,Catering,CASP,Supplies & Services,Provisions,BIKOLD,16/01/2015,113.26
Customer Services,Catering,CASP,Supplies & Services,Provisions,BIKOLD,16/01/2015,231.24
Customer Services,Catering,CASP,Supplies & Services,Provisions,BIKOLD,16/01/2015,112.86
Customer Services,Catering,CASP,Supplies & Services,Provisions,BIKOLD,16/01/2015,228.19
Customer Services,Catering,CASP,Supplies & Services,Provisions,BIKOLD,16/01/2015,149.64
Customer Services,Catering,CASP,Supplies & Services,Provisions,BIKOLD,16/01/2015,328.37
Customer Services,Catering,CASP,Supplies & Services,Provisions,BIKOLD,23/01/2015,192.75
Customer Services,Catering,CASP,Supplies & Services,Provisions,BIKOLD,23/01/2015,116.12
Customer Services,Catering,CASP,Supplies & Services,Provisions,BIKOLD,23/01/2015,305.73
Customer Services,Catering,CASP,Supplies & Services,Provisions,BIKOLD,23/01/2015,230.59
Customer Services,Catering,CASP,Supplies & Services,Provisions,BIKOLD,23/01/2015,100.19
Customer Services,Catering,CASP,Supplies & Services,Provisions,BIKOLD,23/01/2015,247.70
Customer Services,Catering,CASP,Supplies & Services,Provisions,BIKOLD,23/01/2015,145.19
Customer Services,Catering,CASP,Supplies & Services,Provisions,BIKOLD,23/01/2015,114.37
Customer Services,Catering,CASP,Supplies & Services,Provisions,BIKOLD,23/01/2015,180.38
Customer Services,Catering,CASP,Supplies & Services,Provisions,BIKOLD,23/01/2015,221.23
Customer Services,Catering,CASP,Supplies & Services,Provisions,BIKOLD,23/01/2015,150.00
Customer Services,Catering,CASP,Supplies & Services,Provisions,BIKOLD,23/01/2015,117.93
Customer Services,Catering,CASP,Supplies & Services,Provisions,BIKOLD,23/01/2015,229.92
Customer Services,Catering,CASP,Supplies & Services,Provisions,BIKOLD,23/01/2015,334.78
Customer Services,Catering,CASP,Supplies & Services,Provisions,BIKOLD,23/01/2015,235.62
Customer Services,Catering,CASP,Supplies & Services,Provisions,BIKOLD,23/01/2015,122.77
Customer Services,Catering,CASP,Supplies & Services,Provisions,BIKOLD,23/01/2015,214.61
Customer Services,Catering,CASP,Supplies & Services,Provisions,BIKOLD,23/01/2015,314.54
Customer Services,Catering,CASP,Supplies & Services,Provisions,BIKOLD,23/01/2015,413.31
Customer Services,Catering,CASP,Supplies & Services,Provisions,BIKOLD,23/01/2015,105.53
Customer Services,Catering,CASP,Supplies & Services,Provisions,BIKOLD,23/01/2015,121.06
Customer Services,Catering,CASP,Supplies & Services,Provisions,BIKOLD,23/01/2015,130.33
Customer Services,Catering,CASP,Supplies & Services,Provisions,BIKOLD,23/01/2015,132.21
Customer Services,Catering,CASP,Supplies & Services,Provisions,BIKOLD,23/01/2015,165.59
Customer Services,Catering,CASP,Supplies & Services,Provisions,BIKOLD,23/01/2015,139.99
Customer Services,Catering,CASP,Supplies & Services,Provisions,BIKOLD,23/01/2015,130.46
Customer Services,Catering,CASP,Supplies & Services,Provisions,BIKOLD,23/01/2015,201.61
Customer Services,Catering,CASP,Supplies & Services,Provisions,BIKOLD,23/01/2015,197.56
Customer Services,Catering,CASP,Supplies & Services,Provisions,BIKOLD,23/01/2015,150.40
Customer Services,Catering,CASP,Supplies & Services,Provisions,BIKOLD,23/01/2015,102.16
Customer Services,Catering,CASP,Supplies & Services,Provisions,BIKOLD,23/01/2015,415.06
Customer Services,Catering,CASP,Supplies & Services,Provisions,BIKOLD,23/01/2015,179.75
Customer Services,Catering,CASP,Supplies & Services,Provisions,BIKOLD,23/01/2015,143.16
Customer Services,Catering,CASP,Supplies & Services,Provisions,BIKOLD,23/01/2015,267.50
Customer Services,Catering,CASP,Supplies & Services,Provisions,BIKOLD,23/01/2015,219.14
Customer Services,Catering,CASP,Supplies & Services,Provisions,BIKOLD,23/01/2015,128.43
Customer Services,Catering,CASP,Supplies & Services,Provisions,BIKOLD,23/01/2015,175.96
Customer Services,Catering,CASP,Supplies & Services,Provisions,BIKOLD,23/01/2015,469.41
Customer Services,Catering,CASP,Supplies & Services,Provisions,BIKOLD,23/01/2015,264.25
Customer Services,Catering,CASP,Supplies & Services,Provisions,BIKOLD,23/01/2015,360.18
Customer Services,Catering,CASP,Supplies & Services,Provisions,BIKOLD,23/01/2015,407.54
Customer Services,Catering,CASP,Supplies & Services,Provisions,BIKOLD,23/01/2015,209.08
Customer Services,Catering,CASP,Supplies & Services,Provisions,BIKOLD,23/01/2015,113.54
Customer Services,Catering,CASP,Supplies & Services,Provisions,BIKOLD,23/01/2015,160.80
Customer Services,Catering,CASP,Supplies & Services,Provisions,BIKOLD,23/01/2015,315.80
Customer Services,Catering,CASP,Supplies & Services,Provisions,BIKOLD,05/01/2015,106.00
Customer Services,Catering,CASP,Supplies & Services,Provisions,BIKOLD,28/01/2015,122.93
Customer Services,Catering,CASP,Supplies & Services,Provisions,BIKOLD,28/01/2015,142.03
Customer Services,Catering,CASP,Supplies & Services,Provisions,BIKOLD,28/01/2015,166.81
Customer Services,Catering,CASP,Supplies & Services,Provisions,BIKOLD,28/01/2015,146.90
Customer Services,Catering,CASP,Supplies & Services,Provisions,BIKOLD,28/01/2015,199.59
Customer Services,Catering,CASP,Supplies & Services,Provisions,BIKOLD,28/01/2015,108.53
Customer Services,Catering,CASP,Supplies & Services,Provisions,BIKOLD,28/01/2015,148.12
Customer Services,Catering,CASP,Supplies & Services,Provisions,BIKOLD,28/01/2015,120.25
Customer Services,Catering,CASP,Supplies & Services,Provisions,BIKOLD,28/01/2015,103.50
Customer Services,Catering,CASP,Supplies & Services,Provisions,BIKOLD,28/01/2015,167.74
Customer Services,Catering,CASP,Supplies & Services,Provisions,BIKOLD,28/01/2015,150.28
Customer Services,Catering,CASP,Supplies & Services,Provisions,BIKOLD,28/01/2015,293.92
Customer Services,Catering,CASP,Supplies & Services,Provisions,BIKOLD,28/01/2015,203.07
Customer Services,Catering,CASP,Supplies & Services,Provisions,BIKOLD,28/01/2015,139.88
Customer Services,Catering,CASP,Supplies & Services,Provisions,BIKOLD,28/01/2015,153.03
Customer Services,Catering,CASP,Supplies & Services,Provisions,BIKOLD,28/01/2015,255.07
Customer Services,Catering,CASP,Supplies & Services,Provisions,BIKOLD,28/01/2015,167.28
Customer Services,Catering,CASP,Supplies & Services,Provisions,BIKOLD,28/01/2015,301.62
Customer Services,Catering,CASP,Supplies & Services,Provisions,BIKOLD,28/01/2015,119.70
Customer Services,Catering,CASP,Supplies & Services,Provisions,BIKOLD,28/01/2015,126.03
Customer Services,Catering,CASP,Supplies & Services,Provisions,BIKOLD,28/01/2015,159.74
Customer Services,Catering,CASP,Supplies & Services,Provisions,BIKOLD,28/01/2015,183.07
Customer Services,Catering,CASP,Supplies & Services,Provisions,BIKOLD,28/01/2015,103.48
Customer Services,Catering,CASP,Supplies & Services,Provisions,BIKOLD,28/01/2015,129.82
Customer Services,Catering,CASP,Supplies & Services,Provisions,BIKOLD,28/01/2015,249.14
Customer Services,Catering,CASP,Supplies & Services,Provisions,BIKOLD,28/01/2015,170.10
Customer Services,Catering,CASP,Supplies & Services,Provisions,BIKOLD,28/01/2015,119.35
Customer Services,Catering,CASP,Supplies & Services,Provisions,BIKOLD,28/01/2015,201.79
Customer Services,Catering,CASP,Supplies & Services,Provisions,BIKOLD,28/01/2015,103.15
Customer Services,Catering,CASP,Supplies & Services,Provisions,BIKOLD,28/01/2015,137.03
Customer Services,Catering,CASP,Supplies & Services,Provisions,BIKOLD,28/01/2015,214.85
Customer Services,Catering,CASP,Supplies & Services,Provisions,BIKOLD,28/01/2015,131.72
Customer Services,Catering,CASP,Supplies & Services,Provisions,BIKOLD,28/01/2015,293.91
Customer Services,Catering,CASP,Supplies & Services,Provisions,BIKOLD,28/01/2015,123.48
Customer Services,Catering,CASP,Supplies & Services,Provisions,BIKOLD,28/01/2015,260.69
Customer Services,Catering,CASP,Supplies & Services,Provisions,BIKOLD,28/01/2015,194.75
Customer Services,Catering,CASP,Supplies & Services,Provisions,BIKOLD,28/01/2015,183.38
Customer Services,Catering,CASP,Supplies & Services,Provisions,BIKOLD,28/01/2015,186.56
Customer Services,Catering,CASP,Supplies & Services,Provisions,BIKOLD,28/01/2015,245.86
Customer Services,Catering,CASP,Supplies & Services,Provisions,BIKOLD,28/01/2015,165.66
Customer Services,Catering,CASP,Supplies & Services,Provisions,BIKOLD,30/01/2015,115.44
Customer Services,Catering,CASP,Supplies & Services,Provisions,BIKOLD,30/01/2015,139.07
Customer Services,Catering,CASP,Supplies & Services,Provisions,BIKOLD,30/01/2015,363.08
Customer Services,Catering,CASP,Supplies & Services,Provisions,BIKOLD,30/01/2015,102.48
Customer Services,Catering,CASP,Supplies & Services,Provisions,BIKOLD,30/01/2015,124.89
Customer Services,Catering,CASP,Supplies & Services,Provisions,BIKOLD,30/01/2015,141.32
Customer Services,Catering,CASP,Supplies & Services,Provisions,BIKOLD,30/01/2015,239.42
Customer Services,Catering,CASP,Supplies & Services,Provisions,BIKOLD,30/01/2015,164.59
Customer Services,Catering,CASP,Supplies & Services,Provisions,BIKOLD,30/01/2015,270.28
Customer Services,Catering,CASP,Supplies & Services,Provisions,BIKOLD,30/01/2015,239.30
Customer Services,Catering,CASP,Supplies & Services,Provisions,BIKOLD,30/01/2015,202.84
Customer Services,Catering,CASP,Supplies & Services,Provisions,BIKOLD,30/01/2015,325.49
Customer Services,Catering,CASP,Supplies & Services,Provisions,BIKOLD,30/01/2015,127.75
Customer Services,Catering,CASP,Supplies & Services,Provisions,BIKOLD,30/01/2015,167.01
Customer Services,Catering,CASP,Supplies & Services,Provisions,BIKOLD,30/01/2015,112.16
Customer Services,Catering,CASP,Supplies & Services,Provisions,BIKOLD,30/01/2015,417.15
Customer Services,Catering,CASP,Supplies & Services,Provisions,BIKOLD,30/01/2015,273.47
Customer Services,Catering,CASP,Supplies & Services,Provisions,BIKOLD,30/01/2015,175.20
Customer Services,Catering,CASP,Supplies & Services,Provisions,BIKOLD,30/01/2015,218.56
Customer Services,Catering,CASP,Supplies & Services,Provisions,BIKOLD,30/01/2015,120.43
Customer Services,Catering,CASP,Supplies & Services,Provisions,BIKOLD,30/01/2015,182.62
Customer Services,Catering,CASP,Supplies & Services,Provisions,BIKOLD,30/01/2015,104.13
Customer Services,Catering,CASP,Supplies & Services,Provisions,BIKOLD,30/01/2015,130.98
Customer Services,Catering,CASP,Supplies & Services,Provisions,BIKOLD,30/01/2015,245.36
Customer Services,Catering,CASP,Supplies & Services,Provisions,BIKOLD,30/01/2015,157.12
Customer Services,Catering,CASP,Supplies & Services,Provisions,BIKOLD,30/01/2015,320.79
Customer Services,Catering,CASP,Supplies & Services,Provisions,BIKOLD,30/01/2015,238.50
Customer Services,Catering,CASP,Supplies & Services,Provisions,BIKOLD,30/01/2015,144.42
Customer Services,Catering,CASP,Supplies & Services,Provisions,BIKOLD,30/01/2015,304.79
Customer Services,Catering,CASP,Supplies & Services,Provisions,BIKOLD,30/01/2015,186.70
Customer Services,Catering,CASP,Supplies & Services,Provisions,BIKOLD,30/01/2015,236.84
Customer Services,Catering,CASP,Supplies & Services,Provisions,BIKOLD,30/01/2015,290.11
Customer Services,Catering,CASP,Supplies & Services,Provisions,BIKOLD,30/01/2015,115.13
Customer Services,Catering,CASP,Supplies & Services,Provisions,BIKOLD,30/01/2015,139.36
Customer Services,Catering,CASP,Supplies & Services,Provisions,BIKOLD,30/01/2015,252.95
Customer Services,Catering,CASP,Supplies & Services,Provisions,BIKOLD,30/01/2015,242.96
Customer Services,Catering,CASP,Supplies & Services,Provisions,BIKOLD,30/01/2015,212.71
Customer Services,Catering,CASP,Supplies & Services,Provisions,BIKOLD,30/01/2015,140.59
Customer Services,Catering,CASP,Supplies & Services,Provisions,BIKOLD,30/01/2015,172.06
Customer Services,Catering,CASP,Supplies & Services,Provisions,BIKOLD,30/01/2015,128.84
Customer Services,Catering,CASP,Supplies & Services,Provisions,BIKOLD,30/01/2015,236.44
Customer Services,Catering,CASP,Supplies & Services,Provisions,BIKOLD,30/01/2015,112.17
Customer Services,Catering,CASP,Supplies & Services,Provisions,BIKOLD,30/01/2015,270.70
Customer Services,Catering,CASP,Supplies & Services,Provisions,BIKOLD,30/01/2015,369.21
Customer Services,Catering,CASP,Supplies & Services,Provisions,BIKOLD,30/01/2015,158.48
Customer Services,Catering,CASP,Supplies & Services,Provisions,BIKOLD,30/01/2015,253.21
Customer Services,Catering,CASP,Supplies & Services,Provisions,BIKOLD,30/01/2015,142.50
Customer Services,Catering,CASP,Supplies & Services,Provisions,BIKOLD,30/01/2015,148.29
Customer Services,Catering,CASP,Supplies & Services,Provisions,BIKOLD,30/01/2015,111.21
Customer Services,Catering,CASP,Supplies & Services,Provisions,BIKOLD,30/01/2015,257.85
Customer Services,Catering,CASP,Supplies & Services,Provisions,BIKOLD,30/01/2015,107.57
Customer Services,Catering,CASP,Supplies & Services,Provisions,BIKOLD,30/01/2015,143.98
Customer Services,Catering,CASP,Supplies & Services,Provisions,BIKOLD,30/01/2015,158.33
Customer Services,Catering,CASP,Supplies & Services,Provisions,BIKOLD,30/01/2015,109.92
Customer Services,Catering,CASP,Supplies & Services,Provisions,BIKOLD,30/01/2015,214.92
Customer Services,Catering,CASP,Supplies & Services,Provisions,BIKOLD,30/01/2015,208.11
Customer Services,Catering,CASP,Supplies & Services,Provisions,BIKOLD,30/01/2015,183.03
Customer Services,Catering,CASP,Supplies & Services,Provisions,BIKOLD,30/01/2015,181.93
Customer Services,Catering,CASP,Supplies & Services,Provisions,BIKOLD,30/01/2015,279.13
Customer Services,Catering,CASP,Supplies & Services,Provisions,BIKOLD,30/01/2015,125.22
Customer Services,Catering,CASP,Supplies & Services,Provisions,BIKOLD,30/01/2015,129.38
Customer Services,Catering,CASP,Supplies & Services,Provisions,BIKOLD,30/01/2015,114.97
Customer Services,Catering,CASP,Supplies & Services,Provisions,BIKOLD,30/01/2015,161.03
Customer Services,Catering,CASP,Supplies & Services,Provisions,BIKOLD,30/01/2015,124.28
Customer Services,Catering,CASP,Supplies & Services,Provisions,BIKOLD,30/01/2015,111.80
Customer Services,Catering,CASP,Supplies & Services,Provisions,BIKOLD,30/01/2015,173.95
Customer Services,Catering,CASP,Supplies & Services,Provisions,BIKOLD,30/01/2015,140.94
Customer Services,Catering,CASP,Supplies & Services,Provisions,BIKOLD,30/01/2015,131.96
Customer Services,Catering,CASP,Supplies & Services,Provisions,BIKOLD,30/01/2015,181.37
Customer Services,Catering,CASP,Supplies & Services,Provisions,BIKOLD,30/01/2015,193.21
Customer Services,Catering,CASP,Supplies & Services,Provisions,BIKOLD,30/01/2015,139.80
Customer Services,Catering,CASP,Supplies & Services,Provisions,BIKOLD,30/01/2015,121.12
Customer Services,Catering,CASP,Supplies & Services,Provisions,BIKOLD,30/01/2015,292.88
Customer Services,Catering,CASP,Supplies & Services,Provisions,BIKOLD,30/01/2015,132.91
Customer Services,Catering,CASP,Supplies & Services,Provisions,BIKOLD,30/01/2015,156.13
Customer Services,Catering,CASP,Supplies & Services,Provisions,BIKOLD,30/01/2015,198.57
Customer Services,Catering,CASP,Supplies & Services,Provisions,BIKOLD,30/01/2015,117.70
Customer Services,Catering,CASP,Supplies & Services,Provisions,BIKOLD,30/01/2015,104.59
Customer Services,Catering,CASP,Supplies & Services,Provisions,BIKOLD,30/01/2015,242.68
Customer Services,Catering,CASP,Supplies & Services,Provisions,BIKOLD,30/01/2015,124.86
Customer Services,Catering,CASP,Supplies & Services,Provisions,BIKOLD,30/01/2015,180.57
Customer Services,Catering,CASP,Supplies & Services,Provisions,BIKOLD,30/01/2015,129.63
Customer Services,Catering,CASP,Supplies & Services,Provisions,BIKOLD,30/01/2015,234.67
Customer Services,Catering,CASP,Supplies & Services,Provisions,BIKOLD,30/01/2015,265.82
Customer Services,Catering,CASP,Supplies & Services,Provisions,BIKOLD,30/01/2015,175.76
Customer Services,Catering,CASP,Supplies & Services,Provisions,BIKOLD,30/01/2015,264.72
Customer Services,Catering,CASP,Supplies & Services,Provisions,BIKOLD,30/01/2015,181.25
Customer Services,Catering,CASP,Premises-Related Expenditure,Clean Mats & Toilet Requisites,ERIC NEVILLE CATERING SUPPLIES LTD,20/01/2015,140.00
Customer Services,Catering,CASP,Supplies & Services,Crockery/Hardware/Light Equip,ERIC NEVILLE CATERING SUPPLIES LTD,20/01/2015,121.71
Customer Services,Catering,CASP,Supplies & Services,Crockery/Hardware/Light Equip,ERIC NEVILLE CATERING SUPPLIES LTD,20/01/2015,386.85
Customer Services,Catering,CASP,Supplies & Services,Crockery/Hardware/Light Equip,ERIC NEVILLE CATERING SUPPLIES LTD,20/01/2015,136.42
Customer Services,Catering,CASP,Supplies & Services,Crockery/Hardware/Light Equip,ERIC NEVILLE CATERING SUPPLIES LTD,20/01/2015,280.00
Customer Services,Catering,CASP,Supplies & Services,Crockery/Hardware/Light Equip,ERIC NEVILLE CATERING SUPPLIES LTD,20/01/2015,249.50
Customer Services,Catering,CASP,Supplies & Services,Provisions,G N BADLEY & SONS,05/01/2015,208.15
Customer Services,Catering,CASP,Supplies & Services,Provisions,G N BADLEY & SONS,07/01/2015,184.95
Customer Services,Catering,CASP,Supplies & Services,Provisions,John Sheppard Catering Butchers,19/01/2015,135.44
Customer Services,Catering,CASP,Supplies & Services,Provisions,John Sheppard Catering Butchers,19/01/2015,102.46
Customer Services,Catering,CASP,Supplies & Services,Provisions,John Sheppard Catering Butchers,19/01/2015,242.52
Customer Services,Catering,CASP,Supplies & Services,Provisions,John Sheppard Catering Butchers,19/01/2015,262.78
Customer Services,Catering,CASP,Supplies & Services,Provisions,John Sheppard Catering Butchers,19/01/2015,119.00
Customer Services,Catering,CASP,Supplies & Services,Provisions,John Sheppard Catering Butchers,19/01/2015,109.98
Customer Services,Catering,CASP,Supplies & Services,Provisions,John Sheppard Catering Butchers,19/01/2015,138.17
Customer Services,Catering,CASP,Supplies & Services,Provisions,John Sheppard Catering Butchers,19/01/2015,266.35
Customer Services,Catering,CASP,Supplies & Services,Provisions,John Sheppard Catering Butchers,19/01/2015,148.79
Customer Services,Catering,CASP,Supplies & Services,Provisions,John Sheppard Catering Butchers,19/01/2015,132.93
Customer Services,Catering,CASP,Supplies & Services,Provisions,John Sheppard Catering Butchers,19/01/2015,105.13
Customer Services,Catering,CASP,Supplies & Services,Provisions,John Sheppard Catering Butchers,19/01/2015,118.08
Customer Services,Catering,CASP,Supplies & Services,Provisions,John Sheppard Catering Butchers,19/01/2015,158.30
Customer Services,Catering,CASP,Supplies & Services,Provisions,John Sheppard Catering Butchers,19/01/2015,205.09
Customer Services,Catering,CASP,Supplies & Services,Provisions,John Sheppard Catering Butchers,19/01/2015,298.63
Customer Services,Catering,CASP,Supplies & Services,Provisions,John Sheppard Catering Butchers,19/01/2015,326.28
Customer Services,Catering,CASP,Supplies & Services,Provisions,John Sheppard Catering Butchers,19/01/2015,335.94
Customer Services,Catering,CASP,Supplies & Services,Provisions,John Sheppard Catering Butchers,19/01/2015,137.60
Customer Services,Catering,CASP,Supplies & Services,Provisions,John Sheppard Catering Butchers,19/01/2015,114.40
Customer Services,Catering,CASP,Supplies & Services,Provisions,John Sheppard Catering Butchers,19/01/2015,104.00
Customer Services,Catering,CASP,Supplies & Services,Provisions,John Sheppard Catering Butchers,19/01/2015,221.27
Customer Services,Catering,CASP,Supplies & Services,Provisions,John Sheppard Catering Butchers,19/01/2015,138.64
Customer Services,Catering,CASP,Supplies & Services,Provisions,John Sheppard Catering Butchers,19/01/2015,108.90
Customer Services,Catering,CASP,Supplies & Services,Provisions,ROWLANDS & COMPANY,19/01/2015,126.48
Customer Services,Catering,CASP,Supplies & Services,Provisions,ROWLANDS & COMPANY,13/01/2015,144.64
Customer Services,Catering,CASP,Supplies & Services,Provisions,ROWLANDS & COMPANY,13/01/2015,127.11
Customer Services,Catering,CASP,Supplies & Services,Provisions,ROWLANDS & COMPANY,13/01/2015,104.24
Customer Services,Catering,CASP,Supplies & Services,Provisions,ROWLANDS & COMPANY,13/01/2015,102.74
Customer Services,Catering,CASP,Supplies & Services,Provisions,ROWLANDS & COMPANY,13/01/2015,109.03
Customer Services,Catering,CASP,Supplies & Services,Provisions,ROWLANDS & COMPANY,13/01/2015,138.24
Customer Services,Catering,CASP,Supplies & Services,Provisions,ROWLANDS & COMPANY,13/01/2015,166.09
Customer Services,Catering,CASP,Supplies & Services,Provisions,ROWLANDS & COMPANY,13/01/2015,140.19
Customer Services,Catering,CASP,Supplies & Services,Provisions,ROWLANDS & COMPANY,13/01/2015,107.60
Customer Services,Catering,CASP,Supplies & Services,Provisions,ROWLANDS & COMPANY,13/01/2015,130.07
Customer Services,Catering,CASP,Supplies & Services,Provisions,ROWLANDS & COMPANY,13/01/2015,107.62
Customer Services,Catering,CASP,Supplies & Services,Provisions,ROWLANDS & COMPANY,13/01/2015,105.70
Customer Services,Catering,CASP,Supplies & Services,Provisions,ROWLANDS & COMPANY,19/01/2015,120.68
Customer Services,Catering,CASP,Supplies & Services,Provisions,ROWLANDS & COMPANY,19/01/2015,104.12
Customer Services,Catering,CASP,Supplies & Services,Provisions,ROWLANDS & COMPANY,19/01/2015,104.90
Customer Services,Catering,CASP,Supplies & Services,Provisions,ROWLANDS & COMPANY,19/01/2015,152.12
Customer Services,Catering,CASP,Supplies & Services,Provisions,ROWLANDS & COMPANY,19/01/2015,187.56
Customer Services,Catering,CASP,Supplies & Services,Provisions,ROWLANDS & COMPANY,19/01/2015,141.68
Customer Services,Catering,CASP,Supplies & Services,Provisions,SAFY IMPEX LTD T/A SPICE TIME,09/01/2015,249.00
Customer Services,Catering,CASP,Supplies & Services,Provisions,SAFY IMPEX LTD T/A SPICE TIME,09/01/2015,212.00
Customer Services,Catering,CASP,Supplies & Services,Provisions,SAFY IMPEX LTD T/A SPICE TIME,09/01/2015,149.00
Customer Services,Catering,CASP,Supplies & Services,Provisions,SAFY IMPEX LTD T/A SPICE TIME,09/01/2015,118.00
Customer Services,Catering,CASP,Supplies & Services,Provisions,SAFY IMPEX LTD T/A SPICE TIME,09/01/2015,227.50
Customer Services,Catering,CASP,Supplies & Services,Provisions,SAFY IMPEX LTD T/A SPICE TIME,09/01/2015,109.50
Customer Services,Catering,CASP,Supplies & Services,Provisions,SAFY IMPEX LTD T/A SPICE TIME,09/01/2015,125.00
Customer Services,Catering,CASP,Supplies & Services,Provisions,SAFY IMPEX LTD T/A SPICE TIME,09/01/2015,242.00
Customer Services,Catering,CASP,Supplies & Services,Provisions,SAFY IMPEX LTD T/A SPICE TIME,09/01/2015,145.50
Customer Services,Catering,CASP,Supplies & Services,Provisions,SAFY IMPEX LTD T/A SPICE TIME,09/01/2015,225.50
Customer Services,Catering,CASP,Supplies & Services,Provisions,SMART FOOD,20/01/2015,183.80
Customer Services,Catering,CASS,Supplies & Services,Provisions,BIKOLD,09/01/2015,192.07
Customer Services,Catering,CASS,Supplies & Services,Provisions,BIKOLD,09/01/2015,223.59
Customer Services,Catering,CASS,Supplies & Services,Provisions,BIKOLD,09/01/2015,101.58
Customer Services,Catering,CASS,Supplies & Services,Provisions,BIKOLD,09/01/2015,372.74
Customer Services,Catering,CASS,Supplies & Services,Provisions,BIKOLD,09/01/2015,149.85
Customer Services,Catering,CASS,Supplies & Services,Provisions,BIKOLD,09/01/2015,209.87
Customer Services,Catering,CASS,Supplies & Services,Provisions,BIKOLD,09/01/2015,162.09
Customer Services,Catering,CASS,Supplies & Services,Provisions,BIKOLD,09/01/2015,219.69
Customer Services,Catering,CASS,Supplies & Services,Provisions,BIKOLD,09/01/2015,204.38
Customer Services,Catering,CASS,Supplies & Services,Provisions,BIKOLD,09/01/2015,762.47
Customer Services,Catering,CASS,Supplies & Services,Provisions,BIKOLD,09/01/2015,344.18
Customer Services,Catering,CASS,Supplies & Services,Provisions,BIKOLD,16/01/2015,499.82
Customer Services,Catering,CASS,Supplies & Services,Provisions,BIKOLD,16/01/2015,117.02
Customer Services,Catering,CASS,Supplies & Services,Provisions,BIKOLD,16/01/2015,136.20
Customer Services,Catering,CASS,Supplies & Services,Provisions,BIKOLD,16/01/2015,213.01
Customer Services,Catering,CASS,Supplies & Services,Provisions,BIKOLD,16/01/2015,228.72
Customer Services,Catering,CASS,Supplies & Services,Provisions,BIKOLD,16/01/2015,176.81
Customer Services,Catering,CASS,Supplies & Services,Provisions,BIKOLD,16/01/2015,141.80
Customer Services,Catering,CASS,Supplies & Services,Provisions,BIKOLD,16/01/2015,231.41
Customer Services,Catering,CASS,Supplies & Services,Provisions,BIKOLD,16/01/2015,236.79
Customer Services,Catering,CASS,Supplies & Services,Provisions,BIKOLD,16/01/2015,373.40
Customer Services,Catering,CASS,Supplies & Services,Provisions,BIKOLD,16/01/2015,764.95
Customer Services,Catering,CASS,Supplies & Services,Provisions,BIKOLD,16/01/2015,122.02
Customer Services,Catering,CASS,Supplies & Services,Provisions,BIKOLD,16/01/2015,168.28
Customer Services,Catering,CASS,Supplies & Services,Provisions,BIKOLD,16/01/2015,187.81
Customer Services,Catering,CASS,Supplies & Services,Provisions,BIKOLD,23/01/2015,131.39
Customer Services,Catering,CASS,Supplies & Services,Provisions,BIKOLD,23/01/2015,258.92
Customer Services,Catering,CASS,Supplies & Services,Provisions,BIKOLD,23/01/2015,282.40
Customer Services,Catering,CASS,Supplies & Services,Provisions,BIKOLD,23/01/2015,115.00
Customer Services,Catering,CASS,Supplies & Services,Provisions,BIKOLD,23/01/2015,146.76
Customer Services,Catering,CASS,Supplies & Services,Provisions,BIKOLD,23/01/2015,169.58
Customer Services,Catering,CASS,Supplies & Services,Provisions,BIKOLD,28/01/2015,132.10
Customer Services,Catering,CASS,Supplies & Services,Provisions,BIKOLD,28/01/2015,394.87
Customer Services,Catering,CASS,Supplies & Services,Provisions,BIKOLD,28/01/2015,101.22
Customer Services,Catering,CASS,Supplies & Services,Provisions,BIKOLD,28/01/2015,121.57
Customer Services,Catering,CASS,Supplies & Services,Provisions,BIKOLD,28/01/2015,138.02
Customer Services,Catering,CASS,Supplies & Services,Provisions,BIKOLD,28/01/2015,107.46
Customer Services,Catering,CASS,Supplies & Services,Provisions,BIKOLD,28/01/2015,899.05
Customer Services,Catering,CASS,Supplies & Services,Provisions,BIKOLD,28/01/2015,302.65
Customer Services,Catering,CASS,Supplies & Services,Provisions,BIKOLD,30/01/2015,163.25
Customer Services,Catering,CASS,Supplies & Services,Provisions,BIKOLD,30/01/2015,206.73
Customer Services,Catering,CASS,Supplies & Services,Provisions,BIKOLD,30/01/2015,179.39
Customer Services,Catering,CASS,Supplies & Services,Provisions,BIKOLD,30/01/2015,219.03
Customer Services,Catering,CASS,Supplies & Services,Provisions,BIKOLD,30/01/2015,363.40
Customer Services,Catering,CASS,Supplies & Services,Provisions,BIKOLD,30/01/2015,714.75
Customer Services,Catering,CASS,Supplies & Services,Provisions,BIKOLD,30/01/2015,148.70
Customer Services,Catering,CASS,Supplies & Services,Provisions,BIKOLD,30/01/2015,138.93
Customer Services,Catering,CASS,Supplies & Services,Provisions,BIKOLD,30/01/2015,337.14
Customer Services,Catering,CASS,Supplies & Services,Provisions,BIKOLD,30/01/2015,222.98
Customer Services,Catering,CASS,Supplies & Services,Provisions,BIKOLD,30/01/2015,242.27
Customer Services,Catering,CASS,Supplies & Services,Provisions,BIKOLD,30/01/2015,174.90
Customer Services,Catering,CASS,Supplies & Services,Provisions,BIKOLD,30/01/2015,101.20
Customer Services,Catering,CASS,Supplies & Services,Provisions,BIKOLD,30/01/2015,137.10
Customer Services,Catering,CASS,Supplies & Services,Provisions,John Sheppard Catering Butchers,19/01/2015,168.49
Customer Services,Catering,CASS,Supplies & Services,Provisions,On A Roll,09/01/2015,101.34
Customer Services,Catering,CASS,Supplies & Services,Provisions,On A Roll,20/01/2015,101.34
Customer Services,Catering,CASS,Supplies & Services,Provisions,On A Roll,20/01/2015,118.71
Customer Services,Catering,CASS,Supplies & Services,Provisions,On A Roll,22/01/2015,359.12
Customer Services,Catering,CASS,Supplies & Services,Provisions,On A Roll,22/01/2015,350.64
Customer Services,Catering,CASS,Supplies & Services,Provisions,On A Roll,05/01/2015,202.79
Customer Services,Catering,CASS,Supplies & Services,Provisions,On A Roll,06/01/2015,403.94
Customer Services,Catering,CASS,Supplies & Services,Provisions,On A Roll,06/01/2015,201.12
Customer Services,Catering,CASS,Supplies & Services,Provisions,On A Roll,06/01/2015,121.60
Customer Services,Catering,CASS,Supplies & Services,Provisions,On A Roll,06/01/2015,114.32
Customer Services,Catering,CASS,Supplies & Services,Provisions,On A Roll,06/01/2015,335.18
Customer Services,Catering,CASS,Supplies & Services,Provisions,RADNOR HILLS MINERAL WATER COMPANY LTD,09/01/2015,231.12
Customer Services,Catering,CASS,Supplies & Services,Provisions,RADNOR HILLS MINERAL WATER COMPANY LTD,20/01/2015,125.70
Customer Services,Catering,CASS,Supplies & Services,Provisions,RADNOR HILLS MINERAL WATER COMPANY LTD,20/01/2015,125.70
Customer Services,Catering,CASS,Supplies & Services,Provisions,RADNOR HILLS MINERAL WATER COMPANY LTD,05/01/2015,125.70
Customer Services,Catering,CASS,Supplies & Services,Provisions,ROWLANDS & COMPANY,13/01/2015,111.41
Customer Services,Catering,CASS,Supplies & Services,Provisions,SAFY IMPEX LTD T/A SPICE TIME,09/01/2015,153.50
Customer Services,Catering,CASS,Supplies & Services,Provisions,SAFY IMPEX LTD T/A SPICE TIME,09/01/2015,117.00
Customer Services,Catering,CASS,Supplies & Services,Provisions,SAFY IMPEX LTD T/A SPICE TIME,09/01/2015,139.50
Customer Services,Catering,CASS,Supplies & Services,Provisions,Tasties of Chester Ltd,09/01/2015,379.67
Customer Services,Catering,CASS,Supplies & Services,Provisions,Tasties of Chester Ltd,20/01/2015,369.82
Customer Services,Catering,CASS,Supplies & Services,Provisions,Tasties of Chester Ltd,05/01/2015,320.96
Customer Services,Catering,CASS,Supplies & Services,Provisions,Tasties of Chester Ltd,05/01/2015,369.82
Customer Services,Catering,CASS,Supplies & Services,Holidays & Outings,TRI STAR PACKAGING SUPPLIES LIMITED,05/01/2015,130.88
Customer Services,Catering,CASS,Supplies & Services,Provisions,Willoughby (731) Ltd T/A The Fabulous Bakin' Boys,09/01/2015,176.55
Customer Services,Catering,CASS,Supplies & Services,Provisions,Willoughby (731) Ltd T/A The Fabulous Bakin' Boys,20/01/2015,135.59
Customer Services,Catering,CASX,Supplies & Services,Provisions,BIKOLD,09/01/2015,142.17
Customer Services,Catering,CASX,Supplies & Services,Provisions,BIKOLD,09/01/2015,151.63
Customer Services,Catering,CASX,Supplies & Services,Provisions,BIKOLD,09/01/2015,143.35
Customer Services,Catering,CASX,Supplies & Services,Provisions,BIKOLD,09/01/2015,202.52
Customer Services,Catering,CASX,Supplies & Services,Provisions,BIKOLD,09/01/2015,138.35
Customer Services,Catering,CASX,Supplies & Services,Provisions,BIKOLD,16/01/2015,191.49
Customer Services,Catering,CASX,Supplies & Services,Provisions,BIKOLD,16/01/2015,165.09
Customer Services,Catering,CASX,Supplies & Services,Provisions,BIKOLD,23/01/2015,147.76
Customer Services,Catering,CASX,Supplies & Services,Provisions,BIKOLD,23/01/2015,153.25
Customer Services,Catering,CASX,Supplies & Services,Provisions,BIKOLD,28/01/2015,136.08
Customer Services,Catering,CASX,Supplies & Services,Provisions,BIKOLD,28/01/2015,140.38
Customer Services,Catering,CASX,Supplies & Services,Provisions,BIKOLD,30/01/2015,108.78
Customer Services,Catering,CASX,Supplies & Services,Provisions,BIKOLD,30/01/2015,160.98
Customer Services,Catering,COMM,Supplies & Services,Provisions,Aroma Tea & Coffee Merchants,15/01/2015,172.42
Customer Services,Catering,COMM,Supplies & Services,Provisions,Aroma Tea & Coffee Merchants,23/01/2015,135.05
Customer Services,Catering,COMM,Supplies & Services,Provisions,BIKOLD,09/01/2015,175.89
Customer Services,Catering,COMM,Supplies & Services,Provisions,BIKOLD,16/01/2015,153.01
Customer Services,Catering,COMM,Supplies & Services,Provisions,BIKOLD,16/01/2015,128.34
Customer Services,Catering,COMM,Supplies & Services,Provisions,BIKOLD,16/01/2015,202.18
Customer Services,Catering,COMM,Supplies & Services,Provisions,BIKOLD,05/01/2015,140.35
Customer Services,Catering,COMM,Supplies & Services,Provisions,BIKOLD,05/01/2015,201.73
Customer Services,Catering,COMM,Supplies & Services,Provisions,BIKOLD,05/01/2015,130.11
Customer Services,Catering,COMM,Supplies & Services,Provisions,BIKOLD,28/01/2015,213.37
Customer Services,Catering,COMM,Supplies & Services,Provisions,BIKOLD,28/01/2015,161.99
Customer Services,Catering,COMM,Supplies & Services,Provisions,BIKOLD,30/01/2015,192.69
Customer Services,Catering,COMM,Supplies & Services,Provisions,BIKOLD,30/01/2015,147.42
Customer Services,Catering,COMM,Supplies & Services,Provisions,BIKOLD,30/01/2015,138.26
Customer Services,Catering,COMM,Supplies & Services,Provisions,Brambles Foods Ltd,15/01/2015,419.27
Customer Services,Catering,COMM,Supplies & Services,Provisions,Brambles Foods Ltd,15/01/2015,429.53
Customer Services,Catering,COMM,Supplies & Services,Provisions,Brambles Foods Ltd,15/01/2015,403.18
Customer Services,Catering,COMM,Supplies & Services,Provisions,Brambles Foods Ltd,23/01/2015,507.92
Customer Services,Catering,COMM,Supplies & Services,Provisions,Brambles Foods Ltd,23/01/2015,456.57
Customer Services,Catering,COMM,Supplies & Services,Provisions,Brambles Foods Ltd,23/01/2015,456.57
Customer Services,Catering,COMM,Supplies & Services,Crockery/Hardware/Light Equip,ERIC NEVILLE CATERING SUPPLIES LTD,23/01/2015,118.73
Customer Services,Catering,COMM,Supplies & Services,Equipment - Hire,SIEMENS FINANCIAL SERVICES LTD,15/01/2015,553.73
Customer Services,Catering,LCAP,Supplies & Services,Crockery/Hardware/Light Equip,ERIC NEVILLE CATERING SUPPLIES LTD,23/01/2015,112.97
Customer Services,Catering,LCAP,Supplies & Services,Equipment - Purchase,SIGNS EXPRESS (TELFORD),15/01/2015,533.00
Customer Services,Catering,LEIC,Supplies & Services,Provisions,BIKOLD,09/01/2015,115.56
Customer Services,Catering,LEIC,Supplies & Services,Provisions,BIKOLD,09/01/2015,155.82
Customer Services,Catering,LEIC,Supplies & Services,Provisions,BIKOLD,09/01/2015,603.18
Customer Services,Catering,LEIC,Supplies & Services,Provisions,BIKOLD,09/01/2015,237.24
Customer Services,Catering,LEIC,Supplies & Services,Provisions,BIKOLD,16/01/2015,376.29
Customer Services,Catering,LEIC,Supplies & Services,Provisions,BIKOLD,16/01/2015,224.74
Customer Services,Catering,LEIC,Supplies & Services,Provisions,BIKOLD,16/01/2015,193.69
Customer Services,Catering,LEIC,Supplies & Services,Provisions,BIKOLD,05/01/2015,201.58
Customer Services,Catering,LEIC,Supplies & Services,Provisions,BIKOLD,05/01/2015,234.38
Customer Services,Catering,LEIC,Supplies & Services,Provisions,BIKOLD,28/01/2015,520.47
Customer Services,Catering,LEIC,Supplies & Services,Provisions,BIKOLD,28/01/2015,278.79
Customer Services,Catering,LEIC,Supplies & Services,Provisions,BIKOLD,30/01/2015,618.77
Customer Services,Catering,LEIC,Supplies & Services,Provisions,BIKOLD,30/01/2015,175.09
Customer Services,Catering,LEIC,Supplies & Services,Provisions,P & H SNACKS DIRECT LTD,23/01/2015,224.95
Customer Services,Catering,LEIC,Supplies & Services,Equipment - Hire,SIEMENS FINANCIAL SERVICES LTD,15/01/2015,553.73
Customer Services,Catering,LEIC,Supplies & Services,Provisions,Willoughby (731) Ltd T/A The Fabulous Bakin' Boys,20/01/2015,267.27
Customer Services,Catering,LEIC,Supplies & Services,Provisions,Willoughby (731) Ltd T/A The Fabulous Bakin' Boys,20/01/2015,271.52
Customer Services,Catering,LEIC,Supplies & Services,Provisions,Willoughby (731) Ltd T/A The Fabulous Bakin' Boys,20/01/2015,227.21
Customer Services,Customer & Registrars Services,LMAA,Supplies & Services,Security Services,BUSINESS WATCH GUARDING LIMITED,19/01/2015,"3,827.64"
Customer Services,Customer & Registrars Services,LMAA,Supplies & Services,Protective Clothing,IMAGE@WORK LTD,15/01/2015,175.92
Customer Services,Customer & Registrars Services,LMAA,Supplies & Services,Equipment - Purchase,SMP SECURITY SOLUTIONS LTD,20/01/2015,120.00
Customer Services,Customer & Registrars Services,LMAD,Employees,Provision of Statutory Support Services,TELFORD & WREKIN CVS,13/01/2015,893.10
Customer Services,Customer & Registrars Services,LMAG,Supplies & Services,Protective Clothing,SBA LTD,13/01/2015,381.75
Customer Services,Customer & Registrars Services,LSAA,Supplies & Services,Equipment - Hire,OASIS INTERIOR LANDSCAPING,07/01/2015,332.85
Customer Services,Customer & Registrars Services,LSAB,Premises-Related Expenditure,Grounds Maintenance - Cemeteries,P & W MAINTENANCE CONTRACTING LTD,20/01/2015,"1,684.78"
Customer Services,Customer & Registrars Services,LSAB,Premises-Related Expenditure,Grounds Maintenance - Cemeteries,P & W MAINTENANCE CONTRACTING LTD,20/01/2015,"2,558.79"
Customer Services,Customer & Registrars Services,LSAB,Supplies & Services,Items For Resale,Pryce Memorials,07/01/2015,210.00
Customer Services,Facilities Management and Cleaning Services,CFAA,Premises-Related Expenditure,Grounds Maintenance,NOBRIDGE LTD,16/01/2015,"3,351.81"
Customer Services,Facilities Management and Cleaning Services,CFAD,Supplies & Services,Security Services,BUSINESS WATCH GUARDING LIMITED,16/01/2015,"19,053.29"
Customer Services,Facilities Management and Cleaning Services,CFAQ,Supplies & Services,Other Services,INTERSERVE (FACILITIES MANAGEMENT) LTD,21/01/2015,"1,636.67"
Customer Services,Facilities Management and Cleaning Services,CFAY,Premises-Related Expenditure,R&M -Buildings DLO Charge,AY FABRICATIONS LTD,15/01/2015,320.00
Customer Services,Facilities Management and Cleaning Services,CFAY,Premises-Related Expenditure,R&M -Buildings DLO Charge,AY FABRICATIONS LTD,15/01/2015,120.00
Customer Services,Facilities Management and Cleaning Services,CFAY,Premises-Related Expenditure,R&M -Buildings DLO Charge,BUSINESS WATCH GUARDING LIMITED,15/01/2015,426.20
Customer Services,Facilities Management and Cleaning Services,CFAY,Premises-Related Expenditure,R&M -Buildings DLO Charge,DCI RECYCLING,19/01/2015,240.00
Customer Services,Facilities Management and Cleaning Services,CFAY,Premises-Related Expenditure,R&M -Buildings DLO Charge,DCI RECYCLING,21/01/2015,440.00
Customer Services,Facilities Management and Cleaning Services,CFAY,Premises-Related Expenditure,R&M -Buildings DLO Charge,NOVASCOPE IT LTD,20/01/2015,114.00
Customer Services,Facilities Management and Cleaning Services,CLCM,Premises-Related Expenditure,Clean Mats & Toilet Requisites,Border Janitorial Supplies Limited,09/01/2015,137.15
Customer Services,Facilities Management and Cleaning Services,CLCM,Premises-Related Expenditure,Clean Mats & Toilet Requisites,Border Janitorial Supplies Limited,09/01/2015,234.27
Customer Services,Facilities Management and Cleaning Services,CLCM,Premises-Related Expenditure,Clean Mats & Toilet Requisites,Border Janitorial Supplies Limited,09/01/2015,158.89
Customer Services,Facilities Management and Cleaning Services,CLCM,Premises-Related Expenditure,Clean Mats & Toilet Requisites,Border Janitorial Supplies Limited,09/01/2015,234.08
Customer Services,Facilities Management and Cleaning Services,CLCM,Premises-Related Expenditure,Clean Mats & Toilet Requisites,Border Janitorial Supplies Limited,09/01/2015,234.08
Customer Services,Facilities Management and Cleaning Services,CLCM,Premises-Related Expenditure,Clean Mats & Toilet Requisites,Border Janitorial Supplies Limited,09/01/2015,145.44
Customer Services,Facilities Management and Cleaning Services,CLCM,Premises-Related Expenditure,Clean Mats & Toilet Requisites,Border Janitorial Supplies Limited,09/01/2015,189.47
Customer Services,Facilities Management and Cleaning Services,CLCM,Premises-Related Expenditure,Clean Mats & Toilet Requisites,Border Janitorial Supplies Limited,09/01/2015,139.31
Customer Services,Facilities Management and Cleaning Services,CLCM,Premises-Related Expenditure,Clean Mats & Toilet Requisites,Border Janitorial Supplies Limited,22/01/2015,155.67
Customer Services,Facilities Management and Cleaning Services,CLCM,Premises-Related Expenditure,Clean Mats & Toilet Requisites,Border Janitorial Supplies Limited,22/01/2015,118.08
Customer Services,Facilities Management and Cleaning Services,CLCM,Premises-Related Expenditure,Clean Mats & Toilet Requisites,Border Janitorial Supplies Limited,22/01/2015,101.68
Customer Services,Facilities Management and Cleaning Services,CLCM,Premises-Related Expenditure,Clean Mats & Toilet Requisites,Border Janitorial Supplies Limited,26/01/2015,127.53
Customer Services,Facilities Management and Cleaning Services,CLCM,Premises-Related Expenditure,Clean Mats & Toilet Requisites,Border Janitorial Supplies Limited,26/01/2015,152.58
Customer Services,Facilities Management and Cleaning Services,CLSP,Premises-Related Expenditure,Clean Mats & Toilet Requisites,Border Janitorial Supplies Limited,09/01/2015,147.37
Customer Services,Facilities Management and Cleaning Services,CLSP,Premises-Related Expenditure,Clean Mats & Toilet Requisites,Border Janitorial Supplies Limited,09/01/2015,153.42
Customer Services,Facilities Management and Cleaning Services,CLSP,Premises-Related Expenditure,Clean Mats & Toilet Requisites,Border Janitorial Supplies Limited,09/01/2015,158.84
Customer Services,Facilities Management and Cleaning Services,CLSP,Premises-Related Expenditure,Clean Mats & Toilet Requisites,Border Janitorial Supplies Limited,09/01/2015,172.78
Customer Services,Facilities Management and Cleaning Services,CLSP,Premises-Related Expenditure,Clean Mats & Toilet Requisites,Border Janitorial Supplies Limited,09/01/2015,107.99
Customer Services,Facilities Management and Cleaning Services,CLSP,Premises-Related Expenditure,Clean Mats & Toilet Requisites,Border Janitorial Supplies Limited,09/01/2015,370.28
Customer Services,Facilities Management and Cleaning Services,CLSP,Premises-Related Expenditure,Clean Mats & Toilet Requisites,Border Janitorial Supplies Limited,09/01/2015,163.78
Customer Services,Facilities Management and Cleaning Services,CLSP,Premises-Related Expenditure,Clean Mats & Toilet Requisites,Border Janitorial Supplies Limited,09/01/2015,182.78
Customer Services,Facilities Management and Cleaning Services,CLSP,Premises-Related Expenditure,Clean Mats & Toilet Requisites,Border Janitorial Supplies Limited,09/01/2015,141.54
Customer Services,Facilities Management and Cleaning Services,CLSP,Premises-Related Expenditure,Clean Mats & Toilet Requisites,Border Janitorial Supplies Limited,09/01/2015,179.96
Customer Services,Facilities Management and Cleaning Services,CLSP,Premises-Related Expenditure,Clean Mats & Toilet Requisites,Border Janitorial Supplies Limited,09/01/2015,284.02
Customer Services,Facilities Management and Cleaning Services,CLSP,Premises-Related Expenditure,Clean Mats & Toilet Requisites,Border Janitorial Supplies Limited,09/01/2015,341.00
Customer Services,Facilities Management and Cleaning Services,CLSP,Premises-Related Expenditure,Clean Mats & Toilet Requisites,Border Janitorial Supplies Limited,09/01/2015,160.54
Customer Services,Facilities Management and Cleaning Services,CLSP,Premises-Related Expenditure,Clean Mats & Toilet Requisites,Border Janitorial Supplies Limited,09/01/2015,111.16
Customer Services,Facilities Management and Cleaning Services,CLSP,Premises-Related Expenditure,Clean Mats & Toilet Requisites,Border Janitorial Supplies Limited,09/01/2015,112.89
Customer Services,Facilities Management and Cleaning Services,CLSP,Premises-Related Expenditure,Clean Mats & Toilet Requisites,Border Janitorial Supplies Limited,22/01/2015,118.56
Customer Services,Facilities Management and Cleaning Services,CLSP,Premises-Related Expenditure,Clean Mats & Toilet Requisites,Border Janitorial Supplies Limited,22/01/2015,129.76
Customer Services,Facilities Management and Cleaning Services,CLSP,Premises-Related Expenditure,Clean Mats & Toilet Requisites,Border Janitorial Supplies Limited,22/01/2015,133.82
Customer Services,Facilities Management and Cleaning Services,CLSP,Premises-Related Expenditure,Clean Mats & Toilet Requisites,Border Janitorial Supplies Limited,22/01/2015,130.04
Customer Services,Facilities Management and Cleaning Services,CLSP,Premises-Related Expenditure,Contract Cleaning,CLEANIT CLEANING SERVICES,09/01/2015,112.50
Customer Services,Facilities Management and Cleaning Services,CLSP,Premises-Related Expenditure,Contract Cleaning,CLEANIT CLEANING SERVICES,09/01/2015,112.50
Customer Services,Facilities Management and Cleaning Services,CLSP,Premises-Related Expenditure,Contract Cleaning,The Best Connection,09/01/2015,123.62
Customer Services,Facilities Management and Cleaning Services,CLSP,Premises-Related Expenditure,Clean Mats & Toilet Requisites,THE CLEAN MACHINE DIRECT LTD,09/01/2015,152.58
Customer Services,Facilities Management and Cleaning Services,CLSP,Supplies & Services,Equipment - Repair,THE CLEAN MACHINE DIRECT LTD,09/01/2015,109.61
Customer Services,Facilities Management and Cleaning Services,CLSP,Supplies & Services,Equipment - Repair,THE CLEAN MACHINE DIRECT LTD,09/01/2015,"1,536.00"
Customer Services,Facilities Management and Cleaning Services,CLSP,Supplies & Services,Equipment - Repair,THE CLEAN MACHINE DIRECT LTD,09/01/2015,-112.68
Customer Services,Facilities Management and Cleaning Services,CLSS,Premises-Related Expenditure,Clean Mats & Toilet Requisites,Border Janitorial Supplies Limited,09/01/2015,350.56
Customer Services,Facilities Management and Cleaning Services,CLSS,Premises-Related Expenditure,Clean Mats & Toilet Requisites,Border Janitorial Supplies Limited,09/01/2015,106.52
Customer Services,Facilities Management and Cleaning Services,CLSS,Premises-Related Expenditure,Clean Mats & Toilet Requisites,Border Janitorial Supplies Limited,22/01/2015,119.48
Customer Services,Facilities Management and Cleaning Services,CLSS,Premises-Related Expenditure,Contract Cleaning,CLEANIT CLEANING SERVICES,09/01/2015,112.50
Customer Services,Facilities Management and Cleaning Services,CLSS,Premises-Related Expenditure,Contract Cleaning,CLEANIT CLEANING SERVICES,09/01/2015,112.50
Customer Services,Facilities Management and Cleaning Services,CLSS,Premises-Related Expenditure,Contract Cleaning,CLEANIT CLEANING SERVICES,09/01/2015,112.50
Customer Services,Facilities Management and Cleaning Services,CLSS,Premises-Related Expenditure,Contract Cleaning,CLEANIT CLEANING SERVICES,09/01/2015,202.50
Customer Services,Facilities Management and Cleaning Services,CLSS,Premises-Related Expenditure,Contract Cleaning,CLEANIT CLEANING SERVICES,09/01/2015,112.50
Customer Services,Facilities Management and Cleaning Services,CLSX,Supplies & Services,Equipment - Repair,A3 MACHINES LIMITED,09/01/2015,236.50
Customer Services,Facilities Management and Cleaning Services,CLSX,Premises-Related Expenditure,Clean Mats & Toilet Requisites,Border Janitorial Supplies Limited,09/01/2015,196.88
Customer Services,Facilities Management and Cleaning Services,CLSX,Premises-Related Expenditure,Clean Mats & Toilet Requisites,Border Janitorial Supplies Limited,09/01/2015,"1,400.00"
Customer Services,ICT,CBAB,Premises-Related Expenditure,R&M -Building Other,Protec Fire Detection PLC,28/01/2015,638.07
Customer Services,ICT,CBAG,Supplies & Services,Telephones,BRITISH TELECOMMUNICATIONS PLC,23/01/2015,"3,785.63"
Customer Services,ICT,CBAG,Supplies & Services,Mobile Phones,EE LTD,23/01/2015,"6,079.88"
Customer Services,ICT,CBAG,Supplies & Services,Mobile Phones,EE LTD,23/01/2015,141.86
Customer Services,ICT,CBAG,Supplies & Services,Mobile Phones,EE LTD,23/01/2015,"1,064.46"
Customer Services,ICT,CBAG,Supplies & Services,Mobile Phones,EE LTD,23/01/2015,"1,203.21"
Customer Services,ICT,CBAG,Supplies & Services,Mobile Phones,EE LTD,23/01/2015,"1,466.39"
Customer Services,ICT,CBAG,Supplies & Services,Mobile Phones,EE LTD,23/01/2015,903.43
Customer Services,ICT,CBAG,Supplies & Services,Mobile Phones,EE LTD,23/01/2015,"16,892.05"
Customer Services,ICT,CBAG,Supplies & Services,Mobile Phones,EE LTD,23/01/2015,"2,216.54"
Customer Services,ICT,CBAG,Supplies & Services,Computer Software (Maint),PROCESS FLOWS UK LTD,14/01/2015,"1,573.75"
Customer Services,ICT,CBAG,Supplies & Services,Other Expenses,PROCESS FLOWS UK LTD,21/01/2015,"-1,793.75"
Customer Services,ICT,CBAJ,Supplies & Services,Equipment - Purchase,CCS MEDIA LIMITED,05/01/2015,354.00
Customer Services,ICT,CBAJ,Supplies & Services,Comp Hardware (Purch / Hire),EUROPEAN ELECTRONIQUE LTD,29/01/2015,"11,312.50"
Customer Services,ICT,CBAJ,Supplies & Services,Comp Hardware (Purch / Hire),EUROPEAN ELECTRONIQUE LTD,29/01/2015,"1,800.00"
Customer Services,ICT,CBAJ,Supplies & Services,Comp Software (Purch / Hire),Oracle Corporation UK Limited,29/01/2015,"2,787.41"
Customer Services,ICT,CBAJ,Supplies & Services,Mobile Phones,ORANGE PCS LTD,06/01/2015,-124.00
Customer Services,ICT,CBAJ,Supplies & Services,Equipment - Purchase,PHOENIX SOFTWARE LTD,29/01/2015,585.00
Customer Services,ICT,CBAJ,Supplies & Services,Comp Hardware (Purch / Hire),SPECIALIST COMPUTERS CENTRES PLC,19/01/2015,246.64
Customer Services,ICT,CBAL,Supplies & Services,Stationery,PREMIER PAPER GROUP LTD,23/01/2015,497.50
Customer Services,ICT,CBAL,Supplies & Services,Stationery,PREMIER PAPER GROUP LTD,23/01/2015,248.75
Customer Services,ICT,CBAL,Supplies & Services,Stationery,PREMIER PAPER GROUP LTD,05/01/2015,248.75
Customer Services,ICT,CBAL,Supplies & Services,Stationery,PREMIER PAPER GROUP LTD,06/01/2015,497.50
Customer Services,ICT,CBAL,Supplies & Services,Stationery,PREMIER PAPER GROUP LTD,29/01/2015,199.00
Customer Services,ICT,CBAR,Supplies & Services,Comp Hardware (Purch / Hire),CCS MEDIA LIMITED,23/01/2015,"2,880.00"
Customer Services,ICT,CBAR,Supplies & Services,Comp Hardware (Purch / Hire),DELL CORPORATION,28/01/2015,"15,893.50"
Customer Services,ICT,WCAG,Capital Expenditure,Legal Fees,Browne Jacobson LLP,21/01/2015,"3,158.40"
Customer Services,ICT,WCAG,Capital Expenditure,Legal Fees,Browne Jacobson LLP,21/01/2015,"1,474.00"
Customer Services,ICT,WCAG,Capital Expenditure,Computer Hardware,CCS MEDIA LIMITED,21/01/2015,"2,600.00"
Customer Services,ICT,WCAG,Capital Expenditure,Payments to Contractor,MIS LOCAL GOVERNMENT SYSTEMS LTD,05/01/2015,"20,700.00"
Customer Services,ICT,WCAG,Capital Expenditure,Payments to Contractor,Oaresome LTD,23/01/2015,"2,300.00"
Customer Services,ICT,WCAG,Capital Expenditure,Payments to Contractor,Oaresome LTD,23/01/2015,"2,300.00"
Customer Services,ICT,WCAG,Capital Expenditure,Payments to Contractor,Oaresome LTD,06/01/2015,"4,600.00"
Customer Services,ICT,WCAG,Capital Expenditure,Marketing / Advertising,THE MIDLAND NEWS ASSOCIATION LTD,06/01/2015,445.50
Customer Services,ICT,WCAG,Capital Expenditure,Marketing / Advertising,THE MIDLAND NEWS ASSOCIATION LTD,05/01/2015,163.56
Customer Services,ICT,WCAG,Capital Expenditure,Marketing / Advertising,THE MIDLAND NEWS ASSOCIATION LTD,05/01/2015,417.06
Customer Services,Library Services,LLAA,Supplies & Services,Libraries Book Fund,BERTRAMS LIBRARY SERVICES,15/01/2015,101.49
Customer Services,Library Services,LLAA,Supplies & Services,Libraries Book Fund,BERTRAMS LIBRARY SERVICES,15/01/2015,217.54
Customer Services,Library Services,LLAA,Supplies & Services,Libraries Book Fund,BERTRAMS LIBRARY SERVICES,15/01/2015,314.63
Customer Services,Library Services,LLAA,Supplies & Services,Libraries Book Fund,BERTRAMS LIBRARY SERVICES,06/01/2015,103.72
Customer Services,Library Services,LLAA,Supplies & Services,Libraries Book Fund,BERTRAMS LIBRARY SERVICES,06/01/2015,114.01
Customer Services,Library Services,LLAA,Supplies & Services,Libraries Book Fund,BERTRAMS LIBRARY SERVICES,06/01/2015,116.02
Customer Services,Library Services,LLAA,Supplies & Services,Libraries Book Fund,BERTRAMS LIBRARY SERVICES,06/01/2015,370.62
Customer Services,Library Services,LLAA,Supplies & Services,Libraries Book Fund,BERTRAMS LIBRARY SERVICES,21/01/2015,501.53
Customer Services,Library Services,LLAA,Supplies & Services,Libraries Book Fund,BERTRAMS LIBRARY SERVICES,21/01/2015,238.11
Customer Services,Library Services,LLAA,Supplies & Services,Libraries Book Fund,BERTRAMS LIBRARY SERVICES,21/01/2015,130.19
Customer Services,Library Services,LLAA,Supplies & Services,Libraries Book Fund,BERTRAMS LIBRARY SERVICES,21/01/2015,468.30
Customer Services,Library Services,LLAA,Supplies & Services,Libraries Book Fund,BERTRAMS LIBRARY SERVICES,21/01/2015,407.79
Customer Services,Library Services,LLAA,Supplies & Services,Libraries Book Fund,BERTRAMS LIBRARY SERVICES,21/01/2015,229.41
Customer Services,Library Services,LLAA,Supplies & Services,Libraries Book Fund,BERTRAMS LIBRARY SERVICES,21/01/2015,150.58
Customer Services,Library Services,LLAA,Supplies & Services,Libraries Book Fund,BERTRAMS LIBRARY SERVICES,21/01/2015,159.64
Customer Services,Library Services,LLAA,Supplies & Services,Libraries Book Fund,BERTRAMS LIBRARY SERVICES,07/01/2015,311.37
Customer Services,Library Services,LLAA,Supplies & Services,Libraries Book Fund,BERTRAMS LIBRARY SERVICES,14/01/2015,121.20
Customer Services,Library Services,LLAA,Supplies & Services,Libraries Book Fund,BERTRAMS LIBRARY SERVICES,14/01/2015,365.87
Customer Services,Library Services,LLAA,Supplies & Services,Stationery,COVERGOLD LTD,21/01/2015,150.00
Customer Services,Library Services,LLAA,Supplies & Services,Stationery,COVERGOLD LTD,21/01/2015,199.00
Customer Services,Library Services,LLAA,Supplies & Services,Stationery,COVERGOLD LTD,21/01/2015,199.00
Customer Services,Library Services,LLAA,Supplies & Services,Libraries Book Fund,LIBRARY MAGNA BOOKS LIMITED,15/01/2015,279.28
Customer Services,Library Services,LLAA,Supplies & Services,Libraries Book Fund,LIBRARY MAGNA BOOKS LIMITED,21/01/2015,177.67
Customer Services,Library Services,LLAA,Supplies & Services,Libraries Book Fund,LIBRARY MAGNA BOOKS LIMITED,14/01/2015,249.76
Customer Services,Library Services,LLAA,Supplies & Services,Libraries Book Fund,OXFORD UNIVERSITY PRESS,06/01/2015,"4,146.00"
Customer Services,Library Services,LLAA,Supplies & Services,Libraries Book Fund,ULVERSCROFT LARGE PRINT BOOKS LIMITED,21/01/2015,118.32
Customer Services,Library Services,LLAA,Supplies & Services,Libraries Book Fund,ULVERSCROFT LARGE PRINT BOOKS LIMITED,21/01/2015,111.68
Customer Services,Library Services,LLAA,Supplies & Services,Libraries Book Fund,ULVERSCROFT LARGE PRINT BOOKS LIMITED,21/01/2015,214.08
Customer Services,Library Services,LLAA,Supplies & Services,Libraries Book Fund,ULVERSCROFT LARGE PRINT BOOKS LIMITED,21/01/2015,195.60
Customer Services,Library Services,LLAA,Supplies & Services,Libraries Book Fund,ULVERSCROFT LARGE PRINT BOOKS LIMITED,21/01/2015,234.40
Customer Services,Library Services,LLAA,Supplies & Services,Libraries Book Fund,W F HOWES LTD,06/01/2015,187.20
Customer Services,Library Services,LLAA,Supplies & Services,Libraries Book Fund,W F HOWES LTD,06/01/2015,381.60
Customer Services,Library Services,LLAC,Supplies & Services,Computer Software (Maint),AXIELL LTD,07/01/2015,"6,926.55"
Customer Services,Library Services,LLAC,Supplies & Services,Computer Hardware (Maint),AXIELL LTD,07/01/2015,"2,864.85"
Customer Services,Library Services,LLAF,Supplies & Services,Computer Software (Maint),WORCESTERSHIRE COUNTY COUNCIL,22/01/2015,"9,610.00"
Customer Services,Revenues,CBAK,Supplies & Services,Paper Supplies,Antalis,05/01/2015,192.64
Customer Services,Revenues,CBAK,Supplies & Services,Printing - Other,LION FPG LIMITED,15/01/2015,290.00
Customer Services,Revenues,CBAK,Supplies & Services,Printing - Other,LION FPG LIMITED,19/01/2015,379.00
Customer Services,Revenues,CBAK,Supplies & Services,Printing - Other,LION FPG LIMITED,19/01/2015,185.00
Customer Services,Revenues,CBAK,Supplies & Services,Printing - Other,LION FPG LIMITED,21/01/2015,"3,199.00"
Customer Services,Revenues,CBAK,Supplies & Services,Printing - Other,LION FPG LIMITED,19/01/2015,153.00
Customer Services,Revenues,CBAK,Supplies & Services,Printing - Other,MARKETING AT THE MILL,22/01/2015,178.00
Customer Services,Revenues,CBAK,Supplies & Services,Printing - Other,MARKETING AT THE MILL,21/01/2015,880.00
Customer Services,Revenues,CBAK,Supplies & Services,Printing - Other,MARKETING AT THE MILL,20/01/2015,125.00
Customer Services,Revenues,CBAK,Supplies & Services,Printing - Other,MARKETING AT THE MILL,20/01/2015,"2,784.00"
Customer Services,Revenues,CBAK,Supplies & Services,Stationery,PREMIER PAPER GROUP LTD,05/01/2015,398.00
Customer Services,Revenues,CBAK,Supplies & Services,Stationery,PREMIER PAPER GROUP LTD,28/01/2015,117.15
Customer Services,Revenues,CBAK,Supplies & Services,Printing - Other,TUDOR PRINT & SIGNS,05/01/2015,101.00
Customer Services,Revenues,CBAK,Supplies & Services,Printing - Print Room,XEROX (UK) LTD,15/01/2015,"2,139.14"
Customer Services,Revenues,CBAK,Supplies & Services,Printing - Print Room,XEROX (UK) LTD,21/01/2015,"1,670.00"
Customer Services,Revenues,COAC,Supplies & Services,Stationery,FP EXECUTIVE AGENCY LTD,04/01/2015,106.00
Customer Services,Revenues,COAC,Supplies & Services,Postages,FRANCOTYP-POSTALIA LTD (POSTAGE),15/01/2015,"2,000.00"
Customer Services,Revenues,COAC,Supplies & Services,Postages,FRANCOTYP-POSTALIA LTD (POSTAGE),04/01/2015,"2,012.00"
Customer Services,Revenues,COAC,Supplies & Services,Postages,FRANCOTYP-POSTALIA LTD (POSTAGE),26/01/2015,"3,012.00"
Customer Services,Revenues,LRTA,Supplies & Services,Postages,G FORCE EXPRESS PARCELS LTD,09/01/2015,358.94
Customer Services,Revenues,LRTA,Supplies & Services,Postages,G FORCE EXPRESS PARCELS LTD,07/01/2015,485.62
Customer Services,Revenues,LRTA,Third Party Payments,Secure scanning and shredding,NORTHGATE INFORMATION SOLUTIONS UK LTD,19/01/2015,207.26
Customer Services,Revenues,LRTA,Supplies & Services,Postages,ROYAL MAIL GROUP LTD,15/01/2015,"-3,495.00"
Customer Services,Revenues,LRTA,Supplies & Services,Postages,ROYAL MAIL GROUP LTD,04/01/2015,"2,267.90"
Customer Services,Revenues,LRTA,Supplies & Services,Postages,ROYAL MAIL GROUP LTD,19/01/2015,"1,559.54"
Customer Services,Revenues,LRTA,Supplies & Services,Postages,ROYAL MAIL GROUP LTD,07/01/2015,"2,133.33"
Customer Services,Revenues,LRTA,Supplies & Services,Postages,ROYAL MAIL GROUP LTD,09/01/2015,"1,403.11"
Customer Services,Revenues,LRTA,Supplies & Services,Postages,ROYAL MAIL GROUP LTD,29/01/2015,"2,598.32"
Customer Services,Revenues,LRTA,Supplies & Services,Postages,ROYAL MAIL GROUP PLC,21/01/2015,"1,729.84"
Customer Services,Revenues,LRTB,Employees,Professional Subs,IRRV,26/01/2015,219.00
Customer Services,Revenues,LRTB,Employees,Professional Subs,IRRV,05/01/2015,525.00
Customer Services,Revenues,LRTB,Supplies & Services,Comp Software (Purch / Hire),NORTHGATE INFORMATION SOLUTIONS UK LTD,29/01/2015,950.00
Customer Services,Revenues,LRTB,Third Party Payments,Private Contractors,ROSSENDALES LTD,04/01/2015,277.50
Customer Services,Revenues,LRTB,Third Party Payments,Private Contractors,ROSSENDALES LTD,29/01/2015,634.00
"Development, Business & Employment","AD - Development, Business & Housing",WCAN,Capital Expenditure,External Professional Fees,DMW ENVIRONMENTAL SAFETY LTD,30/01/2015,750.00
"Development, Business & Employment","AD - Development, Business & Housing",WCAN,Capital Expenditure,Payments to Contractor,PAVE AWAYS LTD,30/01/2015,"82,426.78"
"Development, Business & Employment","AD - Development, Business & Housing",WCAN,Capital Expenditure,Payments to Contractor,The Derek Evans Partnership LLP,05/01/2015,"2,132.00"
"Development, Business & Employment",Business & Development Planning,AEAB,Supplies & Services,Marketing & Publicity,DESIGN:ONE LTD,05/01/2015,585.00
"Development, Business & Employment",Business & Development Planning,AEAB,Supplies & Services,Marketing & Publicity,Elkro Limited,05/01/2015,"1,683.90"
"Development, Business & Employment",Business & Development Planning,AEAB,Supplies & Services,Research Surveys,Good2Great Ltd,05/01/2015,"7,700.00"
"Development, Business & Employment",Business & Development Planning,AEAB,Supplies & Services,Marketing & Publicity,ROB FINNEY PHOTOGRAPHY,05/01/2015,200.00
"Development, Business & Employment",Business & Development Planning,AEAB,Supplies & Services,Marketing & Publicity,TELFORD INTERNATIONAL CENTRE,29/01/2015,"1,018.00"
"Development, Business & Employment",Business & Development Planning,AEAB,Supplies & Services,Marketing & Publicity,THE MIDLAND NEWS ASSOCIATION LTD,19/01/2015,"2,250.00"
"Development, Business & Employment",Business & Development Planning,AEAB,Supplies & Services,Research Surveys,West Midland Economic Forum Limited,05/01/2015,"4,300.00"
"Development, Business & Employment",Business & Development Planning,AEAB,Supplies & Services,Marketing & Publicity,Zen Communications (UK) Ltd,20/01/2015,300.00
"Development, Business & Employment",Business & Development Planning,AEAG,Supplies & Services,Marketing & Publicity,DESIGN:ONE LTD,20/01/2015,440.00
"Development, Business & Employment",Business & Development Planning,AEAG,Supplies & Services,Marketing & Publicity,Zen Communications (UK) Ltd,28/01/2015,600.00
"Development, Business & Employment",Business & Development Planning,AEAX,Supplies & Services,Other Grants (Expenses),Good2Great Ltd,06/01/2015,"8,400.00"
"Development, Business & Employment",Business & Development Planning,AEAX,Supplies & Services,Other Grants (Expenses),Good2Great Ltd,06/01/2015,145.39
"Development, Business & Employment",Business & Development Planning,EWAJ,Supplies & Services,Research Surveys,Resource Futures Ltd,19/01/2015,"9,875.00"
"Development, Business & Employment",Business & Development Planning,EWAJ,Supplies & Services,Service Contracts,SHROPSHIRE COUNCIL ,20/01/2015,"2,694.00"
"Development, Business & Employment",Business & Development Planning,EWAJ,Employees,Professional Subs,THE INSTITUTE OF LOGISTICS & TRANSPORT,29/01/2015,168.00
"Development, Business & Employment",Business & Development Planning,EWAP,Supplies & Services,Publications,THE MIDLAND NEWS ASSOCIATION LTD,29/01/2015,259.20
"Development, Business & Employment",Business & Development Planning,WDAF,Capital Expenditure,Expenditure on loans & other financial assistance,DMW ENVIRONMENTAL SAFETY LTD,08/01/2015,150.00
"Development, Business & Employment",Business & Development Planning,WDAF,Capital Expenditure,Expenditure on loans & other financial assistance,DMW ENVIRONMENTAL SAFETY LTD,08/01/2015,150.00
"Development, Business & Employment",Business & Development Planning,WDAF,Capital Expenditure,Expenditure on loans & other financial assistance,DMW ENVIRONMENTAL SAFETY LTD,08/01/2015,150.00
"Development, Business & Employment",Business & Development Planning,WDAF,Capital Expenditure,Expenditure on loans & other financial assistance,DMW ENVIRONMENTAL SAFETY LTD,08/01/2015,150.00
"Development, Business & Employment",Business & Development Planning,WDAF,Capital Expenditure,Expenditure on loans & other financial assistance,DMW ENVIRONMENTAL SAFETY LTD,09/01/2015,150.00
"Development, Business & Employment",Business & Development Planning,WDAF,Capital Expenditure,Expenditure on loans & other financial assistance,DMW ENVIRONMENTAL SAFETY LTD,09/01/2015,150.00
"Development, Business & Employment",Business & Development Planning,WDAF,Capital Expenditure,Expenditure on loans & other financial assistance,DMW ENVIRONMENTAL SAFETY LTD,09/01/2015,150.00
"Development, Business & Employment",Business & Development Planning,WDAF,Capital Expenditure,Expenditure on loans & other financial assistance,DMW ENVIRONMENTAL SAFETY LTD,09/01/2015,150.00
"Development, Business & Employment",Business & Development Planning,WDAF,Capital Expenditure,Expenditure on loans & other financial assistance,DMW ENVIRONMENTAL SAFETY LTD,09/01/2015,150.00
"Development, Business & Employment",Business & Development Planning,WDAF,Capital Expenditure,Expenditure on loans & other financial assistance,DMW ENVIRONMENTAL SAFETY LTD,09/01/2015,150.00
"Development, Business & Employment",Business & Development Planning,WDAF,Capital Expenditure,Expenditure on loans & other financial assistance,DMW ENVIRONMENTAL SAFETY LTD,09/01/2015,150.00
"Development, Business & Employment",Business & Development Planning,WDAF,Capital Expenditure,Expenditure on loans & other financial assistance,DMW ENVIRONMENTAL SAFETY LTD,09/01/2015,150.00
"Development, Business & Employment",Business & Development Planning,WDAF,Capital Expenditure,Expenditure on loans & other financial assistance,DMW ENVIRONMENTAL SAFETY LTD,09/01/2015,150.00
"Development, Business & Employment",Business & Development Planning,WDAF,Capital Expenditure,Expenditure on loans & other financial assistance,DMW ENVIRONMENTAL SAFETY LTD,09/01/2015,150.00
"Development, Business & Employment",Business & Development Planning,WDAF,Capital Expenditure,Expenditure on loans & other financial assistance,DMW ENVIRONMENTAL SAFETY LTD,28/01/2015,150.00
"Development, Business & Employment",Business & Development Planning,WDAF,Capital Expenditure,Expenditure on loans & other financial assistance,DMW ENVIRONMENTAL SAFETY LTD,28/01/2015,150.00
"Development, Business & Employment",Business & Development Planning,WDAF,Capital Expenditure,Expenditure on loans & other financial assistance,DMW ENVIRONMENTAL SAFETY LTD,28/01/2015,150.00
"Development, Business & Employment",Business & Development Planning,WDAF,Capital Expenditure,Expenditure on loans & other financial assistance,DMW ENVIRONMENTAL SAFETY LTD,28/01/2015,150.00
"Development, Business & Employment",Business & Development Planning,WDAF,Capital Expenditure,Expenditure on loans & other financial assistance,DMW ENVIRONMENTAL SAFETY LTD,28/01/2015,150.00
"Development, Business & Employment",Business & Development Planning,WDAF,Capital Expenditure,Expenditure on loans & other financial assistance,DMW ENVIRONMENTAL SAFETY LTD,28/01/2015,150.00
"Development, Business & Employment",Business & Development Planning,WDAF,Capital Expenditure,Expenditure on loans & other financial assistance,DMW ENVIRONMENTAL SAFETY LTD,28/01/2015,150.00
"Development, Business & Employment",Business & Development Planning,WDAF,Capital Expenditure,Expenditure on loans & other financial assistance,DMW ENVIRONMENTAL SAFETY LTD,28/01/2015,150.00
"Development, Business & Employment",Business & Development Planning,WDAF,Capital Expenditure,Expenditure on loans & other financial assistance,MARTIN EVANS CONSTRUCTION LTD,15/01/2015,"3,968.19"
"Development, Business & Employment",Business & Development Planning,WDAF,Capital Expenditure,Expenditure on loans & other financial assistance,MARTIN EVANS CONSTRUCTION LTD,20/01/2015,"4,269.59"
"Development, Business & Employment",Business & Development Planning,WDAF,Capital Expenditure,Expenditure on loans & other financial assistance,MR O P RIGBY T/A ROSEMONT BUILDING CONTRACTORS,15/01/2015,"6,756.00"
"Development, Business & Employment",Business & Development Planning,WDAF,Capital Expenditure,Expenditure on loans & other financial assistance,MR O P RIGBY T/A ROSEMONT BUILDING CONTRACTORS,09/01/2015,"3,237.85"
"Development, Business & Employment",Business & Development Planning,WDAF,Capital Expenditure,Expenditure on loans & other financial assistance,R E BROWN BUILDERS LIMITED,09/01/2015,"3,610.30"
"Development, Business & Employment",Business & Development Planning,WDAF,Capital Expenditure,Expenditure on loans & other financial assistance,R E BROWN BUILDERS LIMITED,28/01/2015,114.00
"Development, Business & Employment",Business & Development Planning,WDAF,Capital Expenditure,Expenditure on loans & other financial assistance,R E BROWN BUILDERS LIMITED,28/01/2015,"10,937.00"
"Development, Business & Employment",Business & Development Planning,WDAF,Capital Expenditure,Expenditure on loans & other financial assistance,REDACTED PERSONAL INFORMATION,09/01/2015,"2,375.00"
"Development, Business & Employment",Business & Development Planning,WDAF,Capital Expenditure,Expenditure on loans & other financial assistance,REDACTED PERSONAL INFORMATION,20/01/2015,"1,950.00"
"Development, Business & Employment",Business & Development Planning,WDAF,Capital Expenditure,Expenditure on loans & other financial assistance,REDACTED PERSONAL INFORMATION,28/01/2015,"3,587.21"
"Development, Business & Employment",Business & Development Planning,WDAF,Capital Expenditure,Expenditure on loans & other financial assistance,STANNAH LIFT SERVICES LTD,08/01/2015,"3,843.00"
"Development, Business & Employment",Business & Development Planning,WDAF,Capital Expenditure,Expenditure on loans & other financial assistance,STANNAH LIFT SERVICES LTD,08/01/2015,"1,770.00"
"Development, Business & Employment",Business & Development Planning,WDAF,Capital Expenditure,Expenditure on loans & other financial assistance,STANNAH LIFT SERVICES LTD,09/01/2015,"1,805.00"
"Development, Business & Employment",Business & Development Planning,WDAF,Capital Expenditure,Expenditure on loans & other financial assistance,STANNAH LIFT SERVICES LTD,09/01/2015,"1,611.00"
"Development, Business & Employment",Business & Development Planning,WDAF,Capital Expenditure,Expenditure on loans & other financial assistance,STANNAH LIFT SERVICES LTD,09/01/2015,"1,866.00"
"Development, Business & Employment",Business & Development Planning,WDAF,Capital Expenditure,Expenditure on loans & other financial assistance,STANNAH LIFT SERVICES LTD,05/01/2015,"1,790.00"
"Development, Business & Employment",Business & Development Planning,WDAF,Capital Expenditure,Expenditure on loans & other financial assistance,STANNAH LIFT SERVICES LTD,14/01/2015,"1,649.21"
"Development, Business & Employment",Business & Development Planning,WDAF,Capital Expenditure,Expenditure on loans & other financial assistance,STANNAH LIFT SERVICES LTD,20/01/2015,"3,994.00"
"Development, Business & Employment",Business & Development Planning,WDAF,Capital Expenditure,Expenditure on loans & other financial assistance,THE WREKIN HOUSING TRUST (INVOICES ONLY),15/01/2015,"1,600.00"
"Development, Business & Employment",Business & Development Planning,WDAF,Capital Expenditure,Expenditure on loans & other financial assistance,THE WREKIN HOUSING TRUST (INVOICES ONLY),15/01/2015,"1,600.00"
"Development, Business & Employment",Business & Development Planning,WDAF,Capital Expenditure,Expenditure on loans & other financial assistance,THE WREKIN HOUSING TRUST (INVOICES ONLY),15/01/2015,"1,600.00"
"Development, Business & Employment",Business & Development Planning,WDAF,Capital Expenditure,Expenditure on loans & other financial assistance,THE WREKIN HOUSING TRUST (INVOICES ONLY),15/01/2015,"1,600.00"
"Development, Business & Employment",Business & Development Planning,WDAF,Capital Expenditure,Expenditure on loans & other financial assistance,THE WREKIN HOUSING TRUST (INVOICES ONLY),20/01/2015,"1,600.00"
"Development, Business & Employment",Business & Development Planning,WDAF,Capital Expenditure,Expenditure on loans & other financial assistance,THE WREKIN HOUSING TRUST (INVOICES ONLY),20/01/2015,"1,600.00"
"Development, Business & Employment",Business & Development Planning,WDAF,Capital Expenditure,Expenditure on loans & other financial assistance,THE WREKIN HOUSING TRUST (INVOICES ONLY),20/01/2015,"3,981.76"
"Development, Business & Employment",Business & Development Planning,WDAF,Capital Expenditure,Expenditure on loans & other financial assistance,THE WREKIN HOUSING TRUST (INVOICES ONLY),20/01/2015,685.20
"Development, Business & Employment",Business & Development Planning,WDAF,Capital Expenditure,Expenditure on loans & other financial assistance,THE WREKIN HOUSING TRUST (INVOICES ONLY),20/01/2015,"1,600.00"
"Development, Business & Employment",Business & Development Planning,WDAF,Capital Expenditure,Expenditure on loans & other financial assistance,THE WREKIN HOUSING TRUST (INVOICES ONLY),16/01/2015,780.00
"Development, Business & Employment",Business & Development Planning,WDAF,Capital Expenditure,Expenditure on loans & other financial assistance,THE WREKIN HOUSING TRUST (INVOICES ONLY),16/01/2015,"1,600.00"
"Development, Business & Employment",Business & Development Planning,WDAF,Capital Expenditure,Expenditure on loans & other financial assistance,THE WREKIN HOUSING TRUST (INVOICES ONLY),16/01/2015,780.00
"Development, Business & Employment",Business & Development Planning,WDAF,Capital Expenditure,Expenditure on loans & other financial assistance,THE WREKIN HOUSING TRUST (INVOICES ONLY),16/01/2015,"1,600.00"
"Development, Business & Employment",Business & Development Planning,WDAF,Capital Expenditure,Expenditure on loans & other financial assistance,THE WREKIN HOUSING TRUST (INVOICES ONLY),16/01/2015,"1,600.00"
"Development, Business & Employment",Business & Development Planning,WDAF,Capital Expenditure,Expenditure on loans & other financial assistance,THE WREKIN HOUSING TRUST (INVOICES ONLY),16/01/2015,"1,600.00"
"Development, Business & Employment",Business & Development Planning,WDAF,Capital Expenditure,Expenditure on loans & other financial assistance,THE WREKIN HOUSING TRUST (INVOICES ONLY),16/01/2015,"1,600.00"
"Development, Business & Employment",Business & Development Planning,WDAF,Capital Expenditure,Expenditure on loans & other financial assistance,THREE PINES BUILDING CO LTD,15/01/2015,"3,704.66"
"Development, Business & Employment",Business & Development Planning,WDAF,Capital Expenditure,Expenditure on loans & other financial assistance,THREE PINES BUILDING CO LTD,09/01/2015,"4,296.51"
"Development, Business & Employment",Business & Development Planning,WDAF,Capital Expenditure,Expenditure on loans & other financial assistance,THREE PINES BUILDING CO LTD,14/01/2015,110.00
"Development, Business & Employment",Business & Development Planning,WDAF,Capital Expenditure,Expenditure on loans & other financial assistance,THREE PINES BUILDING CO LTD,28/01/2015,"1,821.58"
"Development, Business & Employment",Business & Development Planning,WDAF,Capital Expenditure,Expenditure on loans & other financial assistance,WELLINGTON INSULATION CO. LTD,20/01/2015,"3,612.00"
"Development, Business & Employment",Business & Development Planning,WDAK,Premises-Related Expenditure,Non Domestic Rates,PARK LANE CENTRE,09/01/2015,283.97
"Development, Business & Employment",Business & Development Planning,WDAK,Premises-Related Expenditure,Non Domestic Rates,PARK LANE CENTRE,09/01/2015,364.00
"Development, Business & Employment",Business & Development Planning,WDGD,Capital Expenditure,Expenditure on loans & other financial assistance,Carillion Energy Services Ltd,06/01/2015,533.28
"Development, Business & Employment",Business & Development Planning,WDGD,Capital Expenditure,Expenditure on loans & other financial assistance,Carillion Energy Services Ltd,06/01/2015,166.65
"Development, Business & Employment",Business & Development Planning,WDGD,Capital Expenditure,Expenditure on loans & other financial assistance,Carillion Energy Services Ltd,09/01/2015,166.65
"Development, Business & Employment",Business & Development Planning,WDGD,Capital Expenditure,Expenditure on loans & other financial assistance,Carillion Energy Services Ltd,09/01/2015,499.95
"Development, Business & Employment",Business & Development Planning,WDGD,Capital Expenditure,Expenditure on loans & other financial assistance,Carillion Energy Services Ltd,09/01/2015,"2,750.10"
"Development, Business & Employment",Business & Development Planning,WDGD,Capital Expenditure,Expenditure on loans & other financial assistance,Carillion Energy Services Ltd,16/01/2015,"41,329.10"
"Development, Business & Employment",Business & Development Planning,WDGD,Capital Expenditure,Expenditure on loans & other financial assistance,Carillion Energy Services Ltd,16/01/2015,"30,304.10"
"Development, Business & Employment",Business & Development Planning,WDGD,Capital Expenditure,Expenditure on loans & other financial assistance,Carillion Energy Services Ltd,16/01/2015,"37,284.54"
"Development, Business & Employment",Business & Development Planning,WDGD,Capital Expenditure,Expenditure on loans & other financial assistance,Carillion Energy Services Ltd,19/01/2015,"62,596.91"
"Development, Business & Employment",Business & Development Planning,WDGD,Capital Expenditure,Expenditure on loans & other financial assistance,Carillion Energy Services Ltd,19/01/2015,"105,281.27"
"Development, Business & Employment",Business & Development Planning,WDGD,Capital Expenditure,Expenditure on loans & other financial assistance,Carillion Energy Services Ltd,06/01/2015,"2,750.10"
"Development, Business & Employment",Business & Development Planning,WDSE,Capital Expenditure,Legal Fees,FREETH CARTWRIGHT LLP,21/01/2015,330.00
"Development, Business & Employment",Business & Development Planning,WDSQ,Capital Expenditure,Payments to Contractor,Clearview Security Limited,22/01/2015,"2,552.18"
"Development, Business & Employment",Business & Development Planning,WDST,Capital Expenditure,Payments to Contractor,Baart Harries Newall,05/01/2015,"3,600.00"
"Development, Business & Employment",Business & Development Planning,WDST,Capital Expenditure,Payments to Contractor,BUSINESS WATCH GUARDING LIMITED,28/01/2015,695.25
"Development, Business & Employment",Business & Development Planning,WDST,Capital Expenditure,Payments to Contractor,BUSINESS WATCH GUARDING LIMITED,05/01/2015,618.00
"Development, Business & Employment",Business & Development Planning,WDST,Capital Expenditure,Payments to Contractor,E.ON,05/01/2015,257.66
"Development, Business & Employment",Business & Development Planning,WDST,Capital Expenditure,Payments to Contractor,JORDAN LEWIS ASSOCIATES LTD,05/01/2015,"7,718.38"
"Development, Business & Employment",Business & Development Planning,WDST,Capital Expenditure,Payments to Contractor,PTSG ACCESS AND SAFETY LTD,05/01/2015,290.00
"Development, Business & Employment",Business & Development Planning,WDSW,Capital Expenditure,External Professional Fees,ABSOLUTE ECOLOGY,09/01/2015,525.00
"Development, Business & Employment",Business & Development Planning,WDSW,Capital Expenditure,External Professional Fees,ABSOLUTE ECOLOGY,05/01/2015,"1,953.00"
"Development, Business & Employment",Business & Development Planning,WDSW,Capital Expenditure,External Professional Fees,ABSOLUTE ECOLOGY,05/01/2015,"3,970.00"
"Development, Business & Employment",Business & Development Planning,WDSW,Capital Expenditure,External Professional Fees,BM3 Architecture,30/01/2015,"2,500.00"
"Development, Business & Employment",Business & Development Planning,WDSW,Capital Expenditure,Legal Fees,Bond Dickinson LLP,21/01/2015,438.20
"Development, Business & Employment",Business & Development Planning,WDSW,Capital Expenditure,External Professional Fees,PRICEWATERHOUSECOOPERS,08/01/2015,"76,000.00"
"Development, Business & Employment",Development Management,DDAA,Supplies & Services,Application Software Maint,MIS LOCAL GOVERNMENT SYSTEMS LTD,05/01/2015,"30,257.16"
"Development, Business & Employment",Development Management,DDAC,Supplies & Services,Advertising,THE MIDLAND NEWS ASSOCIATION LTD,09/01/2015,198.00
"Development, Business & Employment",Development Management,DDAC,Supplies & Services,Advertising,THE MIDLAND NEWS ASSOCIATION LTD,22/01/2015,233.28
"Development, Business & Employment",Development Management,DDAC,Supplies & Services,Advertising,THE MIDLAND NEWS ASSOCIATION LTD,30/01/2015,233.28
"Development, Business & Employment",Development Management,DDAE,Supplies & Services,Advertising,THE MIDLAND NEWS ASSOCIATION LTD,06/01/2015,198.00
"Development, Business & Employment",Development Management,DDAE,Supplies & Services,Advertising,THE MIDLAND NEWS ASSOCIATION LTD,30/01/2015,103.68
"Development, Business & Employment",Development Management,DDAG,Employees,Recruitment Advertising,HAYMARKET PUBLISHING SERVICES LTD,26/01/2015,"1,167.00"
"Development, Business & Employment",Development Management,DDAG,Employees,Other Employee Costs,matchtech,07/01/2015,"1,380.00"
"Development, Business & Employment",Development Management,DDAG,Employees,Other Employee Costs,matchtech,07/01/2015,534.75
"Development, Business & Employment",Development Management,DDAG,Employees,Agency Supply Costs,matchtech,30/01/2015,"1,207.50"
"Development, Business & Employment",Development Management,DDAG,Supplies & Services,Legal Expenses,NO 5 CHAMBERS LIMITED,08/01/2015,660.00
"Development, Business & Employment",Development Management,DDAG,Employees,Professional Subs,R T P I,30/01/2015,290.00
"Development, Business & Employment",Development Management,DDAG,Supplies & Services,Print & Data Services (Print Room) - Charges,RESOLUTION DATA MANAGEMENT LTD,15/01/2015,104.58
"Development, Business & Employment",Development Management,DDAG,Supplies & Services,Postages,ROYAL MAIL GROUP LTD,22/01/2015,260.84
"Development, Business & Employment",Development Management,DDAG,Employees,Other Employee Costs,THOMPSONS SOLICITORS,28/01/2015,291.67
"Development, Business & Employment",Development Management,DDAG,Supplies & Services,Research Surveys,VALUATION OFFICE AGENCY ADMINISTRATION,28/01/2015,"1,491.24"
"Development, Business & Employment",Property & Design,CAAG,Supplies & Services,Consultants Fees,BARRY LOWE SURVEYS LTD,16/01/2015,450.00
"Development, Business & Employment",Property & Design,CAAG,Employees,Agency Supply Costs,RACS Collective Limited,08/01/2015,913.40
"Development, Business & Employment",Property & Design,CAAG,Employees,Agency Supply Costs,RACS Collective Limited,20/01/2015,934.12
"Development, Business & Employment",Property & Design,CAAG,Employees,Agency Supply Costs,RACS Collective Limited,28/01/2015,908.12
"Development, Business & Employment",Property & Design,CAAG,Supplies & Services,Printing - Other,STANFORD MARSH FINANCE LTD,19/01/2015,118.92
"Development, Business & Employment",Property & Design,CAAH,Premises-Related Expenditure,R&M -Buildings DLO Charge,A HAND SERVICES (Dyno Rod) LTD,21/01/2015,"2,950.00"
"Development, Business & Employment",Property & Design,CAAH,Premises-Related Expenditure,R&M -Buildings DLO Charge,ADT FIRE & SECURITY PLC,16/01/2015,132.16
"Development, Business & Employment",Property & Design,CAAH,Premises-Related Expenditure,R&M -Buildings DLO Charge,ADT FIRE & SECURITY PLC,21/01/2015,259.65
"Development, Business & Employment",Property & Design,CAAH,Premises-Related Expenditure,R&M -Buildings DLO Charge,ADT FIRE & SECURITY PLC,29/01/2015,186.83
"Development, Business & Employment",Property & Design,CAAH,Premises-Related Expenditure,R&M -Buildings DLO Charge,AQUALOGIC (WC) LTD,23/01/2015,140.00
"Development, Business & Employment",Property & Design,CAAH,Premises-Related Expenditure,R&M -Buildings DLO Charge,ARJOHUNTLEIGH UK,15/01/2015,868.00
"Development, Business & Employment",Property & Design,CAAH,Premises-Related Expenditure,R&M -Buildings DLO Charge,ARJOHUNTLEIGH UK,15/01/2015,553.00
"Development, Business & Employment",Property & Design,CAAH,Premises-Related Expenditure,R&M -Buildings DLO Charge,ARJOHUNTLEIGH UK,21/01/2015,128.80
"Development, Business & Employment",Property & Design,CAAH,Premises-Related Expenditure,R&M -Buildings DLO Charge,ARJOHUNTLEIGH UK,20/01/2015,132.72
"Development, Business & Employment",Property & Design,CAAH,Premises-Related Expenditure,R&M -Buildings DLO Charge,ASLES (TOOL HIRE & SALES) LTD,21/01/2015,159.00
"Development, Business & Employment",Property & Design,CAAH,Premises-Related Expenditure,R&M -Buildings DLO Charge,ASLES (TOOL HIRE & SALES) LTD,21/01/2015,265.00
"Development, Business & Employment",Property & Design,CAAH,Premises-Related Expenditure,R&M -Buildings DLO Charge,ASLES (TOOL HIRE & SALES) LTD,29/01/2015,153.86
"Development, Business & Employment",Property & Design,CAAH,Premises-Related Expenditure,R&M -Buildings DLO Charge,ASLES (TOOL HIRE & SALES) LTD,29/01/2015,255.00
"Development, Business & Employment",Property & Design,CAAH,Premises-Related Expenditure,R&M -Buildings DLO Charge,BRITISH GAS SERVICES (COMMERCIAL) LTD,15/01/2015,130.00
"Development, Business & Employment",Property & Design,CAAH,Premises-Related Expenditure,R&M -Buildings DLO Charge,BRITISH GAS SERVICES (COMMERCIAL) LTD,15/01/2015,195.00
"Development, Business & Employment",Property & Design,CAAH,Premises-Related Expenditure,R&M -Buildings DLO Charge,BRITISH GAS SERVICES (COMMERCIAL) LTD,21/01/2015,162.50
"Development, Business & Employment",Property & Design,CAAH,Premises-Related Expenditure,R&M -Buildings DLO Charge,BRITISH GAS SERVICES (COMMERCIAL) LTD,21/01/2015,227.50
"Development, Business & Employment",Property & Design,CAAH,Premises-Related Expenditure,R&M -Buildings DLO Charge,BRITISH GAS SERVICES (COMMERCIAL) LTD,28/01/2015,292.50
"Development, Business & Employment",Property & Design,CAAH,Premises-Related Expenditure,R&M -Buildings DLO Charge,BRITISH GAS SERVICES (COMMERCIAL) LTD,29/01/2015,162.50
"Development, Business & Employment",Property & Design,CAAH,Premises-Related Expenditure,R&M -Buildings DLO Charge,Churches Fire Security Ltd,15/01/2015,430.49
"Development, Business & Employment",Property & Design,CAAH,Premises-Related Expenditure,R&M -Buildings DLO Charge,Churches Fire Security Ltd,15/01/2015,510.37
"Development, Business & Employment",Property & Design,CAAH,Premises-Related Expenditure,R&M -Buildings DLO Charge,Churches Fire Security Ltd,15/01/2015,267.69
"Development, Business & Employment",Property & Design,CAAH,Premises-Related Expenditure,R&M -Buildings DLO Charge,Churches Fire Security Ltd,15/01/2015,154.55
"Development, Business & Employment",Property & Design,CAAH,Premises-Related Expenditure,R&M -Buildings DLO Charge,Churches Fire Security Ltd,21/01/2015,240.90
"Development, Business & Employment",Property & Design,CAAH,Premises-Related Expenditure,Service Contracts,Churches Fire Security Ltd,16/01/2015,116.80
"Development, Business & Employment",Property & Design,CAAH,Premises-Related Expenditure,R&M -Buildings DLO Charge,Churches Fire Security Ltd,21/01/2015,569.40
"Development, Business & Employment",Property & Design,CAAH,Premises-Related Expenditure,R&M -Buildings DLO Charge,Churches Fire Security Ltd,23/01/2015,332.43
"Development, Business & Employment",Property & Design,CAAH,Premises-Related Expenditure,R&M -Buildings DLO Charge,Churches Fire Security Ltd,23/01/2015,210.32
"Development, Business & Employment",Property & Design,CAAH,Premises-Related Expenditure,R&M -Buildings DLO Charge,Churches Fire Security Ltd,28/01/2015,325.00
"Development, Business & Employment",Property & Design,CAAH,Premises-Related Expenditure,R&M -Buildings DLO Charge,D P WILCOX & SON,15/01/2015,205.00
"Development, Business & Employment",Property & Design,CAAH,Premises-Related Expenditure,R&M -Buildings DLO Charge,D P WILCOX & SON,15/01/2015,130.00
"Development, Business & Employment",Property & Design,CAAH,Premises-Related Expenditure,R&M -Buildings DLO Charge,D P WILCOX & SON,15/01/2015,360.00
"Development, Business & Employment",Property & Design,CAAH,Premises-Related Expenditure,R&M -Buildings DLO Charge,E DAVIES & SON (TF4 3JZ),07/01/2015,735.00
"Development, Business & Employment",Property & Design,CAAH,Premises-Related Expenditure,R&M -Buildings DLO Charge,E DAVIES & SON (TF4 3JZ),07/01/2015,283.59
"Development, Business & Employment",Property & Design,CAAH,Premises-Related Expenditure,R&M -Buildings DLO Charge,E DAVIES & SON (TF4 3JZ),29/01/2015,286.44
"Development, Business & Employment",Property & Design,CAAH,Premises-Related Expenditure,R&M -Buildings DLO Charge,E DAVIES & SON (TF4 3JZ),29/01/2015,236.58
"Development, Business & Employment",Property & Design,CAAH,Premises-Related Expenditure,R&M -Buildings DLO Charge,E DAVIES & SON (TF4 3JZ),27/01/2015,418.05
"Development, Business & Employment",Property & Design,CAAH,Premises-Related Expenditure,R&M -Buildings DLO Charge,George Birchall Limited,15/01/2015,"1,661.43"
"Development, Business & Employment",Property & Design,CAAH,Premises-Related Expenditure,R&M -Buildings DLO Charge,George Birchall Limited,29/01/2015,190.00
"Development, Business & Employment",Property & Design,CAAH,Premises-Related Expenditure,R&M -Buildings DLO Charge,George Birchall Limited,23/01/2015,247.00
"Development, Business & Employment",Property & Design,CAAH,Premises-Related Expenditure,R&M -Buildings DLO Charge,George Birchall Limited,21/01/2015,123.04
"Development, Business & Employment",Property & Design,CAAH,Premises-Related Expenditure,R&M -Buildings DLO Charge,George Birchall Limited,21/01/2015,101.65
"Development, Business & Employment",Property & Design,CAAH,Premises-Related Expenditure,R&M -Buildings DLO Charge,George Birchall Limited,21/01/2015,947.30
"Development, Business & Employment",Property & Design,CAAH,Premises-Related Expenditure,R&M -Buildings DLO Charge,George Birchall Limited,21/01/2015,261.19
"Development, Business & Employment",Property & Design,CAAH,Premises-Related Expenditure,R&M -Buildings DLO Charge,George Birchall Limited,21/01/2015,142.71
"Development, Business & Employment",Property & Design,CAAH,Premises-Related Expenditure,R&M -Buildings DLO Charge,George Birchall Limited,21/01/2015,245.24
"Development, Business & Employment",Property & Design,CAAH,Premises-Related Expenditure,R&M -Buildings DLO Charge,George Birchall Limited,21/01/2015,190.00
"Development, Business & Employment",Property & Design,CAAH,Premises-Related Expenditure,R&M -Buildings DLO Charge,George Birchall Limited,21/01/2015,215.57
"Development, Business & Employment",Property & Design,CAAH,Premises-Related Expenditure,R&M -Buildings DLO Charge,George Birchall Limited,21/01/2015,210.52
"Development, Business & Employment",Property & Design,CAAH,Premises-Related Expenditure,R&M -Buildings DLO Charge,George Birchall Limited,23/01/2015,434.50
"Development, Business & Employment",Property & Design,CAAH,Premises-Related Expenditure,R&M -Buildings DLO Charge,George Birchall Limited,23/01/2015,219.63
"Development, Business & Employment",Property & Design,CAAH,Premises-Related Expenditure,R&M -Buildings DLO Charge,George Birchall Limited,23/01/2015,184.50
"Development, Business & Employment",Property & Design,CAAH,Premises-Related Expenditure,R&M -Buildings DLO Charge,George Birchall Limited,23/01/2015,190.00
"Development, Business & Employment",Property & Design,CAAH,Premises-Related Expenditure,R&M -Buildings DLO Charge,George Birchall Limited,23/01/2015,309.50
"Development, Business & Employment",Property & Design,CAAH,Premises-Related Expenditure,R&M -Buildings DLO Charge,George Birchall Limited,23/01/2015,127.50
"Development, Business & Employment",Property & Design,CAAH,Premises-Related Expenditure,R&M -Buildings DLO Charge,George Birchall Limited,23/01/2015,247.00
"Development, Business & Employment",Property & Design,CAAH,Premises-Related Expenditure,R&M -Buildings DLO Charge,George Birchall Limited,23/01/2015,372.00
"Development, Business & Employment",Property & Design,CAAH,Premises-Related Expenditure,R&M -Buildings DLO Charge,George Birchall Limited,23/01/2015,110.00
"Development, Business & Employment",Property & Design,CAAH,Premises-Related Expenditure,R&M -Buildings DLO Charge,George Birchall Limited,28/01/2015,218.10
"Development, Business & Employment",Property & Design,CAAH,Premises-Related Expenditure,R&M -Buildings DLO Charge,George Birchall Limited,28/01/2015,343.42
"Development, Business & Employment",Property & Design,CAAH,Premises-Related Expenditure,R&M -Buildings DLO Charge,George Birchall Limited,28/01/2015,238.26
"Development, Business & Employment",Property & Design,CAAH,Premises-Related Expenditure,R&M -Buildings DLO Charge,George Birchall Limited,28/01/2015,233.76
"Development, Business & Employment",Property & Design,CAAH,Premises-Related Expenditure,R&M -Buildings DLO Charge,George Birchall Limited,28/01/2015,103.16
"Development, Business & Employment",Property & Design,CAAH,Premises-Related Expenditure,R&M -Buildings DLO Charge,George Birchall Limited,28/01/2015,131.79
"Development, Business & Employment",Property & Design,CAAH,Premises-Related Expenditure,R&M -Buildings DLO Charge,George Birchall Limited,28/01/2015,100.14
"Development, Business & Employment",Property & Design,CAAH,Premises-Related Expenditure,R&M -Buildings DLO Charge,George Birchall Limited,28/01/2015,383.71
"Development, Business & Employment",Property & Design,CAAH,Premises-Related Expenditure,R&M -Buildings DLO Charge,George Birchall Limited,07/01/2015,462.66
"Development, Business & Employment",Property & Design,CAAH,Premises-Related Expenditure,R&M -Buildings DLO Charge,George Birchall Limited,28/01/2015,184.50
"Development, Business & Employment",Property & Design,CAAH,Premises-Related Expenditure,R&M -Buildings DLO Charge,George Birchall Limited,28/01/2015,241.50
"Development, Business & Employment",Property & Design,CAAH,Premises-Related Expenditure,R&M -Buildings DLO Charge,George Birchall Limited,29/01/2015,184.50
"Development, Business & Employment",Property & Design,CAAH,Premises-Related Expenditure,R&M -Buildings DLO Charge,George Birchall Limited,29/01/2015,190.00
"Development, Business & Employment",Property & Design,CAAH,Premises-Related Expenditure,R&M -Buildings DLO Charge,George Birchall Limited,29/01/2015,190.00
"Development, Business & Employment",Property & Design,CAAH,Premises-Related Expenditure,R&M -Buildings DLO Charge,George Birchall Limited,29/01/2015,122.00
"Development, Business & Employment",Property & Design,CAAH,Premises-Related Expenditure,R&M -Buildings DLO Charge,George Birchall Limited,29/01/2015,127.50
"Development, Business & Employment",Property & Design,CAAH,Premises-Related Expenditure,R&M -Buildings DLO Charge,George Birchall Limited,28/01/2015,184.50
"Development, Business & Employment",Property & Design,CAAH,Premises-Related Expenditure,R&M -Buildings DLO Charge,George Birchall Limited,28/01/2015,184.50
"Development, Business & Employment",Property & Design,CAAH,Premises-Related Expenditure,R&M -Buildings DLO Charge,George Birchall Limited,28/01/2015,374.00
"Development, Business & Employment",Property & Design,CAAH,Premises-Related Expenditure,R&M -Buildings DLO Charge,GRANVILLE CONSTRUCTION & MAINTENANCE LTD,28/01/2015,415.00
"Development, Business & Employment",Property & Design,CAAH,Premises-Related Expenditure,R&M -Buildings DLO Charge,HORIZON SOFT DRINKS LTD,23/01/2015,187.95
"Development, Business & Employment",Property & Design,CAAH,Premises-Related Expenditure,R&M -Buildings DLO Charge,HYDRO-TECH ENVIRONMENTAL LLP,23/01/2015,210.00
"Development, Business & Employment",Property & Design,CAAH,Premises-Related Expenditure,R&M -Buildings DLO Charge,HYDRO-TECH ENVIRONMENTAL LLP,23/01/2015,210.00
"Development, Business & Employment",Property & Design,CAAH,Premises-Related Expenditure,R&M -Buildings DLO Charge,HYDRO-TECH ENVIRONMENTAL LLP,23/01/2015,210.00
"Development, Business & Employment",Property & Design,CAAH,Premises-Related Expenditure,R&M -Buildings DLO Charge,HYDRO-TECH ENVIRONMENTAL LLP,23/01/2015,210.00
"Development, Business & Employment",Property & Design,CAAH,Premises-Related Expenditure,R&M -Buildings DLO Charge,HYDRO-TECH ENVIRONMENTAL LLP,23/01/2015,210.00
"Development, Business & Employment",Property & Design,CAAH,Premises-Related Expenditure,R&M -Buildings DLO Charge,JCE & SONS LTD,16/01/2015,174.50
"Development, Business & Employment",Property & Design,CAAH,Premises-Related Expenditure,R&M -Buildings DLO Charge,JCE & SONS LTD,16/01/2015,135.00
"Development, Business & Employment",Property & Design,CAAH,Premises-Related Expenditure,R&M -Buildings DLO Charge,JCE & SONS LTD,16/01/2015,167.48
"Development, Business & Employment",Property & Design,CAAH,Premises-Related Expenditure,R&M -Buildings DLO Charge,JCE & SONS LTD,21/01/2015,250.08
"Development, Business & Employment",Property & Design,CAAH,Premises-Related Expenditure,R&M -Buildings DLO Charge,JCE & SONS LTD,21/01/2015,108.32
"Development, Business & Employment",Property & Design,CAAH,Premises-Related Expenditure,R&M -Buildings DLO Charge,JCE & SONS LTD,23/01/2015,154.71
"Development, Business & Employment",Property & Design,CAAH,Premises-Related Expenditure,R&M -Buildings DLO Charge,JCE & SONS LTD,23/01/2015,373.72
"Development, Business & Employment",Property & Design,CAAH,Premises-Related Expenditure,R&M -Buildings DLO Charge,JCE & SONS LTD,23/01/2015,"1,973.98"
"Development, Business & Employment",Property & Design,CAAH,Premises-Related Expenditure,R&M -Buildings DLO Charge,JCE & SONS LTD,23/01/2015,587.97
"Development, Business & Employment",Property & Design,CAAH,Premises-Related Expenditure,R&M -Buildings DLO Charge,JOHNSON CONTROLS LTD,21/01/2015,284.80
"Development, Business & Employment",Property & Design,CAAH,Premises-Related Expenditure,R&M -Buildings DLO Charge,JONES & HAMPTON LTD,15/01/2015,245.00
"Development, Business & Employment",Property & Design,CAAH,Premises-Related Expenditure,R&M -Buildings DLO Charge,JONES & HAMPTON LTD,23/01/2015,178.40
"Development, Business & Employment",Property & Design,CAAH,Premises-Related Expenditure,R&M -Buildings DLO Charge,JONES & HAMPTON LTD,23/01/2015,104.80
"Development, Business & Employment",Property & Design,CAAH,Premises-Related Expenditure,R&M -Buildings DLO Charge,JONES & HAMPTON LTD,29/01/2015,108.79
"Development, Business & Employment",Property & Design,CAAH,Premises-Related Expenditure,R&M -Buildings DLO Charge,NOVASCOPE IT LTD,15/01/2015,523.00
"Development, Business & Employment",Property & Design,CAAH,Premises-Related Expenditure,R&M -Buildings DLO Charge,PP ELECTRICAL SERVICES (Shropshire) Ltd,15/01/2015,598.74
"Development, Business & Employment",Property & Design,CAAH,Premises-Related Expenditure,R&M -Buildings DLO Charge,PP ELECTRICAL SERVICES (Shropshire) Ltd,23/01/2015,319.20
"Development, Business & Employment",Property & Design,CAAH,Premises-Related Expenditure,R&M -Buildings DLO Charge,PP ELECTRICAL SERVICES (Shropshire) Ltd,23/01/2015,395.00
"Development, Business & Employment",Property & Design,CAAH,Premises-Related Expenditure,R&M -Buildings DLO Charge,PP ELECTRICAL SERVICES (Shropshire) Ltd,21/01/2015,178.94
"Development, Business & Employment",Property & Design,CAAH,Premises-Related Expenditure,R&M -Buildings DLO Charge,PP ELECTRICAL SERVICES (Shropshire) Ltd,21/01/2015,404.00
"Development, Business & Employment",Property & Design,CAAH,Premises-Related Expenditure,R&M -Buildings DLO Charge,PP ELECTRICAL SERVICES (Shropshire) Ltd,21/01/2015,305.00
"Development, Business & Employment",Property & Design,CAAH,Premises-Related Expenditure,R&M -Buildings DLO Charge,PP ELECTRICAL SERVICES (Shropshire) Ltd,23/01/2015,155.00
"Development, Business & Employment",Property & Design,CAAH,Premises-Related Expenditure,R&M -Buildings DLO Charge,PP ELECTRICAL SERVICES (Shropshire) Ltd,23/01/2015,177.60
"Development, Business & Employment",Property & Design,CAAH,Premises-Related Expenditure,R&M -Buildings DLO Charge,PP ELECTRICAL SERVICES (Shropshire) Ltd,23/01/2015,230.40
"Development, Business & Employment",Property & Design,CAAH,Premises-Related Expenditure,R&M -Buildings DLO Charge,PP ELECTRICAL SERVICES (Shropshire) Ltd,23/01/2015,124.80
"Development, Business & Employment",Property & Design,CAAH,Premises-Related Expenditure,R&M -Buildings DLO Charge,PP ELECTRICAL SERVICES (Shropshire) Ltd,23/01/2015,133.60
"Development, Business & Employment",Property & Design,CAAH,Premises-Related Expenditure,R&M -Buildings DLO Charge,PP ELECTRICAL SERVICES (Shropshire) Ltd,23/01/2015,192.00
"Development, Business & Employment",Property & Design,CAAH,Premises-Related Expenditure,R&M -Buildings DLO Charge,PP ELECTRICAL SERVICES (Shropshire) Ltd,28/01/2015,396.00
"Development, Business & Employment",Property & Design,CAAH,Premises-Related Expenditure,R&M -Buildings DLO Charge,PP ELECTRICAL SERVICES (Shropshire) Ltd,29/01/2015,213.60
"Development, Business & Employment",Property & Design,CAAH,Premises-Related Expenditure,R&M -Buildings DLO Charge,PP ELECTRICAL SERVICES (Shropshire) Ltd,29/01/2015,160.80
"Development, Business & Employment",Property & Design,CAAH,Premises-Related Expenditure,R&M -Buildings DLO Charge,PROKILL UK LIMITED,21/01/2015,150.00
"Development, Business & Employment",Property & Design,CAAH,Premises-Related Expenditure,R&M -Buildings DLO Charge,PROKILL UK LIMITED,29/01/2015,180.00
"Development, Business & Employment",Property & Design,CAAH,Premises-Related Expenditure,R&M -Buildings DLO Charge,RCS ROOFING CONSTRUCTION SERVICES LTD,15/01/2015,385.10
"Development, Business & Employment",Property & Design,CAAH,Premises-Related Expenditure,R&M -Buildings DLO Charge,RCS ROOFING CONSTRUCTION SERVICES LTD,15/01/2015,161.80
"Development, Business & Employment",Property & Design,CAAH,Premises-Related Expenditure,R&M -Buildings DLO Charge,RCS ROOFING CONSTRUCTION SERVICES LTD,15/01/2015,166.20
"Development, Business & Employment",Property & Design,CAAH,Premises-Related Expenditure,R&M -Buildings DLO Charge,RCS ROOFING CONSTRUCTION SERVICES LTD,21/01/2015,172.34
"Development, Business & Employment",Property & Design,CAAH,Premises-Related Expenditure,R&M -Buildings DLO Charge,RCS ROOFING CONSTRUCTION SERVICES LTD,23/01/2015,226.35
"Development, Business & Employment",Property & Design,CAAH,Premises-Related Expenditure,R&M -Buildings DLO Charge,RCS ROOFING CONSTRUCTION SERVICES LTD,21/01/2015,240.20
"Development, Business & Employment",Property & Design,CAAH,Premises-Related Expenditure,R&M -Buildings DLO Charge,RCS ROOFING CONSTRUCTION SERVICES LTD,28/01/2015,337.95
"Development, Business & Employment",Property & Design,CAAH,Premises-Related Expenditure,R&M -Buildings DLO Charge,RCS ROOFING CONSTRUCTION SERVICES LTD,28/01/2015,275.85
"Development, Business & Employment",Property & Design,CAAH,Premises-Related Expenditure,R&M -Buildings DLO Charge,RENTOKIL INITIAL UK LIMITED,21/01/2015,118.05
"Development, Business & Employment",Property & Design,CAAH,Premises-Related Expenditure,R&M -Buildings DLO Charge,SECURITY WISE LTD,15/01/2015,100.50
"Development, Business & Employment",Property & Design,CAAH,Premises-Related Expenditure,R&M -Buildings DLO Charge,SECURITY WISE LTD,21/01/2015,100.50
"Development, Business & Employment",Property & Design,CAAH,Premises-Related Expenditure,R&M -Buildings DLO Charge,SECURITY WISE LTD,21/01/2015,346.00
